﻿_id,COD_PO,COD_AP,COD_DMI,COD_OPER,COD_SMIS,TITLU_PROIECT,NUME_BENEFICIAR,REGIUNEA_BENEFICIARULUI,JUDETUL_BENEFICIARULUI,LOCALITATEA_BENEFICIARULUI,COD_BENEFICIAR,COD_REGIUNE,COD_JUDET,COD_LOCALITATE,CONTR_FIN_NO,CONTR_FIN_DATE,BUGET_TOTAL,BUGET_ELIGIBIL,CATEGORIE_PROIECT,CRR_FIN_NO,CRR_FIN_DATA,STARE
1,3,1,1,1.0,38504,Modernizarea SC UAMT SA Oradea prin dotarea cu echipamente si instalatii  inalt tehnologizate,UAMT S.A.,NORD-VEST,BIHOR,MUNICIPIUL ORADEA,12269,6,5,54,230527.0,2012-08-07T00:00:00,25906390,20892250,Alte investitii in firme,11.03.002,2011-08-16T00:00:00,In implementare
2,3,1,1,1.0,38382,Modernizarea si extinderea activitatii SC NORD SIMEX SRL,NORD SIMEX S.R.L.,NORD-VEST,SATU MARE,MUNICIPIUL SATU MARE,11833,6,30,35,435/3m,2011-12-13T00:00:00,2301002.6800000001676380634307861328125,1791666.32000000006519258022308349609375,Alte investitii in firme,282.0,2010-09-06T00:00:00,In implementare
3,1,1,1.100000000000000088817841970012523233890533447265625,1.0,18182,Imbunatatirea transportului public urban prin extinderea retelei de troleibuz si a infrastructurii aferente in Municpiul Baia Mare - cartier Vasile Alecsandri,Consiliul Local al Municipiului Baia Mare,NORD-VEST,MARAMURES,MUNICIPIUL BAIA MARE,2284,6,24,36,2238.0,2011-09-19T00:00:00,17907508.25,12179605,Transport urban,NV/1/1.1/PDU/1/4,2010-03-16T00:00:00,In implementare
4,3,1,1,1.0,38544,Implementare de tehnologii noi destinate recuperarii materialelor reciclabile,Rematholding Co SRL,BUCURESTI - ILFOV,BUCURESTI,MUNICIPIUL BUCURESTI,12353,8,40,1,229964.0,2012-07-16T00:00:00,49669413,37812734.899999998509883880615234375,Alte investitii in firme,11.03.059,2011-08-16T00:00:00,In implementare
5,3,1,1,1.0,38660,Inovare tehnologica prin achizitionarea de echipamente eco-eficiente de nivel high-tech pentru dezvoltarea si producerea de componente electronice destinate industriei automotive in cadrul sc hella romania srl,Hella Romania SRL,VEST,TIMIS,GHIRODA,8673,5,35,34,230307.0,2012-07-30T00:00:00,51522648,37511846,Alte investitii in firme,11.03.078,2011-08-16T00:00:00,In implementare
6,3,1,1,1.0,38662,CRESTEREA COMPETITIVITATII ECONOMICE PRIN MODERNIZAREA SI EXTINDEREA CAPACITATII DE PRODUCTIE A FABRICII DE MOBILIER TAPITAT¿,RUS-SAVITAR S.R.L.,VEST,TIMIS,DUMBRAVITA,12456,5,35,28,229957.0,2012-07-16T00:00:00,23504901.570000000298023223876953125,16135847.18999999947845935821533203125,Alte investitii in firme,11.03.076,2011-08-16T00:00:00,In implementare
7,3,1,1,1.0,38674,¿Cresterea competitivitatii SC FLARO PROD SA in domeniul productiei de subansamble auto prin dezvoltarea capacitatii de productie¿,FLARO Prod SA,CENTRU,SIBIU,MUNICIPIUL SIBIU,8803,7,32,33,229958.0,2012-07-16T00:00:00,9802173.43999999947845935821533203125,7572516,Alte investitii in firme,11.03.091,2011-08-16T00:00:00,In implementare
8,2,6,6.20000000000000017763568394002504646778106689453125,***,38435,Evaluarea Planului de Comunicare al POS Mediu,Ministerul Mediului si Schimbarilor Climatice,BUCURESTI - ILFOV,BUCURESTI,MUNICIPIUL BUCURESTI,14,8,40,1,1238.0,2011-04-12T00:00:00,1310035.19999999995343387126922607421875,1056480,"Evaluare si studii, informare si comunicare",2.0,2009-11-06T00:00:00,In implementare
9,2,6,6.0999999999999996447286321199499070644378662109375,***,38436,Achizitia de foto-copiatoare digitale multifunctionale pentru AM si OI POS Mediu,Ministerul Mediului si Schimbarilor Climatice,BUCURESTI - ILFOV,BUCURESTI,MUNICIPIUL BUCURESTI,14,8,40,1,1961.0,2011-07-27T00:00:00,1086779.3999999999068677425384521484375,876435,"Pregatire, implementare, monitorizare si inspectie",9.0,2010-12-28T00:00:00,In implementare
10,6,1,1.1999999999999999555910790149937383830547332763671875,***,39144,Sistemul Informatic Integrat al Invatamantului din Romania - SIIIR,"MInisterul Educatiei, Cercetarii si Tineretului",BUCURESTI - ILFOV,BUCURESTI,MUNICIPIUL BUCURESTI,715,8,40,1,332.0,2012-07-25T00:00:00,18417536,18417536,"Mecanisme de imbunatatire a elaborarii politicilor si programelor, a monitorizarii si evaluarii la nivel national, regional si local si de dezvoltare a capacitatii de a elabora politici si programe",1004619.0,2011-10-19T00:00:00,In implementare
11,1,1,1.100000000000000088817841970012523233890533447265625,3.0,39082,CENTRU COMUNITAR IN COMUNA VULCAN,Municipiul Brasov,CENTRU,BRASOV,MUNICIPIUL BRASOV,152,7,8,28,3580.0,2012-12-14T00:00:00,2423972.799999999813735485076904296875,1950720,Alte infrastructuri sociale,C/1/1.1/PC/19/31.10.2011,2011-10-31T00:00:00,In implementare
12,3,5,1,***,39244,"Asistenta tehnica pentru sustinerea activitatii de control la fata locului a proiectelor finantate in cadrul axei 2 POS CCE, prin achizitionarea de servicii de consultanta si expertiza",Autoritatea Nationala pentru Cercetare Stiintifica - DG Organism Intermediar pentru Cercetare,BUCURESTI - ILFOV,BUCURESTI,MUNICIPIUL BUCURESTI,26,8,40,1,158669.0,2011-11-07T00:00:00,16007287.25,12952604.0500000007450580596923828125,"Pregatire, implementare, monitorizare si inspectie",157731.0,2011-10-10T00:00:00,In implementare
13,1,1,1.100000000000000088817841970012523233890533447265625,2.0,39375,Centru regional de competente si dezvoltare a furnizorilor in sectorul automotive,Municipiul Timisoara,VEST,TIMIS,MUNICIPIUL TIMISOARA,2512,5,35,54,3349.0,2012-08-22T00:00:00,12625307.34999999962747097015380859375,9812510.84999999962747097015380859375,Alte investitii in firme,V/1/1.1/PC/15/15.11.2011,2011-11-15T00:00:00,In implementare
14,3,1,1,1.0,39855,DEZVOLTAREA SECTORULUI EXTRACTIV  LA SC BORBAS SRL,BORBAS SRL,SUD-VEST OLTENIA,OLT,MUNICIPIUL SLATINA,12402,4,28,54,471/3m,2012-01-12T00:00:00,2036301.959999999962747097015380859375,1642179,Alte investitii in firme,492.0,2010-09-06T00:00:00,In implementare
15,1,1,1.100000000000000088817841970012523233890533447265625,1.0,39731,Parc de recreere in Orasul Eforie,Primaria orasului Eforie,SUD-EST,CONSTANTA,ORAS EFORIE,1172,2,13,47,3763.0,2013-07-22T00:00:00,3107596.75999999977648258209228515625,2424713.3199999998323619365692138671875,Alte infrastructuri sociale,SE/1/1.1/PC/27/21.11.2011,2011-11-21T00:00:00,In implementare
16,3,1,1,1.0,39801,"SISTEM DE PRODUCTIE BAZAT PE INOVARE TEHNOLOGICA, PRIN ACHIZITIE DE ECHIPAMENTE SI UTILAJE PERFORMANTE, LA S.C. TEHNIC ASIST S.R.L.",TEHNIC-ASIST SRL,NORD-EST,BOTOSANI,MUNICIPIUL BOTOSANI,5322,1,7,44,3M/500061/2,2014-02-28T00:00:00,13034660.5199999995529651641845703125,10005713,Alte investitii in firme,578.0,2011-08-20T00:00:00,In implementare
17,3,1,1,1.0,39842,Modernizarea activitatii SC GRINEXIM COM SRL,GRINEXIM COM S.R.L.,SUD-VEST OLTENIA,DOLJ,MUNICIPIUL CRAIOVA,6668,4,16,68,455/3m,2011-12-22T00:00:00,1904108.5600000000558793544769287109375,1535571.41999999992549419403076171875,Alte investitii in firme,478.0,2010-09-06T00:00:00,In implementare
18,1,5,5.29999999999999982236431605997495353221893310546875,1.0,40158,PROMOVAREA SI CONSOLIDAREA BRANDULUI TURISTIC AL ROMANIEI,MDRAP,BUCURESTI - ILFOV,BUCURESTI,MUNICIPIUL BUCURESTI,7235,8,40,1,3214.0,2012-06-06T00:00:00,95005300,74807500,Promovarea patrimoniului natural,BI/1/5/5.3/A/723/23.12.2011,2011-12-23T00:00:00,In implementare
19,1,1,1.100000000000000088817841970012523233890533447265625,2.0,40003,"Dezvoltare zona economic Brasov Nord - CENTRU DE AFACERI, TRANSFER TEHNOLOGIC SI INCUBATOR DE AFACERI",Municipiul Brasov,CENTRU,BRASOV,MUNICIPIUL BRASOV,152,7,8,28,3704.0,2013-04-25T00:00:00,70898442,51184366.649999998509883880615234375,Alte investitii in firme,C/1/1.1/PC/22/14.12.2011,2011-12-13T00:00:00,In implementare
20,1,1,1.100000000000000088817841970012523233890533447265625,1.0,40004,Amenajarea de statii capat de linie pentru mijloacele de transport in comun,Municipiul Brasov,CENTRU,BRASOV,MUNICIPIUL BRASOV,152,7,8,28,3681.0,2013-04-01T00:00:00,35121500.240000002086162567138671875,27775196,Transport urban,C/1/1.1/PC/23,2011-12-14T00:00:00,In implementare
21,3,4,1,1.0,40075,"SISTEM DE COGENERARE DE INALTA EFICIENTA PENTRU FABRICA DE CARAMIDA LOCALITATEA DOICESTI, JUDETUL DAMBOVITA",SOCERAM SA,BUCURESTI - ILFOV,BUCURESTI,MUNICIPIUL BUCURESTI,8797,8,40,1,30EE,2013-04-22T00:00:00,8870192.89000000059604644775390625,7047775.34999999962747097015380859375,"Eficienta energetica, co-generare, management energetic",630602.0,2011-12-15T00:00:00,In implementare
22,1,1,1.100000000000000088817841970012523233890533447265625,3.0,40136,REABILITARE SI DOTARE CAMIN CULTURAL MISCHII,Consiliul Local al Municipiului Craiova,SUD-VEST OLTENIA,DOLJ,MUNICIPIUL CRAIOVA,1495,4,16,68,3520.0,2012-10-29T00:00:00,1321216.36000000010244548320770263671875,1056588,Alte infrastructuri sociale,SV/1/1.1/PC/14/22.12.2011,2011-12-22T00:00:00,In implementare
23,3,3,1,1.0,40725,CSI-PERFORMANTA IN AFACERI,CENTRO SERVICE INDUSTRY SRL,VEST,TIMIS,MOSNITA NOUA,50232,5,35,52,683/311,2013-02-11T00:00:00,124720.4400000000023283064365386962890625,100581,Alte masuri pentru imbunatatirea accesului si utilizarea eficienta a TIC de catre IMM-uri,132.0,2011-01-05T00:00:00,In implementare
24,1,1,1.100000000000000088817841970012523233890533447265625,3.0,40122,"REABILITARE, CONSOLIDARE, EXTINDERE SI DOTARE CAMIN CULTURAL NR.1, PIELESTI",Consiliul Local al Municipiului Craiova,SUD-VEST OLTENIA,DOLJ,MUNICIPIUL CRAIOVA,1495,4,16,68,3568.0,2012-12-05T00:00:00,3183737.24000000022351741790771484375,2509021,Alte infrastructuri sociale,SV/1/1.1/PC/12/20.12.2011,2011-12-20T00:00:00,In implementare
25,3,2,3,2.0,48770,CONSTRUIRE PLATFORMA DE CERCETARE PENTRU INTEGRAREA RESURSELOR REGENERABILE IN INSTALATII AUTONOME,DAS S.R.L,NORD-EST,IASI,MUNICIPIUL IASI,121214,1,22,57,608.0,2013-12-10T00:00:00,6126355.309999999590218067169189453125,4886258,"Investitii in firme direct legate de cercetare si inovare (tehnologii inovatoare, infiintarea de noi firme de catre universitati, centre si firme C&DT existente)",1819.0,2013-08-07T00:00:00,In implementare
26,4,7,7.0999999999999996447286321199499070644378662109375,***,48889,Inchiriere imobil (cladire existenta si terenul aferent) necesar functionarii OIRPOSDRU - VEST OLTENIA,"Ministerul Muncii, Familiei si Protectiei Sociale - DG AM POSDRU",BUCURESTI - ILFOV,BUCURESTI,MUNICIPIUL BUCURESTI,29,8,40,1,POSDRU/7/7.1/CF/OI/POSDRU SVO/1,2013-09-25T00:00:00,840652.05000000004656612873077392578125,840652.05000000004656612873077392578125,"Pregatire, implementare, monitorizare si inspectie",69.0,2013-08-08T00:00:00,In implementare
27,1,5,5.29999999999999982236431605997495353221893310546875,1.0,49353,Campanie de promovare la nivel intern a brandului turistic national,Autoritatea Nationala pentru Turism,BUCURESTI - ILFOV,BUCURESTI,MUNICIPIUL BUCURESTI,121648,8,40,1,4077.0,2014-03-03T00:00:00,1992436.959999999962747097015380859375,1992436.959999999962747097015380859375,Promovarea patrimoniului natural,BI/1/5/5.3/A/841/31.10.2013,2013-10-31T00:00:00,In implementare
28,3,2,3,2.0,48740,MODERNIZAREA SI CRESTEREA CAPACITATII DE CERCETARE SI DEZVOLTARE LA SOCIETATEA FLASHNET,FLASH NET SRL,CENTRU,BRASOV,MUNICIPIUL BRASOV,121219,7,8,28,615.0,2013-12-18T00:00:00,2040913.5200000000186264514923095703125,1639180,"Investitii in firme direct legate de cercetare si inovare (tehnologii inovatoare, infiintarea de noi firme de catre universitati, centre si firme C&DT existente)",1861.0,2013-08-14T00:00:00,In implementare
29,3,1,1,1.0,48829,Modernizarea si dezvoltarea capacitatii de productie a SC ROTHERM SRL,ROTHERM S.R.L,NORD-EST,NEAMT,VANATORI-NEAMT,12236,1,27,82,4m/400361/2,2013-11-05T00:00:00,1890923,1517247,Alte investitii in firme,917.0,2012-06-28T00:00:00,In implementare
30,3,2,3,2.0,48817,"Centru pentru proiectare, cercetare, testare sisteme energii regenerabile solare, fotovoltaice, eoliene si geotermale",VERTA TEL SRL,BUCURESTI - ILFOV,BUCURESTI,MUNICIPIUL BUCURESTI,13906,8,40,1,616.0,2013-12-18T00:00:00,32547893.92000000178813934326171875,25503146,"Investitii in firme direct legate de cercetare si inovare (tehnologii inovatoare, infiintarea de noi firme de catre universitati, centre si firme C&DT existente)",1949.0,2013-08-19T00:00:00,In implementare
31,3,3,3,2.0,46977,Sistem de contabilitate online,INTERPLAST IMPORT-EXPORT S.R.L.,BUCURESTI - ILFOV,BUCURESTI,MUNICIPIUL BUCURESTI,121471,8,40,1,1443/332,2013-12-20T00:00:00,109120,88000,"Servicii si aplicatii pentru IMM-uri (comert electronic, educatie si formare, networking, etc.)",1612.0,2012-02-01T00:00:00,In implementare
32,1,4,4.29999999999999982236431605997495353221893310546875,1.0,35052,"DEZVOLTAREA SOCIETATII MAR CONSULT SRL PRIN DIVERSIFICAREA SERVICIILOR OFERITE  RESPECTIV, INFIINTAREA  SI DOTAREA UNUI CENTRU DE RECUPERARE FIZICA SI LOCOMOTORIE, START UP AND ENDOWMENT",MAR CONSULT S.R.L. ,NORD-EST,IASI,MUNICIPIUL IASI,121285,1,22,57,3943.0,2013-11-26T00:00:00,955783.0200000000186264514923095703125,718388.46999999997206032276153564453125,Alte investitii in firme,NE/13/4/4.3/1019/24.11.2010,2010-11-24T00:00:00,In implementare
33,7,1,1.100000000000000088817841970012523233890533447265625,***,48914,"Sprijin pentru finantarea partiala a cheltuielilor de personal efectuate de Inspectoratul Scolar Judetean Calarasi, in perioada 2012 - 2015, pentru personalul implicat in gestionarea instrumentelor structurale",Inspectoratul Scolar al Judetului Calarasi,SUD - MUNTENIA,CALARASI,MUNICIPIUL CALARASI,7253,3,51,30,C.T.R.F 1.1.158,2013-11-11T00:00:00,444608.01000000000931322574615478515625,444608.01000000000931322574615478515625,"Pregatire, implementare, monitorizare si inspectie",C.F 1.1.158,2013-10-23T00:00:00,In implementare
34,3,2,2,1.0,49153,CENTRUL ROMAN DE CERCETARE BIOMOLECULARA APLICATA BOLILOR INFECTIOASE v.3,INSTITUTUL NATIONAL DE BOLI INFECTIOASE „PROF. DR. MATEI BALS”,BUCURESTI - ILFOV,BUCURESTI,MUNICIPIUL BUCURESTI,5809,8,40,1,642.0,2014-03-12T00:00:00,49231110.399999998509883880615234375,40000000,"Infrastructura C&DT (inclusiv constructie, echipamente si retele computerizate de inalta viteza care conecteaza centre de cercetare) si centre de excelenta in tehnologii specifice",1871.0,2013-08-15T00:00:00,In implementare
35,3,3,3,2.0,47107,Magazin virtual pentru o viata mai verde,EVER GARDEN SRL,SUD - MUNTENIA,DÂMBOVITA,COMISANI,10729,3,15,15,1761/332,2014-02-18T00:00:00,329592,264750,"Servicii si aplicatii pentru IMM-uri (comert electronic, educatie si formare, networking, etc.)",5428.0,2012-04-25T00:00:00,In implementare
36,1,4,4.29999999999999982236431605997495353221893310546875,1.0,35058,MODERNIZAREA SI EXTINDEREA SERVICIILOR DE IMAGISTICA MEDICALA,MEDISON S.R.L.,NORD-EST,BACAU,MUNICIPIUL BACAU,452,1,4,47,3963.0,2013-12-06T00:00:00,588504,469400,Alte investitii in firme,NE/13/4/4.3/1028/29.11.2010,2010-11-29T00:00:00,In implementare
37,3,1,1,1.0,48853,Cresterea competitivitatii economice a activitatii de constructii drumuri in cadrul SC PDM MANUEL CONSTRUCT SRL,PDM MANUEL CONSTRUCT S.R.L. ,NORD-VEST,SATU MARE,ORAS NEGRESTI-OAS,121395,6,30,39,4m/400373/2,2013-11-05T00:00:00,1710160.790000000037252902984619140625,1379161.92999999993480741977691650390625,Alte investitii in firme,1752.0,2012-07-09T00:00:00,In implementare
38,3,3,3,2.0,47037,Cresterea competitivitatii CRISSERV SRL prin implementarea unei platforme E-commerce, CRISSERV SRL,CENTRU,SIBIU,MUNICIPIUL MEDIAS,13280,7,32,32,1235/332,2013-12-10T00:00:00,500885.599999999976716935634613037109375,403940,"Servicii si aplicatii pentru IMM-uri (comert electronic, educatie si formare, networking, etc.)",4826.0,2012-04-10T00:00:00,In implementare
39,3,3,3,2.0,47139,Cresterea competitivitatii economice a societatii Nordman Product S.R.L. prin implementarea unei solutii de comert electronic,NORDMAN PRODUCT S.R.L.,NORD-VEST,SALAJ,CAMAR,121356,6,31,11,1377/332,2013-12-19T00:00:00,343757.650000000023283064365386962890625,277223.9099999999743886291980743408203125,"Servicii si aplicatii pentru IMM-uri (comert electronic, educatie si formare, networking, etc.)",6342.0,2012-05-15T00:00:00,In implementare
40,3,3,3,2.0,47386,PLATFORMA ONLINE NR. 1 A IMM-URILOR DIN ROMANIA,ANDRA PET TRANS SRL,VEST,ARAD,MUNICIPIUL ARAD,121417,5,2,36,1433/332,2013-12-20T00:00:00,387930.28000000002793967723846435546875,305977,"Servicii si aplicatii pentru IMM-uri (comert electronic, educatie si formare, networking, etc.)",7466.0,2012-06-12T00:00:00,In implementare
41,5,2,2.29999999999999982236431605997495353221893310546875,***,42203,Extinderea spre sud a danei de gabare din portul Constanta,COMPANIA NATIONALA ADMINISTRATIA PORTURILOR MARITIME S.A.,SUD-EST,CONSTANTA,MUNICIPIUL CONSTANTA,3599,2,13,39,115.0,2012-07-13T00:00:00,24496819,12432548,Porturi,80.0,2011-04-21T00:00:00,In implementare
42,3,3,3,1.0,46443,PERFORMANTA IN MANAGEMENT PRIN IMPLEMENTAREA SISTEMELOR E.R.P.¿I C.R.M. LA S.C. OPTOELECTRONICA 2001 S.A.,OPTOELECTRONICA-2001 SA,BUCURESTI - ILFOV,ILFOV,ORAS MAGURELE,1669,8,23,30,1713/331,2013-12-30T00:00:00,966467.069999999948777258396148681640625,731288.930000000051222741603851318359375,"Servicii si aplicatii pentru IMM-uri (comert electronic, educatie si formare, networking, etc.)",14514.0,2011-10-13T00:00:00,In implementare
43,1,6,6.20000000000000017763568394002504646778106689453125,2.0,48273,"Informare si publicitate pentru Programul Operational Regional in Regiunea  Nord-Vest, in perioada 01 ianuarie 2013  -31 iulie 2015",Agentia pentru Dezvoltare Regionala Nord-Vest,NORD-VEST,CLUJ,MUNICIPIUL CLUJ-NAPOCA,8,6,12,52,56AT,2013-10-22T00:00:00,693412.2700000000186264514923095703125,693412.2700000000186264514923095703125,"Evaluare si studii, informare si comunicare",52726.0,2013-07-02T00:00:00,In implementare
44,7,1,1.100000000000000088817841970012523233890533447265625,***,49370,"Sprijin pentru finantarea partiala a cheltuielilor de personal efectuate de DGRFP Brasov pentru personalul implicat in coordonarea, managementul si controlul instrumentelor structurale",Directie Generala Regionala a Finantelor Publice Brasov,CENTRU,BRASOV,MUNICIPIUL BRASOV,121498,7,8,28,C.T.R.F. 1.1.163,2013-11-15T00:00:00,1691712,1691712,"Pregatire, implementare, monitorizare si inspectie",C.F. 1.1.163,2013-10-30T00:00:00,In implementare
45,3,2,3,1.0,40381,Un nou tip de parchet cu conductivitate termica ridicata din materiale compozitelemnoase cu insertii din aluminiu pentru sisteme de incalzire prin pardoseala /TERMO-FLOOR,PROD  ENERGY  FOTOVOLTAIC  S.R.L.,SUD-VEST OLTENIA,OLT,BOBICESTI,12359,4,28,5,413.0,2012-12-10T00:00:00,974929,832665,"Investitii in firme direct legate de cercetare si inovare (tehnologii inovatoare, infiintarea de noi firme de catre universitati, centre si firme C&DT existente)",1343.0,2012-01-05T00:00:00,In implementare
46,3,1,1,1.0,40473,Modernizarea activitatii companiei prin investitii,ACIU&RAM SRL,NORD-VEST,CLUJ,MUNICIPIUL CLUJ-NAPOCA,12615,6,12,52,524/3m,2012-03-01T00:00:00,1904108.57000000006519258022308349609375,1535571.42999999993480741977691650390625,Alte investitii in firme,574.0,2010-09-06T00:00:00,In implementare
47,3,1,1,1.0,40657,Fabricarea de componente din tabla zincata pentru cladiri,UNIVERSAL COMP PROD SRL,BUCURESTI - ILFOV,BUCURESTI,MUNICIPIUL BUCURESTI,3421,8,40,1,519/3m,2012-02-24T00:00:00,1876615.379999999888241291046142578125,1513399.5,Alte investitii in firme,563.0,2010-09-06T00:00:00,In implementare
48,3,3,1,1.0,40719,YOU PROGRAMMING ON-LINE,YOU - PROGRAMMING SRL ,VEST,TIMIS,MUNICIPIUL TIMISOARA,120494,5,35,54,710.0,2013-02-21T00:00:00,99359.33999999999650754034519195556640625,67803.5,Alte masuri pentru imbunatatirea accesului si utilizarea eficienta a TIC de catre IMM-uri,69.0,2011-01-05T00:00:00,In implementare
49,1,1,1.100000000000000088817841970012523233890533447265625,1.0,40802,Sistem integrat de parcari - parcare Spitalul Militar Regina Maria,Municipiul Brasov,CENTRU,BRASOV,MUNICIPIUL BRASOV,152,7,8,28,3717.0,2013-04-25T00:00:00,24336827.289999999105930328369140625,23943362.10999999940395355224609375,Drumuri locale/regionale,C/1/1.1/PC/28,2012-02-15T00:00:00,In implementare
50,3,3,1,1.0,40770,CRESTEREA PERFORMANTELOR ORGANIZATIEI LA STANDARDE EUROPENE PRIN INTERMEDIUL POS CCE,ASOCIATIA GLORIA DEI PENTRU DIALOG RELIGIOS SCHIMB CULTURAL SI PACE SOCIALA,NORD-VEST,SALAJ,MUNICIPIUL ZALAU,30016,6,31,38,713/311,2013-02-25T00:00:00,40122.6800000000002910383045673370361328125,31757,Alte masuri pentru imbunatatirea accesului si utilizarea eficienta a TIC de catre IMM-uri,200.0,2011-01-07T00:00:00,In implementare
51,3,2,3,3.0,41074,REALIZAREA INOVATIVA DE PRODUSE COMPOZITE TERMOPLASTICE CU PROPRIETATI SUPERIOARE DE ECRANARE ELECTROMAGNETICA PRIN RECICLAREA INTEGRATA A DESEURILOR ELECTRONICE,ALL GREEN SRL,NORD-EST,IASI,MUNICIPIUL IASI,553,1,22,57,460.0,2013-04-03T00:00:00,4019471,3498500,"Alte masuri pentru stimularea cercetarii, inovarii si antreprenoriatului in IMM -uri",1372.0,2012-02-10T00:00:00,In implementare
52,3,3,1,1.0,42650,Modernizarea infrastructurii IT&C a SC Laromet Metal SA Bucuresti,LAROMET METAL SA,BUCURESTI - ILFOV,BUCURESTI,MUNICIPIUL BUCURESTI,2452,8,40,1,843/311,2013-07-25T00:00:00,137097.5,108547.5,Alte masuri pentru imbunatatirea accesului si utilizarea eficienta a TIC de catre IMM-uri,2316.0,2011-02-14T00:00:00,In implementare
53,7,1,1.1999999999999999555910790149937383830547332763671875,***,40880,"Sustinerea dezvoltarii capacitatii de evaluare a personalului Unitatii Centrale de Evaluare prin participarea la conferinte, seminarii si cursuri in domeniul evaluarii",Unitatea Centrala de Evaluare,BUCURESTI - ILFOV,BUCURESTI,MUNICIPIUL BUCURESTI,42,8,40,1,DF 1.2.094,2012-03-22T00:00:00,646272,646272,"Pregatire, implementare, monitorizare si inspectie",CF 1.2.094,2012-02-17T00:00:00,In implementare
54,1,6,6.20000000000000017763568394002504646778106689453125,2.0,41085,Promovarea rezultatelor Regio 2012 -2013,MDRAP,BUCURESTI - ILFOV,BUCURESTI,MUNICIPIUL BUCURESTI,7235,8,40,1,36AT,2012-06-01T00:00:00,18991798.7399999983608722686767578125,15315966.72000000067055225372314453125,"Evaluare si studii, informare si comunicare",85544.0,2011-11-29T00:00:00,In implementare
55,1,6,6.0999999999999996447286321199499070644378662109375,1.0,40951,Srijin pentru Autoritatea de Management pentru POR in vederea asigurariii managementului si evaluarii POR pentru perioada 2012-2015,MDRAP,BUCURESTI - ILFOV,BUCURESTI,MUNICIPIUL BUCURESTI,7235,8,40,1,39AT,2012-11-01T00:00:00,27875720,27875720,"Pregatire, implementare, monitorizare si inspectie",15000.0,2012-02-28T00:00:00,In implementare
56,3,1,1,1.0,42567,CRESTEREA COMPETITIVITATII S.C. INSTANT CONSTRUCT COMPANY S.A. PRIN ACHIZITIA DE ECHIPAMENTE,INSTANT CONSTRUCT COMPANY SA,BUCURESTI - ILFOV,BUCURESTI,MUNICIPIUL BUCURESTI,13553,8,40,1,4m/400397/1,2013-11-06T00:00:00,1072340.6000000000931322574615478515625,676681.359999999986030161380767822265625,Alte investitii in firme,405.0,2012-05-10T00:00:00,In implementare
57,3,2,3,3.0,42479,Dezvoltarea si lansarea pe piata a unor servicii de inginerie si proiectare in domeniul vehiculelor electrice,Venqo Engineering SRL,NORD-EST,IASI,MUNICIPIUL IASI,13046,1,22,57,474.0,2013-05-30T00:00:00,4220776.84999999962747097015380859375,3499416,"Alte masuri pentru stimularea cercetarii, inovarii si antreprenoriatului in IMM -uri",1439.0,2012-04-18T00:00:00,In implementare
58,3,2,3,3.0,41089,"PROCEDEU TEHNOLOGIC INOVATIV DE OBTINERE A PLUMBULUI FAZA DESTINAT RAFINARII, IN CONDITII DE PROTECTIE A MEDIULUI",PRODMED INDUSTRIAL S.R.L.,BUCURESTI - ILFOV,BUCURESTI,MUNICIPIUL BUCURESTI,11432,8,40,1,469.0,2013-05-08T00:00:00,1750000,1518500,"Investitii in firme direct legate de cercetare si inovare (tehnologii inovatoare, infiintarea de noi firme de catre universitati, centre si firme C&DT existente)",1379.0,2012-02-15T00:00:00,In implementare
59,3,3,1,1.0,41672,Modernizarea infrastructurii TIC si undatarea internetului broadband la SC KAROMCONT SRL,KAROMCONT SRL,NORD-EST,IASI,MUNICIPIUL IASI,105826,1,22,57,814/311,2013-06-25T00:00:00,96538.33999999999650754034519195556640625,75153.5,Alte masuri pentru imbunatatirea accesului si utilizarea eficienta a TIC de catre IMM-uri,984.0,2011-01-21T00:00:00,In implementare
60,3,3,1,1.0,41663,Dezvoltarea infrastructurii IT in cadrul EUROCONF IMPEX S.R.L.,EUROCONF IMPEX S.R.L.,NORD-EST,IASI,MUNICIPIUL IASI,12470,1,22,57,826/311,2013-07-03T00:00:00,135899.66000000000349245965480804443359375,102846.5,Alte masuri pentru imbunatatirea accesului si utilizarea eficienta a TIC de catre IMM-uri,884.0,2011-01-20T00:00:00,In implementare
61,7,1,1.1999999999999999555910790149937383830547332763671875,***,41649,Imbunatatirea utilizarii evaluarii in procesul de formulare a politicilor si de luare a deciziilor in domeniul instrumentelor structurale in Romania,Unitatea Centrala de Evaluare,BUCURESTI - ILFOV,BUCURESTI,MUNICIPIUL BUCURESTI,42,8,40,1,DF 1.2.109,2012-07-30T00:00:00,1507096,1507096,"Evaluare si studii, informare si comunicare",CF 1.2.109,2012-04-19T00:00:00,In implementare
62,3,1,1,1.0,42383,"Dezvoltaea SC LIRA INST SRL prin achizitie de utilaje
",LIRA-INST SRL,NORD-EST,BOTOSANI,MIHAI EMINESCU,13461,1,7,39,4m/400194/2,2013-10-29T00:00:00,216529.25,174620.33999999999650754034519195556640625,Alte investitii in firme,289.0,2012-04-23T00:00:00,In implementare
63,3,1,1,1.0,42625,"CRESTEREA COMPETITIVITATII ECONOMICE PRIN ACHIZITIE DE UTILAJE LA S.C. ADICE S.R.L., LOC. BAND, JUD. MURES
", ADICE SRL,CENTRU,MURES,BAND,13578,7,26,11,4m/400302,2013-10-31T00:00:00,1891947.879999999888241291046142578125,1522785.540000000037252902984619140625,Alte investitii in firme,585.0,2012-06-27T00:00:00,In implementare
64,3,1,1,1.0,42644,Cresterea competitivitatii economice a S.C. Hidrotran S.R.L. prin achizitia de utilaje si echipamente, HIDROTRAN S.R.L.,CENTRU,HARGHITA,MUNICIPIUL MIERCUREA CIUC,13585,7,19,34,4m/42644,2013-11-08T00:00:00,1984206.23999999999068677425384521484375,1590966.32000000006519258022308349609375,Alte investitii in firme,378.0,2012-05-07T00:00:00,In implementare
65,3,1,1,1.0,42660,"DEZVOLTAREA DURABILA A SC CM ELIT CONSTRUCT SRL PRIN ACHIZITIE UTILAJE
",CM ELIT CONSTRUCT SRL,SUD-VEST OLTENIA,DOLJ,MUNICIPIUL CRAIOVA,13589,4,16,68,4m/400380/3,2013-11-05T00:00:00,1735094.07000000006519258022308349609375,1399269.41999999992549419403076171875,Alte investitii in firme,736.0,2012-06-18T00:00:00,In implementare
66,3,1,1,1.0,42366,"Cresterea competitivitatii economice prin diversificarea productiei in cadrul SC DOMUS SRL
",DOMUS SRL,SUD-VEST OLTENIA,GORJ,MUNICIPIUL TARGU JIU,4279,4,18,38,4m/400138/3,2013-10-07T00:00:00,812031.94999999995343387126922607421875,653563.079999999958090484142303466796875,Alte investitii in firme,99.0,2012-02-13T00:00:00,In implementare
67,3,1,1,1.0,42469,"RETEHNOLOGIZARE CONTINUA IN CADRUL SC PLASTICOM IMPEX SRL
",PLASTICOM IMPEX SRL,SUD - MUNTENIA,DÂMBOVITA,ORAS TITU,602,3,15,57,4m/400006/1,2013-09-05T00:00:00,2267960,1828000,Alte investitii in firme,159.0,2012-02-20T00:00:00,In implementare
68,3,3,1,1.0,41158,ÎMBUN¿T¿¿IREA INFRASTRUCTURII IT - INCLUSIV A ACCESULUI LA INTERNET,Asociatia de Dezvoltare Intercomunitara Bucuresti Ilfov,BUCURESTI - ILFOV,BUCURESTI,MUNICIPIUL BUCURESTI,5936,8,40,1,1830/311,2014-04-28T00:00:00,120527.380000000004656612873077392578125,87956.5,Infrastructuri de telefonie (inclusiv retele broadband),10912.0,2011-07-21T00:00:00,In implementare
69,3,2,3,3.0,41582,Algoritm inovativ de diagnostic si tratament in acnee,DR.IANOSI S.R.L.,SUD-VEST OLTENIA,DOLJ,MUNICIPIUL CRAIOVA,6899,4,16,68,456.0,2013-04-03T00:00:00,3319960,3289200,"Investitii in firme direct legate de cercetare si inovare (tehnologii inovatoare, infiintarea de noi firme de catre universitati, centre si firme C&DT existente)",1433.0,2012-04-05T00:00:00,In implementare
70,3,2,3,1.0,41588,REALIZAREA UNEI METODE INOVATIVE DE DIAGNOSTICARE SI MANAGEMENT A PACIENTILOR CU FIBRILATIE ATRIALA / DMFA,CARDIO LOGIC SRL,SUD-VEST OLTENIA,DOLJ,MUNICIPIUL CRAIOVA,12902,4,16,68,454.0,2013-04-03T00:00:00,857460.21999999997206032276153564453125,831748.71999999997206032276153564453125,"Investitii in firme direct legate de cercetare si inovare (tehnologii inovatoare, infiintarea de noi firme de catre universitati, centre si firme C&DT existente)",1436.0,2012-04-11T00:00:00,In implementare
71,3,1,1,1.0,42368,"Dezvoltarea productiei si cresterea competitivitatii prin achizitie de echipamente tehnologice performante
",ROMED SRL,NORD-EST,BOTOSANI,MUNICIPIUL BOTOSANI,10060,1,7,44,4m/400784/2,2013-12-02T00:00:00,1659120,1458000,Alte investitii in firme,129.0,2012-02-14T00:00:00,In implementare
72,3,1,1,1.0,42436,"Cresterea competitivitatii economice a S.C. LEMNOPROD S.R.L. prin achizitionarea de utilaje performante
",LEMNO PROD S.R.L.,SUD - MUNTENIA,DÂMBOVITA,BEZDEAD,13485,3,15,4,4m/400007/1,2013-09-05T00:00:00,282980.98999999999068677425384521484375,228210.48000000001047737896442413330078125,Alte investitii in firme,203.0,2012-03-28T00:00:00,In implementare
73,3,1,1,1.0,42602,"ACHIZITIE DE ECHIPAMENTE SI SOFTWARE PERFORMANTE IN CADRUL SC INTELIFORM SRL IN VEDEREA CRESTERII COMPETITIVITATII SI A PRODUCTIVITATII
",INTELIFORM,VEST,TIMIS,MUNICIPIUL TIMISOARA,4364,5,35,54,4m/400337/4,2013-11-04T00:00:00,1896998.15999999991618096828460693359375,1484284,Alte investitii in firme,456.0,2012-05-17T00:00:00,In implementare
74,3,3,1,1.0,41305,Infrastructura IT&C pentru comunitate,CENTRUL DE RESURSE ECONOMICE SI EDUCATIE PENTRU DEZVOLTARE,NORD-EST,NEAMT,DUMBRAVA ROSIE,120320,1,27,28,1027/311,2013-11-01T00:00:00,108018.880000000004656612873077392578125,87112,Alte masuri pentru imbunatatirea accesului si utilizarea eficienta a TIC de catre IMM-uri,11416.0,2011-07-29T00:00:00,In implementare
75,3,2,3,1.0,41199,Managementul performantelor individuale prin evalHR,PREMIA SOFTWARE SOLUTIONS S.R.L.,BUCURESTI - ILFOV,BUCURESTI,MUNICIPIUL BUCURESTI,11760,8,40,1,450.0,2013-03-19T00:00:00,967593,827457,"Asistenta pentru C&DT, in special pentru IMM-uri (inclusiv accesul la servicii C&DT in centrele de cercetare)",1385.0,2012-02-21T00:00:00,In implementare
76,3,1,1,1.0,42615,"CRESTEREA COMPETITIVITATII ECONOMICE SI A PRODUCTIVITATII SC ARDACO TEHNIC METAL SRL PRIN ACHIZITIA DE TEHNOLOGII DE PRODUCTIE PERFORMANTE
", ARDACO TEHNIC METAL SRL,SUD - MUNTENIA,ARGES,MUNICIPIUL CÂMPULUNG,13571,3,3,61,4m/400401/1,2013-11-06T00:00:00,1636736.71999999997206032276153564453125,1264503,Alte investitii in firme,794.0,2012-06-22T00:00:00,In implementare
77,3,1,1,1.0,42619,"Cresterea competitivitatii economice a S.C. TIPOGRAFIA DEICO S.R.L. prin achizitia unui echipament inalt tehnologizat specific fabricarii ambalajelor
",TIPOGRAFIA DEICO SRL,CENTRU,COVASNA,MUNICIPIUL SFÂNTU GHEORGHE,1964,7,14,28,4m/400537/6,2013-11-15T00:00:00,2239797.75999999977648258209228515625,1761266,Alte investitii in firme,214.0,2012-03-15T00:00:00,In implementare
78,3,1,1,1.0,42695,"Cresterea competitivitatii SC TAMISTEF SRL prin achizitia de noi utilaje performante
",TAMISTEF SRL,NORD-EST,BOTOSANI,MUNICIPIUL BOTOSANI,13603,1,7,44,4m/400359/2,2013-11-05T00:00:00,1695738.379999999888241291046142578125,1367530.94999999995343387126922607421875,Alte investitii in firme,791.0,2012-06-22T00:00:00,In implementare
79,3,1,1,1.0,42576,"Modernizarea procesului tehnologic prin achizitia de echipamente moderne
",ANCA ROM SRL,NORD-EST,BACAU,MUNICIPIUL BACAU,7158,1,4,47,4m/400144/2,2013-10-07T00:00:00,2195461.9799999999813735485076904296875,1750753.6000000000931322574615478515625,Alte investitii in firme,194.0,2012-03-01T00:00:00,In implementare
80,3,3,1,1.0,41317,AUDIT in SIGURANTA,ACTIV AUDIT S.R.L.,CENTRU,BRASOV,MUNICIPIUL BRASOV,120330,7,8,28,965/311,2013-10-11T00:00:00,85757.0599999999976716935634613037109375,69158.919999999998253770172595977783203125,Alte masuri pentru imbunatatirea accesului si utilizarea eficienta a TIC de catre IMM-uri,11742.0,2011-08-03T00:00:00,In implementare
81,3,3,3,1.0,46563,Cre¿terea eficien¿ei SC MODULEX GROUP SRL prin implementarea unui sistem informatic ERP,MODULEX GROUP SRL,BUCURESTI - ILFOV,BUCURESTI,MUNICIPIUL BUCURESTI,121808,8,40,1,1482/331,2013-12-23T00:00:00,546691.19999999995343387126922607421875,440030,"Servicii si aplicatii pentru IMM-uri (comert electronic, educatie si formare, networking, etc.)",15646.0,2011-10-26T00:00:00,In implementare
82,3,3,1,1.0,41230,IT&C pentru A.D.E.P.T,ASOCIATIA DREPTURI EGALE PENTRU TOTI,SUD-EST,GALATI,MUNICIPIUL GALATI,120134,2,17,35,914/311,2013-09-19T00:00:00,123471.5599999999976716935634613037109375,94815.619999999995343387126922607421875,Alte masuri pentru imbunatatirea accesului si utilizarea eficienta a TIC de catre IMM-uri,11624.0,2011-08-02T00:00:00,In implementare
83,3,2,3,1.0,42320,Dezvoltarea inovativa a SC W3 DEVELOPMENT SRL prin realizarea unei platforme integrate Business to Business si Business to Consumer tip e mall,W3 DEVELOPMENT SRL,CENTRU,BRASOV,MUNICIPIUL BRASOV,13337,7,8,28,462.0,2013-04-17T00:00:00,972580,831000,"Asistenta pentru C&DT, in special pentru IMM-uri (inclusiv accesul la servicii C&DT in centrele de cercetare)",1452.0,2012-05-25T00:00:00,In implementare
84,3,3,1,1.0,41841,Imbunatatirea servirii clientilor prin investitii in TIC,GRAFICOR S.R.L.,NORD-VEST,BIHOR,MUNICIPIUL ORADEA,5867,6,5,54,805/311,2013-06-10T00:00:00,42501,34275,Alte masuri pentru imbunatatirea accesului si utilizarea eficienta a TIC de catre IMM-uri,1122.0,2011-01-25T00:00:00,In implementare
85,3,2,3,1.0,41367,Dezvoltare si productie program pentru managementul bibliotecilor-Biblioteq,Asipa Net S.R.L.,VEST,TIMIS,MOSNITA NOUA,12986,5,35,52,444.0,2013-03-15T00:00:00,973616.80000000004656612873077392578125,831900,"Investitii in firme direct legate de cercetare si inovare (tehnologii inovatoare, infiintarea de noi firme de catre universitati, centre si firme C&DT existente)",1415.0,2012-03-19T00:00:00,In implementare
86,1,1,1.100000000000000088817841970012523233890533447265625,1.0,41958,"Cresterea accesibilitatii catre partea de nord a Polului de Crestere, in special catre Spitalul judetean Prahova, prin realizarea pasajului rutier in continuarea DJ102 peste DN1B",Consiliul Judetean Prahova,SUD - MUNTENIA,PRAHOVA,MUNICIPIUL PLOIESTI,66,3,29,56,3602.0,2013-01-11T00:00:00,93086157.79999999701976776123046875,77125927.560000002384185791015625,Drumuri locale/regionale,SM/1/1.1/PC/18,2012-05-17T00:00:00,In implementare
87,3,3,1,1.0,41808,Consolidarea microintreprinderii S.C. YUME PARTNERS SRL prin intensificarea utilizarii TIC,Yume Partners SRL,SUD-EST,CONSTANTA,MUNICIPIUL CONSTANTA,74970,2,13,39,773/311,2013-05-20T00:00:00,31602.639999999999417923390865325927734375,25286,Alte masuri pentru imbunatatirea accesului si utilizarea eficienta a TIC de catre IMM-uri,1158.0,2011-01-25T00:00:00,In implementare
88,3,2,3,1.0,42477,Realizarea unui software business revolutionar 5.0,SOFTSTUDIO SOLUTIONS SRL,NORD-VEST,BIHOR,MUNICIPIUL ORADEA,12156,6,5,54,467.0,2013-04-29T00:00:00,763520,752950,"Asistenta pentru C&DT, in special pentru IMM-uri (inclusiv accesul la servicii C&DT in centrele de cercetare)",1467.0,2012-06-18T00:00:00,In implementare
89,2,6,6.0999999999999996447286321199499070644378662109375,***,41510,Plata serviciilor de paza pentru OI POS Mediu Galati si OI POS Mediu Craiova în perioada 2012 - 2014,Ministerul Mediului si Schimbarilor Climatice,BUCURESTI - ILFOV,BUCURESTI,MUNICIPIUL BUCURESTI,14,8,40,1,1173.0,2012-04-04T00:00:00,53568,53568,"Pregatire, implementare, monitorizare si inspectie",22.0,2012-01-25T00:00:00,In implementare
90,3,5,2,***,42276,Sprijin pentru realizarea de de materiale promotionale specifice axei prioritare 3 POS CCE,Ministerul pentru Societatea Informationala - DG OI PSI,BUCURESTI - ILFOV,BUCURESTI,MUNICIPIUL BUCURESTI,27,8,40,1,159423.0,2011-12-08T00:00:00,307584,248051.609999999986030161380767822265625,"Pregatire, implementare, monitorizare si inspectie",214932.0,2010-11-26T00:00:00,In implementare
91,3,1,1,1.0,42358,"Cresterea capacitatii de productie prin achizitionarea de utilaje de constructii
",CONSIST AG SRL,SUD-VEST OLTENIA,DOLJ,MUNICIPIUL CRAIOVA,11783,4,16,68,4m/400177/3,2013-10-07T00:00:00,1155957.1899999999441206455230712890625,922623.540000000037252902984619140625,Alte investitii in firme,266.0,2012-04-25T00:00:00,In implementare
92,3,1,1,1.0,42446,DIVERSIFICAREA ACTIVITATILOR SC ELECTROGRUPAPARATAJ SA PRIN DEZVOLTARE INVESTITIONALÄ,ELECTROGRUPAPARATAJ  S.A.,SUD-VEST OLTENIA,VALCEA,BUDESTI,13491,4,38,6,4m/401094/3,2014-02-04T00:00:00,1405688.379999999888241291046142578125,1393475.9799999999813735485076904296875,Alte investitii in firme,225.0,2012-03-23T00:00:00,In implementare
93,3,3,1,1.0,41767,Imbunatatirea infrastructurii la SC ROMLOTUS INSTALATII SRL,ROMLOTUS INSTALATII SRL,SUD-EST,GALATI,MUNICIPIUL GALATI,83083,2,17,35,1257/311,2013-12-13T00:00:00,119926.60000000000582076609134674072265625,92965,Alte masuri pentru imbunatatirea accesului si utilizarea eficienta a TIC de catre IMM-uri,952.0,2011-01-21T00:00:00,In implementare
94,3,5,2,***,41648,Campanie nationala de promovare a rezultatelor proiectelor finantate prin programul POS CCE - Axa Prioritara 2,Autoritatea Nationala pentru Cercetare Stiintifica - DG Organism Intermediar pentru Cercetare,BUCURESTI - ILFOV,BUCURESTI,MUNICIPIUL BUCURESTI,26,8,40,1,225584.0,2012-01-30T00:00:00,7259456,7259456,"Evaluare si studii, informare si comunicare",225584.0,2012-01-30T00:00:00,In implementare
95,3,3,1,1.0,42405,Consolidarea infrastructurii TIC in cadrul SC Transilvania Production SRL,TRANSILVANIA PRODUCTION SRL,CENTRU,ALBA,ORAS CÂMPENI,5214,7,1,48,1026/331,2013-10-31T00:00:00,106540.800000000002910383045673370361328125,85920,Alte masuri pentru imbunatatirea accesului si utilizarea eficienta a TIC de catre IMM-uri,1806.0,2011-02-04T00:00:00,In implementare
96,3,1,1,1.0,43810,"CRESTEREA COMPETITIVITATII ECONOMICE A ACTIVITATII DE CONSTRUCTII DRUMURI IN CADRUL SC DANCOR AGRO PRODALIMENT SRL
",DANCOR AGRO PRODALIMENT SRL,SUD-VEST OLTENIA,OLT,REDEA,12702,4,28,75,4m/401103/3,2014-02-06T00:00:00,1886714.6000000000931322574615478515625,1521183.75,Alte investitii in firme,1179.0,2012-07-01T00:00:00,In implementare
97,1,1,1.100000000000000088817841970012523233890533447265625,1.0,40805,AMENAJAREA PLAJEI DIN ZONA NICOLINA,Municipiul Iasi,NORD-EST,IASI,MUNICIPIUL IASI,79,1,22,57,4054.0,2014-02-12T00:00:00,20354633.10999999940395355224609375,18656159.4800000004470348358154296875,Alte infrastructuri sociale,NE/1/1.1/PC/13/15.02.2012,2012-02-15T00:00:00,In implementare
98,3,1,1,1.0,42703,"Diversificarea activitatii societatii NEDYMON COM SRL prin achizitia unei linii de productie a peletilor din lemn
",NEDYMON COM SRL,NORD-EST,NEAMT,ALEXANDRU CEL BUN,13606,1,27,2,4m/400153/2,2013-10-07T00:00:00,954370.119999999995343387126922607421875,768713,Alte investitii in firme,450.0,2012-05-17T00:00:00,In implementare
99,3,1,1,1.0,42933,Optimizarea activitatii SC ROM-KISS SRL prin investitii,ROM-KISS SRL,SUD-VEST OLTENIA,DOLJ,MUNICIPIUL CRAIOVA,13712,4,16,68,4m/400390/3,2013-11-05T00:00:00,1173229.71999999997206032276153564453125,946153,Alte investitii in firme,648.0,2012-06-08T00:00:00,In implementare
100,3,1,1,1.0,42816,Cresterea competitivitatii economice la Sc Clemans SRL,clemans srl,SUD - MUNTENIA,ARGES,MUNICIPIUL PITESTI,6925,3,3,62,4m/401039/1,2014-01-09T00:00:00,2204499.200000000186264514923095703125,1774755.44999999995343387126922607421875,"Asist pt IMM-uri pentru promovarea produselor si proceselor de prod fara impact negativ asupra mediului (introducerea unui sistem eficient de mgt de mediu, adoptarea si folosirea tehnologiilor de prevenire a poluarii, integrarea tehn. curate in prod)",461.0,2012-05-18T00:00:00,In implementare
101,3,1,1,1.0,43218,",,Tehnologizare fabrica de echipamente electrice,,
",EUROELECTRIC SRL,VEST,HUNEDOARA,BARU,13833,5,20,6,4m/4000346/4,2013-11-04T00:00:00,1302000.0200000000186264514923095703125,1050000.01000000000931322574615478515625,Alte investitii in firme,163.0,2012-02-21T00:00:00,In implementare
102,3,1,1,1.0,42916,"DEZVOLTAREA FIRMEI PRIN ACHIZITIONAREA DE UTILAJE PERFORMANTE
",HARBAU SRL,CENTRU,HARGHITA,MUNICIPIUL MIERCUREA CIUC,13702,7,19,34,4m/400767,2013-11-29T00:00:00,1930600.92999999993480741977691650390625,1556936.23999999999068677425384521484375,Alte investitii in firme,771.0,2012-06-20T00:00:00,In implementare
103,3,1,1,1.0,42929,MODERNIZAREA SI DEZVOLTAREA ACTIVITATII SC ALCAROM SRL PRIN ACHIZITII DE UTILAJE DE ULTIMA GENERSTIE IN SCOPUL CRESTERII PRODUCTIVITATII SI COMPETITIVITATII,ALCAROM S.R.L.,NORD-EST,SUCEAVA,ORAS GURA HUMORULUI,8209,1,33,71,4m/400355/2,2013-11-04T00:00:00,1876445.459999999962747097015380859375,1817545.459999999962747097015380859375,Alte investitii in firme,732.0,2012-06-18T00:00:00,In implementare
104,3,3,1,1.0,37574,Acces online pentru dezvoltarea activitatii Ascent Soft SRL						,ASCENT SOFT SRL,VEST,TIMIS,MUNICIPIUL TIMISOARA,13977,5,35,54,559/311,2012-08-23T00:00:00,132345.2000000000116415321826934814453125,106730,Alte masuri pentru imbunatatirea accesului si utilizarea eficienta a TIC de catre IMM-uri,8512.0,2010-12-28T00:00:00,In implementare
105,3,1,1,1.0,42992,ACHIZITIONARE MASINA PRODUS CARTON ONDULAT IN CADRUL SC PENTAROM SRL,PENTAROM SRL,SUD - MUNTENIA,ARGES,MUNICIPIUL CÂMPULUNG,668,3,3,61,4m/400652/1,2013-11-22T00:00:00,2208994.0299999997951090335845947265625,1781446.80000000004656612873077392578125,Alte investitii in firme,686.0,2012-06-13T00:00:00,In implementare
106,3,1,1,1.0,43119,"Modernizarea firmei DUO PART AUTOCOM SRL prin achizitionarea de utilaje performante pentru fabricarea articolelor de ambalaj din material plastic
",DUO PART AUTOCOM SRL,SUD - MUNTENIA,ARGES,MUNICIPIUL PITESTI,13791,3,3,62,4m/400802/1,2013-12-03T00:00:00,1891358.63999999989755451679229736328125,1521386,Alte investitii in firme,810.0,2012-06-22T00:00:00,In implementare
107,3,1,1,1.0,43013,Cresterea competitivitatii prin achizitionarea unei prese de tipar digital si a unei masini pentru productia publicitara la SC Tipo-Rex Service SRL,TIPO-REX SERVICE SRL,CENTRU,ALBA,MUNICIPIUL ALBA IULIA,13731,7,1,39,4m/400116/6,2013-10-03T00:00:00,1057366,853182,Alte investitii in firme,824.0,2012-06-25T00:00:00,In implementare
108,3,1,1,1.0,43052,Cresterea competitivitatii societatii prin achizitia de tehnologii destinate productiei de mobilier de gradina,BUCIN MOB SRL,CENTRU,MURES,MUNICIPIUL REGHIN,3033,7,26,57,4m/400237/6,2013-10-30T00:00:00,2271647.370000000111758708953857421875,1746554.65999999991618096828460693359375,Alte investitii in firme,805.0,2012-06-22T00:00:00,In implementare
109,3,1,1,1.0,42987,"CRESTEREA PRODUCTIVITATII, CALITATII PRODUCTIEI SI IMBUNATATIREA CONDITIILOR DE MUNCA LA S.C. CAROLA CONF S.R.L. BAIA MARE",CAROLA CONF SRL,NORD-VEST,MARAMURES,MUNICIPIUL BAIA MARE,13735,6,24,36,4m/400257/5,2013-10-30T00:00:00,380000,300000,Alte investitii in firme,669.0,2012-06-11T00:00:00,In implementare
110,4,5,5.20000000000000017763568394002504646778106689453125,***,43361,"Program integrat de masuri de ocupare, formare si sprijin pentru populatia rurala din judetul Timis",FUNDA&#538;IA &#536;COALA DE AFACERI &#536;I MESERII TIMI&#536;OARA SAM TIMI&#536;OARA,VEST,TIMIS,MUNICIPIUL TIMISOARA,9878,5,35,54,POSDRU/110/5.2/G/87553,2012-01-17T00:00:00,1204050,1204050,Implementarea de masuri active si preventive pe piata muncii,11407.0,2010-11-11T00:00:00,In implementare
111,3,1,1,1.0,43677,"Modernizarea activitatii economice si cresterea competitivitatii societatii ARGIF SA
",ARGIF SA,SUD - MUNTENIA,ARGES,MUNICIPIUL PITESTI,3228,3,3,62,4m/400628/1,2013-11-22T00:00:00,1830124,1467917,Alte investitii in firme,1189.0,2012-07-02T00:00:00,In implementare
112,3,1,1,1.0,43747,"Dotarea firmei S.C. NIC&M IMPEX S.R.L.cu echipamente specializate, in vederea cresterii competitivitatii
",NIC&M IMPEX S.R.L.,CENTRU,SIBIU,CRISTIAN,14125,7,32,16,4m/400667/6,2013-11-25T00:00:00,1656101,1323437,Alte investitii in firme,1442.0,2012-07-10T00:00:00,In implementare
113,3,1,1,1.0,43275,"Cresterea competitivitatii societatii FORTZA.RO SRL prin crearea unei fabrici de producere a schelelor metalice
", FORTZA.RO SRL,CENTRU,SIBIU,MUNICIPIUL MEDIAS,13849,7,32,32,4m/400227/6,2013-10-30T00:00:00,2946110.7200000002048909664154052734375,1374068.41999999992549419403076171875,Alte investitii in firme,910.0,2012-06-28T00:00:00,In implementare
114,4,5,5.20000000000000017763568394002504646778106689453125,***,43797,"Masuri integrate de ocupare in sectorul turismului din zona rurala, regiunea Nord -Est",ASOCIATIA Q-PROFESSIONALS  ,NORD-EST,SUCEAVA,IPOTESTI,14045,1,33,52,POSDRU/110/5.2/G/88591,2011-12-12T00:00:00,1921263,1921263,Implementarea de masuri active si preventive pe piata muncii,88591.0,2010-11-10T00:00:00,In implementare
115,3,1,1,1.0,43053,RETEHNOLOGIZAREA SC INTERNATIONAL CONNECTION SRL PRIN ACHIZITIA DE MASINI ELECTRONICE DE TRICOTAT PERFORMANTE, INTERNATIONAL CONNECTION SRL,NORD-EST,IASI,MUNICIPIUL IASI,5406,1,22,57,4m/400926/2,2013-12-11T00:00:00,1886350.33000000007450580596923828125,1521250.26000000000931322574615478515625,Alte investitii in firme,899.0,2012-06-27T00:00:00,In implementare
116,3,1,1,1.0,43400,"ACHIZITIE DE ECHIPAMENTE TEHNOLOGICE IN CADRUL SC SAVIROD SRL SUCEAVA
", Savirod SRL,NORD-EST,SUCEAVA,MUNICIPIUL SUCEAVA,13920,1,33,64,4m/400370/2,2013-11-05T00:00:00,1749437.2700000000186264514923095703125,1399667.76000000000931322574615478515625,Alte investitii in firme,945.0,2012-06-29T00:00:00,In implementare
117,3,1,1,1.0,43876,"Cresterea competitivitatii SC HIDRO-ARGES SRL prin achizitia de utilaje pentru productia betonului
",HIDRO-ARGES SRL,SUD - MUNTENIA,ARGES,MUNICIPIUL PITESTI,3262,3,3,62,4m/400942/1,2013-12-12T00:00:00,2181188,1756200,Alte investitii in firme,169.0,2012-02-22T00:00:00,In implementare
118,4,5,5.20000000000000017763568394002504646778106689453125,***,43676,Spatiul rural ¿ izvor de resurse pentru piata muncii si antreprenoriat,Federatia Nationala a Producatorilor Agricoli din Romania,BUCURESTI - ILFOV,BUCURESTI,MUNICIPIUL BUCURESTI,7436,8,40,1,POSDRU/110/5.2/G/86764,2012-07-09T00:00:00,2060972,2060972,Implementarea de masuri active si preventive pe piata muncii,86764.0,2010-11-15T00:00:00,In implementare
119,3,1,1,1.0,44076,"DEZVOLTAREA DURABILA A SC AUTORO SRL PRIN ACHIZITIE UTILAJE
", AUTORO SRL,SUD-VEST OLTENIA,VALCEA,MUNICIPIUL RAMNICU VALCEA,22967,4,38,44,4m/400909/3,2013-12-11T00:00:00,1714330.59000000008381903171539306640625,1381718.21999999997206032276153564453125,Alte investitii in firme,1401.0,2012-07-06T00:00:00,In implementare
120,2,4,4.0999999999999996447286321199499070644378662109375,***,43274,Elaborarea Planului de Management pentru sitului Natura 2000 ROSPA0137 Padurea Radomir si constientizarea necesitatii protectiei ariei naturale protejate,Asociatia Tineret pentru Dezvoltare Comunitara,SUD-VEST OLTENIA,DOLJ,MUNICIPIUL CRAIOVA,13648,4,16,68,141064.0,2013-06-17T00:00:00,849448.099999999976716935634613037109375,849448.099999999976716935634613037109375,Promovarea biodiversitatii si protectia naturii (inclusiv NATURA 2000),2744.0,2012-07-18T00:00:00,In implementare
121,3,1,1,1.0,42925,"DEZVOLTAREA ACTIVITATII S.C. FUNDAMENTA S.R.L.
",FUNDAMENTA SRL,CENTRU,HARGHITA,MUNICIPIUL  GHEORGHENI,6239,7,19,32,4m/400750,2013-11-29T00:00:00,2201556.75999999977648258209228515625,1772749,Alte investitii in firme,942.0,2012-06-29T00:00:00,In implementare
122,3,1,1,1.0,42711,"Extinderea activitatii prin achizitia de utilaje
", Gironap Prod SA,NORD-EST,BACAU,MUNICIPIUL ONESTI,13611,1,4,49,4m/400589/2,2013-11-20T00:00:00,2198754.4399999999441206455230712890625,1768801.15999999991618096828460693359375,Alte investitii in firme,526.0,2012-05-29T00:00:00,In implementare
123,3,1,1,1.0,42759,"Cresterea productivitatii muncii SC ROMTURINGIA SRL prin achizitia de utilaje performante
",ROMTURINGIA SRL,SUD - MUNTENIA,ARGES,MUNICIPIUL CÂMPULUNG,395,3,3,61,4m/400005/1,2013-09-05T00:00:00,2247400,1775000,Alte investitii in firme,157.0,2012-07-10T00:00:00,In implementare
124,3,1,1,1.0,43242,"Cresterea competitivitatii economice a S.C. Vamilex S.R.L. prin achizitia de echipamente destinate fabricarii produselor din lemn
",VAMILEX SRL,CENTRU,SIBIU,AXENTE SEVER,13843,7,32,6,4m/400207,2013-10-30T00:00:00,1368217.879999999888241291046142578125,1050196.63999999989755451679229736328125,Alte investitii in firme,869.0,2012-06-26T00:00:00,In implementare
125,1,5,5.29999999999999982236431605997495353221893310546875,1.0,43182,Activitati de promovare si consolidare a branduluii turistic national,MDRAP,BUCURESTI - ILFOV,BUCURESTI,MUNICIPIUL BUCURESTI,7235,8,40,1,3478.0,2012-09-03T00:00:00,4714144.40000000037252902984619140625,4714144.40000000037252902984619140625,Promovarea patrimoniului natural,BI/1/5/5.3/A/763/30.07.2012,2012-07-30T00:00:00,In implementare
126,2,4,4.0999999999999996447286321199499070644378662109375,***,42777,Conservarea biodiversitatii in situl Natura 2000 ROSPA0141 Subcarpatii Vrancei,ASOCIATIA UNA E NATURA,SUD-EST,VRANCEA,MUNICIPIUL FOCSANI,11308,2,39,32,141020.0,2013-06-14T00:00:00,4228760.639999999664723873138427734375,4228760.639999999664723873138427734375,Promovarea biodiversitatii si protectia naturii (inclusiv NATURA 2000),3262.0,2012-07-02T00:00:00,In implementare
127,2,4,4.0999999999999996447286321199499070644378662109375,***,43507,Conservarea patrimoniului natural al sitului de importanta comunitara Raul Vedea,Agentia Romana de Consultanta,BUCURESTI - ILFOV,BUCURESTI,MUNICIPIUL BUCURESTI,2079,8,40,1,141052.0,2013-06-17T00:00:00,2177573,2177573,Promovarea biodiversitatii si protectia naturii (inclusiv NATURA 2000),2422.0,2012-07-02T00:00:00,In implementare
128,3,3,1,1.0,43233,Retehnologizarea sistemului IT in vederea cresterii competitivitatii SC NORTH DETECTIVES SRL,NORTH DETECTIVES S.R.L. ,NORD-VEST,MARAMURES,MUNICIPIUL BAIA MARE,120681,6,24,36,1132/311,2013-12-03T00:00:00,130833.33999999999650754034519195556640625,103035.759999999994761310517787933349609375,Alte masuri pentru imbunatatirea accesului si utilizarea eficienta a TIC de catre IMM-uri,3044.0,2011-03-01T00:00:00,In implementare
129,3,3,1,1.0,43007,Imbunatatirea infrastructurii IT a firmei ORBIS SRL pentru cresterea competitivitatii,ORBIS SRL,NORD-VEST,CLUJ,MUNICIPIUL CLUJ-NAPOCA,83881,6,12,52,976/311,2013-10-16T00:00:00,24454.0400000000008731149137020111083984375,11553,Alte masuri pentru imbunatatirea accesului si utilizarea eficienta a TIC de catre IMM-uri,2628.0,2011-02-21T00:00:00,In implementare
130,2,4,4.0999999999999996447286321199499070644378662109375,***,43509,Managementul sitului Natura 2000: Platforma Cotmeana,"Asociatia Romana pentru Cultura, Educatie si Sport",BUCURESTI - ILFOV,BUCURESTI,MUNICIPIUL BUCURESTI,11267,8,40,1,141033.0,2013-06-17T00:00:00,2470799,2470799,Promovarea biodiversitatii si protectia naturii (inclusiv NATURA 2000),2424.0,2012-07-02T00:00:00,In implementare
131,3,1,1,1.0,42997,"ACHIZITIE UTILAJ-STATIE PERFORMANTA SEMI-MOBILA DE SORTARE-SPALARE
",MATERO - AMA  SRL,SUD - MUNTENIA,PRAHOVA,MUNICIPIUL CÂMPINA,3095,3,29,55,4m/400021/1,2013-09-05T00:00:00,1725829.09000000008381903171539306640625,1391797.6499999999068677425384521484375,Alte investitii in firme,705.0,2012-06-14T00:00:00,In implementare
132,3,1,1,1.0,42783,Cresterea eficientei si a calitatii activitatii de productie in cadrul societatii PROAMB SRL,PROAMB SRL,BUCURESTI - ILFOV,BUCURESTI,MUNICIPIUL BUCURESTI,9320,8,40,1,4m/400617/1,2013-11-21T00:00:00,943777.880000000004656612873077392578125,760187,Alte investitii in firme,425.0,2012-05-14T00:00:00,In implementare
133,3,1,1,1.0,43727,"Achizitie sistem robotizat de sudura, sistem de absorbtie a noxelor, stationar, cu filtru electrostatic si doua brate de absorbtie rigide din metal si scule si dispozitive, prin proiecte de investitii mici prin POSCCE 2011, fonduri europene
",TELETIM SRL,VEST,TIMIS,MUNICIPIUL TIMISOARA,14111,5,35,54,4m/400551/4,2013-11-18T00:00:00,1161294.84000000008381903171539306640625,930028.099999999976716935634613037109375,Alte investitii in firme,1191.0,2012-07-06T00:00:00,In implementare
134,3,1,1,1.0,43434,"Modernizarea procesului de productie a societatii 4M MP SRL in vederea cresterii competitivitatii si a productivitatii
",4M MP SRL,CENTRU,SIBIU,MUNICIPIUL SIBIU,13935,7,32,33,4m/400291,2013-10-31T00:00:00,898197.2700000000186264514923095703125,720955.640000000013969838619232177734375,Alte investitii in firme,1046.0,2012-06-29T00:00:00,In implementare
135,3,1,1,1.0,44065,"Extindere atelier mecanic (prin achizitie, fara constructii, montaj) si achizitionarea si punerea în functiune a unui echipament de masurare si monitorizare (masina de masura în coordonate 3D cu comanda numerica)
",METAGALAX SRL,CENTRU,HARGHITA,MUNICIPIUL MIERCUREA CIUC,336,7,19,34,4m/440663,2013-11-25T00:00:00,573167.48999999999068677425384521484375,515610.630000000004656612873077392578125,Alte investitii in firme,1146.0,2012-07-10T00:00:00,In implementare
136,3,1,1,1.0,43591,"DEZVOLTAREA ACTIVITATII ECONOMICE IN DOMENIUL PRELUCRARII LEMNULUI LA ESTERER SRL
",ESTERER SRL,CENTRU,HARGHITA,PRAID,14017,7,19,45,4m/400745/6,2013-11-29T00:00:00,1305944.6899999999441206455230712890625,1048010.19999999995343387126922607421875,Alte investitii in firme,1185.0,2012-07-03T00:00:00,In implementare
137,3,2,3,2.0,44121,INFRASTRUCTURA DE CERCETARE IN DOMENIUL CARDIOLOGIC / ACRONIM: CARDIO,CARDIOMED SRL,SUD-VEST OLTENIA,DOLJ,MUNICIPIUL CRAIOVA,5646,4,16,68,592.0,2013-10-11T00:00:00,7945872,6428742,"Investitii in firme direct legate de cercetare si inovare (tehnologii inovatoare, infiintarea de noi firme de catre universitati, centre si firme C&DT existente)",1568.0,2012-09-06T00:00:00,In implementare
138,4,5,5.20000000000000017763568394002504646778106689453125,***,43930,Cresterea competentelor anteprenoriale in zonele rurale,Centrul European pentru Integrarea si Promovarea Romilor,SUD-VEST OLTENIA,DOLJ,MUNICIPIUL CRAIOVA,1758,4,16,68,POSDRU/110.5.2/89513,2011-12-13T00:00:00,2122790,2122790,Implementarea de masuri active si preventive pe piata muncii,"",2010-11-11T00:00:00,In implementare
139,4,5,5.20000000000000017763568394002504646778106689453125,***,43926,Sanse egale de ocupare in mediul rural,Centrul European pentru Integrarea si Promovarea Romilor,SUD-VEST OLTENIA,DOLJ,MUNICIPIUL CRAIOVA,1758,4,16,68,POSDRU/110/5.2/89376,2011-12-13T00:00:00,2122790,2122790,Implementarea de masuri active si preventive pe piata muncii,"",2010-11-11T00:00:00,In implementare
140,3,1,1,1.0,43099,"Achizitie utilaje in vederea diversificarii activitatii in cadrul societatii S.C. OBLOMOV C.E.D. S.R.L., Loc. Brasov, jud. Brasov
",OBLOMOV C.E.D. SRL,CENTRU,BRASOV,MUNICIPIUL BRASOV,13310,7,8,28,4m/400674,2013-11-25T00:00:00,1731326.3999999999068677425384521484375,1393860,Alte investitii in firme,861.0,2012-06-29T00:00:00,In implementare
141,3,1,1,1.0,43389,"CRESTEREA COMPETITIVITATII S.C. TRICOMSERV S.A. PRIN ACHIZITIA DE ECHIPAMENTE SPECIFICE INALT TEHNOLOGIZATE
",TRICOMSERV S.A.,CENTRU,COVASNA,MUNICIPIUL SFÂNTU GHEORGHE,291,7,14,28,4m/400208,2013-10-30T00:00:00,1003193.98999999999068677425384521484375,773398.420000000041909515857696533203125,Alte investitii in firme,925.0,2012-06-28T00:00:00,In implementare
142,3,2,3,1.0,42822,Asistent virtual personal pentru comunicatii bazate pe context V3,INTUITIVE SOFTWARE SRL,VEST,TIMIS,MUNICIPIUL TIMISOARA,13473,5,35,54,446.0,2013-03-15T00:00:00,909193.26000000000931322574615478515625,800886.5,"",1482.0,2012-07-05T00:00:00,In implementare
143,3,1,1,1.0,43112,"ACHIZITII SPECIFICE PENTRU MODERNIZARE SI EXTINDERE
",TINA PRODCOM SRL,SUD-EST,BUZAU,MUNICIPIUL BUZAU,13785,2,10,44,4m/400894,2013-12-09T00:00:00,871815.9399999999441206455230712890625,495328.0200000000186264514923095703125,Alte investitii in firme,833.0,2012-05-26T00:00:00,In implementare
144,4,5,5.20000000000000017763568394002504646778106689453125,***,43050,Competitivitate pe piata muncii prin policalificare in mediul rural,LEXIM GRUP SRL ,VEST,HUNEDOARA,MUNICIPIUL DEVA,3061,5,20,37,POSDRU/110/5.2/G/87211,2011-12-14T00:00:00,2126354,2126354,Implementarea de masuri active si preventive pe piata muncii,11070.0,2010-11-10T00:00:00,In implementare
145,3,1,1,1.0,43360,"DEZVOLTAREA DURABILA A SC MARIAD INTERCONS SRL PRIN ACHIZITIE DE UTILAJE
", MARIAD INTERCONS SRL,SUD-VEST OLTENIA,OLT,MUNICIPIUL SLATINA,13889,4,28,54,4m/400567/3,2013-11-19T00:00:00,1664362.73999999999068677425384521484375,1342228.0200000000186264514923095703125,Alte investitii in firme,909.0,2012-07-04T00:00:00,In implementare
146,3,1,1,1.0,43363,"ACHIZITIE UTILAJE PENTRU DEZVOLTAREA DURABILA SI CRESTEREA PRODUCTIVITATII FIRMEI SC OLT-SIACO SRL
",OLT-SIACO SRL,SUD-VEST OLTENIA,OLT,TESLUI,13107,4,28,94,4m/400902/3,2013-12-11T00:00:00,2112058.3399999998509883880615234375,1702466.3999999999068677425384521484375,Alte investitii in firme,954.0,2012-07-04T00:00:00,In implementare
147,3,3,1,1.0,43750,Dezvoltarea infrastructurii TIC la Prestarea Societate Cooperativa,PRESTAREA SOCIETATE COOPERATIVA,CENTRU,HARGHITA,MUNICIPIUL MIERCUREA CIUC,120536,7,19,34,905/311,2013-09-16T00:00:00,98447.3200000000069849193096160888671875,79293,Infrastructuri de telefonie (inclusiv retele broadband),3778.0,2011-03-17T00:00:00,In implementare
148,3,1,1,1.0,43980,"Retehnologizare ALEX & CO SA
",ALEX&CO SA,CENTRU,COVASNA,CHICHIS,277,7,14,14,4m/400477/6,2013-11-08T00:00:00,2187826.74000000022351741790771484375,1764376.3999999999068677425384521484375,Alte investitii in firme,1370.0,2012-07-05T00:00:00,In implementare
149,4,5,5.20000000000000017763568394002504646778106689453125,***,43110,Calificare si antreprenoriat - alternative pentru persoaneie inactive din mediul rural,FUNDATIA ROMANO GERMANA CENTRU DE PREGATIRE SI PERFECTIONARE PROFESIONALA VLADIMIRESCU,VEST,ARAD,VLADIMIRESCU,1384,5,2,72,POSDRU/110/5/2/G/89194,2012-01-24T00:00:00,1908919.9399999999441206455230712890625,1779173.9399999999441206455230712890625,Implementarea de masuri active si preventive pe piata muncii,11788.0,2010-11-12T00:00:00,In implementare
150,3,1,1,1.0,44088,"CRESTEREA COMPETITIVITATII COMPANIEI SC ASUC INT SRL PRIN ACHIZITIA DE UTILAJE PERFORMANTE
",ASUC INT SRL,NORD-VEST,MARAMURES,MUNICIPIUL BAIA MARE,24297,6,24,36,4m/400015/1,2013-09-05T00:00:00,1800735.80000000004656612873077392578125,1392145.370000000111758708953857421875,Alte investitii in firme,1476.0,2012-07-06T00:00:00,In implementare
151,3,5,1,***,43203,Sprijin pentru organizarea celor 2 reuniuni ale Comitetului de Monitorizare AM POS CCE in anul 2012,"Ministerul Economiei, Comertului si Mediului de Afaceri",BUCURESTI - ILFOV,BUCURESTI,MUNICIPIUL BUCURESTI,9127,8,40,1,229630.0,2012-07-02T00:00:00,177330.17000000001280568540096282958984375,177330.17000000001280568540096282958984375,"Pregatire, implementare, monitorizare si inspectie",229630.0,2012-07-02T00:00:00,In implementare
152,4,5,5.20000000000000017763568394002504646778106689453125,***,44056,Imbunatatirea accesului somerilor la piata muncii,ANTREC Filiala Alba Iulia,CENTRU,ALBA,MUNICIPIUL ALBA IULIA,1197,7,1,39,POSDRU/110/5.2/G/87089,2012-01-24T00:00:00,2279527.6000000000931322574615478515625,2106178.6000000000931322574615478515625,Implementarea de masuri active si preventive pe piata muncii,"",2012-01-01T00:00:00,In implementare
153,4,5,5.20000000000000017763568394002504646778106689453125,***,43932,SAT-SUSTENABIL - Program de calificare si formare  pentru somerii din mediul rural,PAIDEA S.R.L,SUD-VEST OLTENIA,GORJ,MUNICIPIUL TARGU JIU,12924,4,18,38,POSDRU/110/5.2/89427,2011-11-22T00:00:00,2064084.30000000004656612873077392578125,2064084.30000000004656612873077392578125,Implementarea de masuri active si preventive pe piata muncii,"",2010-11-11T00:00:00,In implementare
154,3,1,1,1.0,44022,"Achizitia de echipamente inalt tehnologizate pentru activitatea de productie parti componente structuri metalice in cadrul firmei SC NILGOM SRL
",NILGOM SRL,NORD-EST,IASI,MUNICIPIUL IASI,17381,1,22,57,4m/400045/2,2013-09-06T00:00:00,1626784.46999999997206032276153564453125,1272755.05000000004656612873077392578125,Alte investitii in firme,1423.0,2012-07-06T00:00:00,In implementare
155,3,1,1,1.0,43675,"Dezvoltarea societatii GRATII SERV prin crearea unei unitati de productie
",Grati Serv SRL,CENTRU,MURES,MUNICIPIUL TÂRGU MURES,13051,7,26,59,4m/400675/6,2013-11-25T00:00:00,332661,223936.66000000000349245965480804443359375,Alte investitii in firme,1143.0,2012-06-30T00:00:00,In implementare
156,2,4,4.0999999999999996447286321199499070644378662109375,***,43852,Managementul si protectia biodiversitatii in aria naturala protejata de importanta comunitara ROSCI0202 Silvostepa Olteniei,Grupul pentru Promovarea Tineretului Oltenia Stefanescu Mihai,SUD-VEST OLTENIA,DOLJ,MUNICIPIUL CRAIOVA,13954,4,16,68,141065.0,2013-06-17T00:00:00,1317648.3999999999068677425384521484375,1317648.3999999999068677425384521484375,Promovarea biodiversitatii si protectia naturii (inclusiv NATURA 2000),2913.0,2012-07-31T00:00:00,In implementare
157,4,5,5.20000000000000017763568394002504646778106689453125,***,43929,Dezvoltare durabila in comunitati rurale,ROMAIR CONSULTING S.R.L.,BUCURESTI - ILFOV,BUCURESTI,MUNICIPIUL BUCURESTI,9978,8,40,1,POSDRU/110/5.2/89203,2012-01-27T00:00:00,2125105.3999999999068677425384521484375,2125105.3999999999068677425384521484375,Implementarea de masuri active si preventive pe piata muncii,"",2010-11-12T00:00:00,In implementare
158,3,1,1,1.0,43874,"Cresterea competitivitatii SC ADU LESTER EXPRES SRL prin achizitia de utilaje pentru prelucrarea lemnului
", ADU LESTER EXPRES SRL,SUD - MUNTENIA,ARGES,COSESTI,14163,3,3,33,4m/400410/1,2013-11-06T00:00:00,1889067,1521425,Alte investitii in firme,206.0,2012-03-11T00:00:00,In implementare
159,4,5,5.20000000000000017763568394002504646778106689453125,***,44714,¿Centru mobil de ocupare si formare profesionala in domenii non-agricole ¿ LA UN PAS DE TINE!¿,ASOCIATIA CENTRUL DE DEZVOLTARE SMART,SUD-EST,GALATI,MUNICIPIUL GALATI,3555,2,17,35,POSDRU/110/5.2/G/87180,2011-11-30T00:00:00,2393596,2124034,Implementarea de masuri active si preventive pe piata muncii,"",2010-11-09T00:00:00,In implementare
160,4,5,5.20000000000000017763568394002504646778106689453125,***,44575,SIS - Sprijin integrat pentru somerii din zona rurala,SIRENA TRADE S.R.L.,SUD-EST,BRAILA,MUNICIPIUL BRAILA,14023,2,9,19,POSDRU/110/5.2/G/87020,2011-12-09T00:00:00,2084030,1953516,Implementarea de masuri active si preventive pe piata muncii,"",2010-11-09T00:00:00,In implementare
161,3,2,3,2.0,44023,Dezvoltarea si modernizarea unui centru regional de informatica aplicata -CERIA,Compania de Informatica Aplicata SA ,NORD-VEST,CLUJ,MUNICIPIUL CLUJ-NAPOCA,13914,6,12,52,551.0,2013-09-02T00:00:00,11929365,8992410,"Investitii in firme direct legate de cercetare si inovare (tehnologii inovatoare, infiintarea de noi firme de catre universitati, centre si firme C&DT existente)",1542.0,2012-08-17T00:00:00,In implementare
162,3,3,1,1.0,42071,Cresterea copetitivitatii Senior Accounting Services prin tehnologia informatiei,SENIOR ACCOUNTING SERVICES SRL,BUCURESTI - ILFOV,BUCURESTI,MUNICIPIUL BUCURESTI,13312,8,40,1,801/311,2013-06-06T00:00:00,116290.300000000002910383045673370361328125,93782.5,Alte masuri pentru imbunatatirea accesului si utilizarea eficienta a TIC de catre IMM-uri,1278.0,2011-01-26T00:00:00,In implementare
163,1,5,5.20000000000000017763568394002504646778106689453125,5.0,44978,"REABILITARE SI MODERNIZARE BAI CARBOGAZOASE BIBORTENI, ORAS BARAOLT",ORASUL BARAOLT,CENTRU,COVASNA,ORAS BARAOLT,94787,7,14,31,4035.0,2014-01-28T00:00:00,5537373.440000000409781932830810546875,5033249.280000000260770320892333984375,Alte masuri de asistenta pentru imbunatatirea serviciilor turistice,C/62/5/5.2/1016/23.10.2012,2012-10-23T00:00:00,In implementare
164,3,1,1,1.0,44555,Cresterea Competivitatii societatii ENOVA MECHANICS SRL prin achizitia de utilaje performante,ENOVA MECHANICS SRL,SUD-VEST OLTENIA,GORJ,ORAS ROVINARI,76300,4,18,43,4m/400570/3,2013-11-19T00:00:00,1428190.3999999999068677425384521484375,1135814.1899999999441206455230712890625,Alte investitii in firme,2079.0,2012-07-24T00:00:00,In implementare
165,4,5,5.20000000000000017763568394002504646778106689453125,***,43933,Dezvoltare durabila in comunitati rurale,ROMAIR CONSULTING S.R.L.,BUCURESTI - ILFOV,BUCURESTI,MUNICIPIUL BUCURESTI,9978,8,40,1,POSDRU/110/5.2/89611,2012-01-27T00:00:00,2125105.3999999999068677425384521484375,2125105.3999999999068677425384521484375,Implementarea de masuri active si preventive pe piata muncii,"",2010-11-12T00:00:00,In implementare
166,3,1,1,1.0,44055,"Cresterea competitivitatii societatii prin achizitia de noi utilaje performante
",EURO BUSINES SRL,CENTRU,BRASOV,MUNICIPIUL BRASOV,3306,7,8,28,4m/400664/6,2013-11-25T00:00:00,1731845.620000000111758708953857421875,1396649.6899999999441206455230712890625,Alte investitii in firme,1475.0,2012-07-06T00:00:00,In implementare
167,3,1,1,1.0,44184,"Extinderea activitatii SC AB PLUS EVENTS SRL prin achizitia de echipamente inovative si software
",AB PLUS EVENTS SRL,NORD-EST,IASI,MUNICIPIUL IASI,6260,1,22,57,4m/400780/2,2013-12-02T00:00:00,1268664.01000000000931322574615478515625,1016486.130000000004656612873077392578125,Alte investitii in firme,1658.0,2012-07-09T00:00:00,In implementare
168,3,1,1,1.0,44020,"Dezvoltarea durabila a societatii ECOLEMN SRL prin investitii in instalatii si echipamente performante
",ECOLEMN SRL,SUD - MUNTENIA,DÂMBOVITA,MUNICIPIUL TÂRGOVISTE,17115,3,15,48,4m/400613/1,2013-11-21T00:00:00,1891368,1521400,Alte investitii in firme,1496.0,2012-07-07T00:00:00,In implementare
169,3,3,1,1.0,41274,"MARIREA GRADULUI DE UTILIZARE IT&C IN CADRUL Asociatiei Studentilor la Istorie ""DACIA"" - A.S.I.D",ASOCIATIA STUDENTILOR LA ISTORIE DACIA - A.S.I.D.,BUCURESTI - ILFOV,BUCURESTI,MUNICIPIUL BUCURESTI,53557,8,40,1,732/311,2013-03-14T00:00:00,114319.3200000000069849193096160888671875,92193,Alte masuri pentru imbunatatirea accesului si utilizarea eficienta a TIC de catre IMM-uri,730.0,2011-01-18T00:00:00,In implementare
170,4,5,5.20000000000000017763568394002504646778106689453125,***,43914,Dezvoltarea mediului rural prin implicarea populatiei in activitati non-agricole,ZENO CONSULTING SRL,SUD-VEST OLTENIA,VALCEA,MUNICIPIUL RAMNICU VALCEA,7236,4,38,44,POSDRU/110/5.2/88905,2012-01-27T00:00:00,2044700,2044700,Implementarea de masuri active si preventive pe piata muncii,"",2010-11-11T00:00:00,In implementare
171,3,2,3,2.0,44112,Dezvoltare a unui centru de CDI in domeniul biotehnologic /CEBIO,Corax - Bioner Ceu SA,CENTRU,HARGHITA,MUNICIPIUL MIERCUREA CIUC,1687,7,19,34,599.0,2013-11-04T00:00:00,5797965,4532010,"Investitii in firme direct legate de cercetare si inovare (tehnologii inovatoare, infiintarea de noi firme de catre universitati, centre si firme C&DT existente)",1580.0,2012-09-07T00:00:00,In implementare
172,2,6,6.0999999999999996447286321199499070644378662109375,***,44485,Achizitie de materiale consumabile si furnituri de birou necesare desfasurarii activitatii DG AM POS Mediu in perioada 2012-2014,Ministerul Mediului si Schimbarilor Climatice,BUCURESTI - ILFOV,BUCURESTI,MUNICIPIUL BUCURESTI,14,8,40,1,3799.0,2012-11-05T00:00:00,1517951.790000000037252902984619140625,1517951.790000000037252902984619140625,"Pregatire, implementare, monitorizare si inspectie",36.0,2012-09-26T00:00:00,In implementare
173,3,1,1,1.0,44491,CRESTEREA COMPETITIVITATII ECONOMICE LA SC EMILIANO-VEST SRL PRIN ACHIZITIA DE UTILAJE,EMILIANO-VEST SRL,VEST,CARAS-SEVERIN,MUNICIPIUL CARANSEBES,65793,5,11,44,4m/400339/4,2013-11-04T00:00:00,1753756.80000000004656612873077392578125,1397280,Alte investitii in firme,1913.0,2012-07-10T00:00:00,In implementare
174,4,5,5.20000000000000017763568394002504646778106689453125,***,44289,"Program integrat de consiliere, mediere si formare profesionala in meserii din sectorul constructiilor in judetul Ilfov",B.N.C. CRIS COM S.R.L.,BUCURESTI - ILFOV,BUCURESTI,MUNICIPIUL BUCURESTI,14027,8,40,1,POSDRU/110/5.2/G/87983,2011-12-05T00:00:00,2130800,2130800,Implementarea de masuri active si preventive pe piata muncii,"",2010-11-09T00:00:00,In implementare
175,3,1,1,1.0,44384,"Competitivitate sporita si dezvoltare durabila in cadrul SC MENTOR BUILDING SRL prin achizitia de utilaje si echipamente
",MENTOR BUILDING SRL,SUD - MUNTENIA,ARGES,MUNICIPIUL PITESTI,7999,3,3,62,4m/400646/1,2013-11-22T00:00:00,1347570.0200000000186264514923095703125,1083604.8500000000931322574615478515625,Alte investitii in firme,1724.0,2012-07-09T00:00:00,In implementare
176,1,6,6.0999999999999996447286321199499070644378662109375,1.0,45681,SPRIJIN PENTRU ADR SUD MUNTENIA / DIRECTIA ORGANISM INTERMEDIAR ÎN VEDEREA IMPLEMENTARII PROGRAMULUI OPERATIONAL REGIONAL ÎN PERIOADA 2013-2014,Agentia pentru Dezvoltare Regionala Sud-Muntenia,SUD - MUNTENIA,CALARASI,MUNICIPIUL CALARASI,5,3,51,30,46AT,2013-03-27T00:00:00,22143148.289999999105930328369140625,19910145.0199999995529651641845703125,"Pregatire, implementare, monitorizare si inspectie",92314.0,2012-12-11T00:00:00,In implementare
177,4,5,5.20000000000000017763568394002504646778106689453125,***,45061,"Acces la informare, calificare si consiliere pentru resursele umane din mediul rural",EXCELENT S.R.L.,SUD - MUNTENIA,PRAHOVA,MUNICIPIUL PLOIESTI,14020,3,29,56,POSDRU/110/5.2/G/87511,2011-12-09T00:00:00,2115683,2115683,Implementarea de masuri active si preventive pe piata muncii,"",2010-11-12T00:00:00,In implementare
178,1,3,3.29999999999999982236431605997495353221893310546875,1.0,45715,"Achizitie echipamente specifice pentru imbunatatirea capacitatii si calitatii sistemului de interventie in situatii de urgenta si pentru acordarea asistentei medicale de urgenta si a primului ajutor calificat, in Regiunea Sud Muntenia",Asociatia de Dezvoltare Intercomunitara Situatii de urgenta Sud Muntenia,SUD - MUNTENIA,TELEORMAN,MUNICIPIUL ALEXANDRIA,5358,3,34,46,3764.0,2013-07-30T00:00:00,21560000,21560000,Prevenirea riscurilor (inclusiv elaborarea si implementarea planurilor si masurilor de prevenire si gestionare a riscurilor naturale si tehnologice),SM/64/3/3.3/829,2012-12-21T00:00:00,In implementare
179,1,1,1.100000000000000088817841970012523233890533447265625,1.0,45717,"ACCESIBILITATE IN ZONA TURISTICA CLABUCET - CIOPLEA, PREDEAL",Consiliul Local Predeal,CENTRU,BRASOV,ORAS PREDEAL,151,7,8,33,3993.0,2013-12-17T00:00:00,55270218.369999997317790985107421875,55080126.369999997317790985107421875,Drumuri locale/regionale,C/1/1.1/PC/33,2012-12-20T00:00:00,In implementare
180,3,1,1,1.0,44409,"CRESTEREA CAPACITATII DE PRODUCTIE A SC LAMOSZT SRL PRIN ACHIZITIONAREA DE ECHIPAMENTE TEHNOLOGICE DE ULTIMA GENERATIE SI IMPLEMENTAREA UNUI NOU FLUX TEHNOLOGIC
",LAMOSZT SRL,CENTRU,HARGHITA,PAULENI-CIUC,54089,7,19,42,4m/400216/6,2013-10-30T00:00:00,1894631.459999999962747097015380859375,1521428.6000000000931322574615478515625,Alte investitii in firme,1881.0,2012-07-09T00:00:00,In implementare
181,3,1,1,1.0,44448,ACHIZITIE DE UTILAJE PERFORMANTE PENTRU CRESTEREA COMPETITIVITATII SOCIETATII PLASCOM IMPEX SRL,PLASCOM IMPEX SRL,CENTRU,MURES,MUNICIPIUL REGHIN,13060,7,26,57,4m/400244/6,2013-10-30T00:00:00,1030801.910000000032596290111541748046875,829799.930000000051222741603851318359375,Alte investitii in firme,1877.0,2012-07-09T00:00:00,In implementare
182,3,1,1,1.0,44227,"CRESTEREA COMPETITIVITATII ECONOMICE A SC PG DELTA ELECTRON SRL PRIN ACHIZITIA DE ECHIPAMENTE TEHNOLOGICE
",PG DELTA ELECTRON SRL,SUD-EST,CONSTANTA,ORAS NAVODARI,34937,2,13,49,4m/400125,2013-10-07T00:00:00,1556975.790000000037252902984619140625,1250855.629999999888241291046142578125,Alte investitii in firme,1593.0,2012-07-08T00:00:00,In implementare
183,3,1,1,1.0,44251,"Cresterea competitivitatii economice, prin achizitie de utilaje si modernizarea spatiului de productie si a instalatiilor aferente, la firma SC ANPAL SRL
",ANPAL SRL,CENTRU,BRASOV,MUNICIPIUL  CODLEA,5020,7,8,27,4m/400752/6,2013-11-29T00:00:00,1826594.5,1396604.1000000000931322574615478515625,Alte investitii in firme,1641.0,2012-07-25T00:00:00,In implementare
184,3,1,1,1.0,44482,Retehnologizarea si Cresterea Competitivitatii Economice a SC CONCELEX SRL prin Achizitia de Utilaje Performante,CONCELEX SRL,BUCURESTI - ILFOV,BUCURESTI,MUNICIPIUL BUCURESTI,64995,8,40,1,4m/400378/3,2013-11-05T00:00:00,2198572.700000000186264514923095703125,1773042.5,Alte investitii in firme,1952.0,2012-07-23T00:00:00,In implementare
185,4,5,5.20000000000000017763568394002504646778106689453125,***,44888,ORIZONT pentru dezvoltarea sustenabila pe termen lung si cresterea gradului de ocupare a fortei de munca in zonele rurale,DAROMET S.R.L.,SUD-EST,BRAILA,MUNICIPIUL BRAILA,10109,2,9,19,POSDRU/110/5.2/G/87561,2011-11-17T00:00:00,1903831,1903831,Implementarea de masuri active si preventive pe piata muncii,"",2010-11-09T00:00:00,In implementare
186,3,1,1,1.0,44525,"ACHIZITIE DE UTILAJE LA SC SULFATIM SRL DIN MUNICIPIUL TIMISOARA, JUD. TIMIS",SULFATIM S.R.L.,VEST,TIMIS,MUNICIPIUL TIMISOARA,11104,5,35,54,4m/400338/4,2013-11-04T00:00:00,1730514.23999999999068677425384521484375,1395576,Alte investitii in firme,2057.0,2012-07-10T00:00:00,In implementare
187,3,1,1,1.0,44700,Dezvoltarea SC GEPROCON SA prin diversificarea serviciilor oferite in domeniul constructiilor,Geprocon SA,NORD-EST,IASI,MUNICIPIUL IASI,11182,1,22,57,4m/400047/2,2013-09-06T00:00:00,2208843,1774800,Alte investitii in firme,1987.0,2012-07-10T00:00:00,In implementare
188,4,5,5.20000000000000017763568394002504646778106689453125,***,44415,"O noua calificare, o noua sansa pe piata muncii",AMIRAS C&L IMPEX SRL,SUD - MUNTENIA,DÂMBOVITA,MUNICIPIUL TÂRGOVISTE,283,3,15,48,POSDRU/110/5.2/G/86998,2011-11-22T00:00:00,1973324,1973324,Implementarea de masuri active si preventive pe piata muncii,"",2010-11-09T00:00:00,In implementare
189,4,5,5.20000000000000017763568394002504646778106689453125,***,45167,Solutie pentru reconversia fortei de munca din Judetul Alba,FUNDATIA PAEM ALBA,CENTRU,ALBA,MUNICIPIUL ALBA IULIA,2272,7,1,39,POSDRU/110/5.2/G/87361,2012-01-27T00:00:00,2113321,2113321,Implementarea de masuri active si preventive pe piata muncii,"",2010-11-15T00:00:00,In implementare
190,3,1,1,1.0,45192,"Consolidarea si dezvoltarea durabila a sectorului productiv în cadrul SC CRONOS SRL
",CRONOS SRL,SUD - MUNTENIA,DÂMBOVITA,MUNICIPIUL TÂRGOVISTE,319,3,15,48,4m/401115/1,2014-02-06T00:00:00,1959720.80000000004656612873077392578125,1521400,Alte investitii in firme,1751.0,2012-07-10T00:00:00,In implementare
191,4,5,5.20000000000000017763568394002504646778106689453125,***,45268,VIATA LA TARA - DEZVOLTAREA INITIATIVELOR ANTREPRENORIALE IN MEDIUL RURAL,MANU&CO SRL,CENTRU,ALBA,MUNICIPIUL SEBES,9912,7,1,41,POSDRU/110/5.2/G/89429,2011-12-29T00:00:00,2124310,2124310,Implementarea de masuri active si preventive pe piata muncii,"",2010-11-09T00:00:00,In implementare
192,7,1,1.100000000000000088817841970012523233890533447265625,***,45246,Proprietatea imobiliara - fundament pentru politici nationale si europene,Agentia Nationala de Cadastru si Publicitate Imobiliara,BUCURESTI - ILFOV,BUCURESTI,MUNICIPIUL BUCURESTI,7972,8,40,1,C.T.R.F 1.1.130,2012-12-21T00:00:00,11852423.9100000001490116119384765625,11852423.9100000001490116119384765625,"Evaluare si studii, informare si comunicare",C.F 1.1.130,2012-11-14T00:00:00,In implementare
193,3,1,1,1.0,44684,Modernizarea Productiei de Ambalaje la Sc. EUROFLEX SRL.Hunedoara,EUROFLEX S.R.L.,VEST,HUNEDOARA,MUNICIPIUL HUNEDOARA,71246,5,20,38,4m/400549/4,2013-11-18T00:00:00,897112.410000000032596290111541748046875,707977.75,Alte investitii in firme,1903.0,2012-07-10T00:00:00,In implementare
194,3,1,1,1.0,44590,Competitivitate prin achizitie de utilaje la Aldona SRL,ALDONA S.R.L.,CENTRU,SIBIU,ORAS COPSA MICA,10499,7,32,38,4m/401066/6,2014-01-13T00:00:00,1975562.30000000004656612873077392578125,1590720.38999999989755451679229736328125,Alte investitii in firme,1859.0,2012-07-10T00:00:00,In implementare
195,1,1,1.100000000000000088817841970012523233890533447265625,1.0,45060,Reabilitarea si refunctionalizarea spatiului public din zona parcului I.C. Bratianu,MUNICIPIUL DEVA,VEST,HUNEDOARA,MUNICIPIUL DEVA,301220004,5,20,37,3760.0,2013-07-26T00:00:00,37980165.520000003278255462646484375,37980165.520000003278255462646484375,Transport urban,V/1/1.1/PDU/2/8,2012-10-30T00:00:00,In implementare
196,4,5,5.20000000000000017763568394002504646778106689453125,***,44922,Zona istorica-Zona moderna/Dezvoltare sustenabila rurala,Asociatia ”Centrul de Cercetare si Formare a Universitatii de Nord Baia Mare”,NORD-VEST,MARAMURES,MUNICIPIUL BAIA MARE,10398,6,24,36,POSDRU/110/5.2/G/89265,2011-12-20T00:00:00,1756855.15999999991618096828460693359375,1753335,Implementarea de masuri active si preventive pe piata muncii,"",2010-11-12T00:00:00,In implementare
197,4,5,5.20000000000000017763568394002504646778106689453125,***,44780,"Program integrat de calificare, dezvoltare a competentelor antreprenoriale, suport si consiliere a resurselor umane, pentru dezvoltarea mestesugurilor traditionale din mediul rural din regiunea Nord-Vest",Fundatia World Vision Romania,BUCURESTI - ILFOV,BUCURESTI,MUNICIPIUL BUCURESTI,7510,8,40,1,2906.0,2011-12-20T00:00:00,2295716.1899999999441206455230712890625,2110274.299999999813735485076904296875,Implementarea de masuri active si preventive pe piata muncii,"",2010-11-15T00:00:00,In implementare
198,4,5,5.20000000000000017763568394002504646778106689453125,***,45070,RETEA DE CENTRE DE DEZVOLTARE A RESURSELOR UMANE IN MEDIUL RURAL DIN JUD. DAMBOVITA,ASOCIATIA TARGOVISTE SPRE EUROPA,SUD - MUNTENIA,DÂMBOVITA,MUNICIPIUL TÂRGOVISTE,4788,3,15,48,POSDRU/110/5.2/G/88692,2011-12-16T00:00:00,2329303.2799999997951090335845947265625,2131718,Implementarea de masuri active si preventive pe piata muncii,"",2010-11-09T00:00:00,In implementare
199,4,5,5.20000000000000017763568394002504646778106689453125,***,45059,"Dezvoltarea capitalului uman din mediul rural, Regiunea Centru",LAGUNA GROUP SRL,CENTRU,HARGHITA,MUNICIPIUL MIERCUREA CIUC,11889,7,19,34,POSDRU/110/5.2/G/87159,2011-11-24T00:00:00,1984524.2299999999813735485076904296875,1984524.2299999999813735485076904296875,Implementarea de masuri active si preventive pe piata muncii,"",2010-11-12T00:00:00,In implementare
200,3,4,1,1.0,45045,Eficientizarea consumului centralelor de ventilatie din cadrul SC AUTOMOBILE-DACIA SA in vederea cresterii eficientei energetice,Automobile Dacia SA,SUD - MUNTENIA,ARGES,ORAS MIOVENI,11700,3,3,68,34EE,2013-12-04T00:00:00,25048591.64000000059604644775390625,17316223.42000000178813934326171875,"Eficienta energetica, co-generare, management energetic",630615.0,2012-10-26T00:00:00,In implementare
201,4,5,5.20000000000000017763568394002504646778106689453125,***,45160,Dezvoltarea mediului rural prin antreprenoriat si angajare,Qipa Individual Development SRL,BUCURESTI - ILFOV,BUCURESTI,MUNICIPIUL BUCURESTI,12039,8,40,1,POSDRU/110/5.2/G/86837,2011-11-30T00:00:00,2099459.200000000186264514923095703125,2099459.200000000186264514923095703125,Implementarea de masuri active si preventive pe piata muncii,"",2010-11-12T00:00:00,In implementare
202,3,3,1,1.0,40769,Dezvoltarea infrastructurii TIC a - SC TRIBEACH SRL,TRIBEACH SRL,CENTRU,BRASOV,MUNICIPIUL BRASOV,120458,7,8,28,643/311,2012-12-28T00:00:00,91913.139999999999417923390865325927734375,74123.5,Alte masuri pentru imbunatatirea accesului si utilizarea eficienta a TIC de catre IMM-uri,196.0,2011-01-07T00:00:00,In implementare
203,2,1,1.100000000000000088817841970012523233890533447265625,***,47931,"Canalizare menajera, comuna Valu lui Traian, etapa III, judetul Constanta",RAJA S.A. Constanta,SUD-EST,CONSTANTA,MUNICIPIUL CONSTANTA,10416,2,13,39,147248.0,2013-06-06T00:00:00,26340628,21242442,Epurarea apei (ape uzate),152672.0,2013-05-31T00:00:00,In implementare
204,4,5,5.20000000000000017763568394002504646778106689453125,***,48341,Competente pentru ocupare,ASOCIATIA NATIONALA A CONSULTANTILOR IN AGRIBUSINESS (A.N.C.A),BUCURESTI - ILFOV,BUCURESTI,MUNICIPIUL BUCURESTI,4086,8,40,1,POSDRU/143/5.2/G/134557,2014-03-31T00:00:00,2029890,1919279.03000000002793967723846435546875,Implementarea de masuri active si preventive pe piata muncii,4529.0,2013-07-10T00:00:00,In implementare
205,3,3,3,1.0,46233,ERP - SOLUTIA SOFTWARE INTELIGENTA PENTRU DEZVOLTAREA SC CON-A ELECTRIC SRL,CON-A ELECTRIC SRL,CENTRU,SIBIU,MUNICIPIUL SIBIU,120831,7,32,33,1794/332,2014-03-03T00:00:00,976361.98999999999068677425384521484375,787388.69999999995343387126922607421875,"Servicii si aplicatii pentru IMM-uri (comert electronic, educatie si formare, networking, etc.)",14586.0,2011-10-13T00:00:00,In implementare
206,3,3,3,1.0,46339,EFICIENTIZAREA SI CRESTEREA COMPETITIVITATII EDITURII IBU PUBLISHING HOUSE SRL PRIN TEHNOLOGIA INFORMATIILOR,IBU PUBLISHING HOUSE SRL,BUCURESTI - ILFOV,BUCURESTI,MUNICIPIUL BUCURESTI,121690,8,40,1,1137/331,2013-12-03T00:00:00,1110606,895650,"Servicii si aplicatii pentru IMM-uri (comert electronic, educatie si formare, networking, etc.)",16058.0,2011-11-02T00:00:00,In implementare
207,3,3,3,2.0,47509,"CRESTEREA COMPETITIVITATII SOCIETATII TTU PRINT, MARKETING & DISTRIBUTIE PRIN IMPLEMENTAREA SISTEMULUI DE COMERT ELECTRONIC SI A ALTOR SOLUTII","TTU PRINT, MARKETING SI DISTRIBUTIE SRL",VEST,TIMIS,MUNICIPIUL TIMISOARA,12955,5,35,54,1549/332,2013-12-24T00:00:00,841798.80000000004656612873077392578125,678844,"Servicii si aplicatii pentru IMM-uri (comert electronic, educatie si formare, networking, etc.)",578.0,2012-01-12T00:00:00,In implementare
208,3,3,3,1.0,46160,Implementarea unei sistem informatic integrat la nivelul SC MB Distribution SRL,MB DISTRIBUTION SRL ,BUCURESTI - ILFOV,BUCURESTI,MUNICIPIUL BUCURESTI,121701,8,40,1,1164/331,2013-12-05T00:00:00,1619680.78000000002793967723846435546875,1284057.48999999999068677425384521484375,"Servicii si aplicatii pentru IMM-uri (comert electronic, educatie si formare, networking, etc.)",14884.0,2011-10-17T00:00:00,In implementare
209,3,3,3,1.0,46453,Solutii ERP pentru dezvoltarea si eficientizarea activitatii S.C. ELO DIGITAL OFFICE S.R.L.,ELO DIGITAL OFFICE S.R.L.,BUCURESTI - ILFOV,BUCURESTI,MUNICIPIUL BUCURESTI,121385,8,40,1,1366/331,2013-12-18T00:00:00,865780.400000000023283064365386962890625,698175,"Servicii si aplicatii pentru IMM-uri (comert electronic, educatie si formare, networking, etc.)",16296.0,2011-11-08T00:00:00,In implementare
210,3,2,1,1.0,45816,BIOPREPARATE MICROBIENE PENTRU CRESTEREA CALITATII FURAJELOR INSILOZATE,Corax - Bioner Ceu SA,CENTRU,HARGHITA,MUNICIPIUL MIERCUREA CIUC,1687,7,19,34,565.0,2013-09-09T00:00:00,6066360,4739000,Activitati de C&DT in centre de cercetare,1734.0,2012-12-19T00:00:00,In implementare
211,3,3,3,2.0,46842,Diversificarea si eficientizarea activitatii S.C CONSUMCOOP GALATI prin implementarea sistemului de comert electronic pentru comercializarea articolelor pentru copii,Consumcoop Galati  Societate Cooperativa,SUD-EST,GALATI,MUNICIPIUL GALATI,1236,2,17,35,1387/332,2013-12-19T00:00:00,1238177.19999999995343387126922607421875,998503,"Servicii si aplicatii pentru IMM-uri (comert electronic, educatie si formare, networking, etc.)",622.0,2012-12-01T00:00:00,In implementare
212,3,3,3,1.0,47545,Cresterea competitivitatii economice a societatii Information Business Consulting SA prin implementarea unui sistem informatic integrat,INFORMATION BUSINESS CONSULTING SRL,BUCURESTI - ILFOV,BUCURESTI,MUNICIPIUL BUCURESTI,120828,8,40,1,891/331,2013-09-12T00:00:00,1839308.120000000111758708953857421875,1483313,"Servicii si aplicatii pentru IMM-uri (comert electronic, educatie si formare, networking, etc.)",15304.0,2011-10-20T00:00:00,In implementare
213,3,3,3,1.0,47486,¿CRESTEREA COMPETITIVITATII SI EFICACITATII S.C. COMES S.A. SAVINESTI PRIN IMPLEMENTAREA DE APLICATII SOFTWARE SI ACHIZITIA DE ECHIPAMENTE TIC PERFORMANTE¿,COMES SA,NORD-EST,NEAMT,SAVINESTI,1977,1,27,67,1216/331,2013-12-09T00:00:00,1306615.2299999999813735485076904296875,982903.959999999962747097015380859375,"Servicii si aplicatii pentru IMM-uri (comert electronic, educatie si formare, networking, etc.)",15518.0,2011-10-24T00:00:00,In implementare
214,3,3,1,1.0,43751,Modernizarea infrastructurii TIC la firma S.C. Liv-Comal S.R.L.,LIV-COMAL SRL,NORD-EST,BACAU,MUNICIPIUL BACAU,120537,1,4,47,1006/311,2013-10-29T00:00:00,71693.080000000001746229827404022216796875,57687,Infrastructuri de telefonie (inclusiv retele broadband),3786.0,2011-03-17T00:00:00,In implementare
215,3,3,3,1.0,45857,Reorganizarea proceselor interne ale firmei S.C. ADIX TECHNIK S.R.L. prin achizitia unui sistem informatic de management si a echipamentelor conexe,ADIX TECHNIK S.R.L.,NORD-VEST,BIHOR,MUNICIPIUL ORADEA,12695,6,5,54,856/331,2013-08-20T00:00:00,1020887.400000000023283064365386962890625,823296.290000000037252902984619140625,"Servicii si aplicatii pentru IMM-uri (comert electronic, educatie si formare, networking, etc.)",15204.0,2011-10-20T00:00:00,In implementare
216,3,3,3,1.0,45869,"Dezvoltarea si eficientizarea activitatii SC DEFEL COM SRL Suceava prin implementarea unor sisteme informatice de tip ERP, Business Intelligence ¿i Monitorizare GPS precum si prin dezvoltarea integrata a infrastructurii TIC",Defel Com S.R.L.,NORD-EST,SUCEAVA,MUNICIPIUL SUCEAVA,120519,1,33,64,1568/331,2013-12-24T00:00:00,2034529.6899999999441206455230712890625,1640749.75,"Servicii si aplicatii pentru IMM-uri (comert electronic, educatie si formare, networking, etc.)",15652.0,2011-10-26T00:00:00,In implementare
217,3,3,3,1.0,45862,Eficientizarea activitatii SC MATRIX ROM SRL prin implementarea de sisteme informatice integrate,MATRIX ROM S.R.L.,BUCURESTI - ILFOV,BUCURESTI,MUNICIPIUL BUCURESTI,120332,8,40,1,848/331,2013-07-31T00:00:00,947403.119999999995343387126922607421875,763048,"Servicii si aplicatii pentru IMM-uri (comert electronic, educatie si formare, networking, etc.)",14634.0,2011-10-14T00:00:00,In implementare
218,2,6,6.0999999999999996447286321199499070644378662109375,***,48154,Consultanta de specialitate pentru revizuirea raportului de mediu aferent procedurii de Evaluare Strategica de Mediu ca urmare a modificarii Programului Operational Sectorial Mediu,Ministerul Mediului si Schimbarilor Climatice,BUCURESTI - ILFOV,BUCURESTI,MUNICIPIUL BUCURESTI,14,8,40,1,671.0,2013-04-18T00:00:00,79794,79794,"Pregatire, implementare, monitorizare si inspectie",18.0,2013-02-27T00:00:00,In implementare
219,3,3,3,1.0,46111,Optimizarea activitatii firmei Viacor Engineering SRL prin implmentarea unui sistem integrat de management,VIACOR ENGINEERING SRL,BUCURESTI - ILFOV,BUCURESTI,MUNICIPIUL BUCURESTI,121489,8,40,1,1039/331,2013-11-05T00:00:00,811050,654012.579999999958090484142303466796875,"Servicii si aplicatii pentru IMM-uri (comert electronic, educatie si formare, networking, etc.)",14012.0,2011-10-07T00:00:00,In implementare
220,3,3,3,2.0,46954,Cresterea competitivitati SC LORDINU SRL prin modernizarea solutiei online de preluare a comenzilor de catering,LORDINU SRL,NORD-VEST,BISTRITA-NASAUD,MUNICIPIUL BISTRITA,120074,6,6,30,1404/332,2013-12-20T00:00:00,85071.4400000000023283064365386962890625,68606,"Servicii si aplicatii pentru IMM-uri (comert electronic, educatie si formare, networking, etc.)",1492.0,2012-01-30T00:00:00,In implementare
221,3,3,3,2.0,47036,Dezvoltarea comer¿ului electronic prin implementarea de sisteme informatice de comer¿ electronic la S.C. INFOGRUP S.R.L.,info grup srl,CENTRU,ALBA,MUNICIPIUL ALBA IULIA,6175,7,1,39,1305/332,2013-12-16T00:00:00,727138.4799999999813735485076904296875,561402,"Servicii si aplicatii pentru IMM-uri (comert electronic, educatie si formare, networking, etc.)",180.0,2012-01-09T00:00:00,In implementare
222,3,3,3,1.0,45863,Implementarea unui sistem informatic integrat în cadrul S.C. CONSULTA 2001 S.R.L.,CONSULTA 2001 SRL,CENTRU,HARGHITA,MUNICIPIUL MIERCUREA CIUC,12198,7,19,34,923/311,2013-09-23T00:00:00,245511.3200000000069849193096160888671875,193492,"Servicii si aplicatii pentru IMM-uri (comert electronic, educatie si formare, networking, etc.)",13848.0,2011-10-06T00:00:00,In implementare
223,3,3,3,1.0,46168,SISTEME INFORMATICE PENTRU CRESTEREA COMPETITIVITATII ECONOMICE A FIRMEI BT PRODUCTION GROUP SRL,BT PRODUCTION GROUP S.R.L.,BUCURESTI - ILFOV,BUCURESTI,MUNICIPIUL BUCURESTI,120992,8,40,1,824/331,2013-07-01T00:00:00,1505698.25,1010541.170000000041909515857696533203125,"Servicii si aplicatii pentru IMM-uri (comert electronic, educatie si formare, networking, etc.)",14292.0,2011-10-11T00:00:00,In implementare
224,3,3,3,1.0,45854,Cresterea competitivitatii SC NOVAINTERMED S.R.L prin implementarea de ERP,NOVAINTERMED S.R.L.,BUCURESTI - ILFOV,BUCURESTI,MUNICIPIUL BUCURESTI,121056,8,40,1,852/331,2013-08-08T00:00:00,952670.920000000041909515857696533203125,755931,"Servicii si aplicatii pentru IMM-uri (comert electronic, educatie si formare, networking, etc.)",14466.0,2011-10-12T00:00:00,In implementare
225,3,4,1,1.0,45194,Cresterea eficientei energetice a SC IPSAR SA prin achizitia de echipamente ecoeficiente,IPSAR S.A.,SUD - MUNTENIA,PRAHOVA,ORAS VALENII DE MUNTE,12243,3,29,69,36EE,2013-12-23T00:00:00,4399416,3233263,"Eficienta energetica, co-generare, management energetic",630628.0,2012-11-06T00:00:00,In implementare
226,3,3,3,2.0,46725,Dezvoltarea SC TOBIMAR SRL prin implementarea sistemului de comert electronic si a altor solutii on-line pentru afaceri,TOBIMAR S.R.L.,CENTRU,ALBA,MUNICIPIUL ALBA IULIA,121405,7,1,39,1369/332,2013-12-18T00:00:00,810191.209999999962747097015380859375,469176.869999999995343387126922607421875,"Servicii si aplicatii pentru IMM-uri (comert electronic, educatie si formare, networking, etc.)",270.0,2012-01-10T00:00:00,In implementare
227,3,3,2,1.0,48360,SISTEM INFORMATIC PENTRU UN MANAGEMENT,Consiliul Judetean Braila,SUD-EST,BRAILA,MUNICIPIUL BRAILA,302030024,2,9,19,1190/321,2013-12-06T00:00:00,6726506.389999999664723873138427734375,6626506.389999999664723873138427734375,"Servicii si aplicatii pentru cetateni (e-sanatate, e-guvernare, e-invatare, e-incluziune)",5250.0,2013-06-07T00:00:00,In implementare
228,1,5,5.20000000000000017763568394002504646778106689453125,5.0,48251,CENTRUL DE AGREMENT TROTUS,Primaria Orasului Comanesti,NORD-EST,BACAU,ORAS COMANESTI,2427,1,4,56,4019.0,2014-01-28T00:00:00,20411564.4800000004470348358154296875,18885904.320000000298023223876953125,Alte masuri de asistenta pentru imbunatatirea serviciilor turistice,NE/71/5/5.2/1125/05.07.2013,2013-07-05T00:00:00,In implementare
229,3,3,3,1.0,46652,Modernizarea activitatii principale a firmei HYDRO POWER PROJECT S.R.L. Prin achizitionarea unor softuri performante pentru proiectare si design,HYDRO POWER PROJECT S.R.L.,NORD-VEST,CLUJ,MUNICIPIUL CLUJ-NAPOCA,120853,6,12,52,1584/331,2013-12-24T00:00:00,174437,138063,"Servicii si aplicatii pentru IMM-uri (comert electronic, educatie si formare, networking, etc.)",15224.0,2011-10-20T00:00:00,In implementare
230,3,3,3,1.0,46597,"Eficientizarea activitatii LOGICAL S.R.L, inovarea si dezvoltarea societatii  prin implementarea de aplicatii informatice integrate",ESCAPADE FASHION SRL,VEST,TIMIS,GIROC,13230,5,35,38,1097/331,2013-11-25T00:00:00,1578272,1272800,"Servicii si aplicatii pentru IMM-uri (comert electronic, educatie si formare, networking, etc.)",15656.0,2011-10-26T00:00:00,In implementare
231,3,1,1,1.0,42604,"Extinderea procesului de productie si dezvoltarea sustenabila a SC ICCO E.M.T. prin achizitia de echipamente si tehnologii cu aplicabilitate inovativa in industria electronica de nivel high-tech
", ICCO E.M.T. (ELECTRONIC MANUFACTURING TEHNOLOGY) SRL,CENTRU,BRASOV,MUNICIPIUL BRASOV,13130,7,8,28,4m/400198/4,2013-10-29T00:00:00,2678250.5600000000558793544769287109375,2130819.8100000000558793544769287109375,Alte investitii in firme,493.0,2012-05-24T00:00:00,In implementare
232,3,3,3,1.0,46032,Implementarea sistemului informatic integrat,NETROM COMUNICATII SRL,NORD-VEST,CLUJ,MUNICIPIUL CLUJ-NAPOCA,121159,6,12,52,1811/331,2014-03-17T00:00:00,1598236,1288570,"Servicii si aplicatii pentru IMM-uri (comert electronic, educatie si formare, networking, etc.)",15250.0,2011-10-20T00:00:00,In implementare
233,3,3,3,1.0,46497,cre¿terea eficien¿ei ¿i competitivit¿¿ii societ¿¿ii simausrom comservimpex s.r.l. prin reorganizarea tuturor proceselor pe baza unui sistem informatic,SIMAUSROM COMSERVIMPEX S.R.L.,VEST,HUNEDOARA,ORAS PETRILA,261,5,20,45,1249/331,2013-12-12T00:00:00,138119.1900000000023283064365386962890625,111386.449999999997089616954326629638671875,"Servicii si aplicatii pentru IMM-uri (comert electronic, educatie si formare, networking, etc.)",14856.0,2011-10-17T00:00:00,In implementare
234,3,2,3,1.0,47272,Cercetare in vederea introducerii pe piata a Sistemelor Integrate de Diagnoza Automata a Defectelor,VIBRO SYSTEM S.R.L.,NORD-VEST,BIHOR,MUNICIPIUL ORADEA,120400,6,5,54,503.0,2013-07-31T00:00:00,956431,833180,"Asistenta pentru C&DT, in special pentru IMM-uri (inclusiv accesul la servicii C&DT in centrele de cercetare)",1682.0,2012-12-13T00:00:00,In implementare
235,3,3,3,2.0,46908,Dezvoltarea unei Platforme de eLearning la XOR-IT SYSTEMS S.R.L.,EXPERT ONE RESEARCH SRL,BUCURESTI - ILFOV,BUCURESTI,MUNICIPIUL BUCURESTI,11594,8,40,1,1718/332,2013-12-30T00:00:00,3275213.50999999977648258209228515625,2639591.2200000002048909664154052734375,"Servicii si aplicatii pentru IMM-uri (comert electronic, educatie si formare, networking, etc.)",1976.0,2012-02-07T00:00:00,In implementare
236,1,5,5.29999999999999982236431605997495353221893310546875,1.0,48155,Campanii de promovare pentru dezvoltarea sustenabila a brandului de turism al Romaniei,Autoritatea Nationala pentru Turism,BUCURESTI - ILFOV,BUCURESTI,MUNICIPIUL BUCURESTI,121648,8,40,1,3808.0,2013-08-14T00:00:00,4970466.219999999739229679107666015625,4970466.219999999739229679107666015625,Promovarea patrimoniului natural,BI/1/5/5.3/A/809/03.06.2013,2013-06-03T00:00:00,In implementare
237,3,3,3,1.0,46488,Cresterea eficientei intreprinderii ROBEST COM SRL prin implementarea unui sistem informatic integrat,ROBEST COM S.R.L.,SUD-VEST OLTENIA,DOLJ,CARCEA,121411,4,16,32,1219/331,2013-12-10T00:00:00,657274.400000000023283064365386962890625,526950,"Servicii si aplicatii pentru IMM-uri (comert electronic, educatie si formare, networking, etc.)",54.0,2012-01-05T00:00:00,In implementare
238,3,3,3,1.0,46495,Cresterea eficientei intreprinderii ILEX COM SRL prin extinderea sistemului informatic de management al afacerii,ILEX COM SRL,SUD-VEST OLTENIA,DOLJ,MUNICIPIUL CRAIOVA,13224,4,16,68,1003/331,2013-10-28T00:00:00,912354.80000000004656612873077392578125,732490,"Servicii si aplicatii pentru IMM-uri (comert electronic, educatie si formare, networking, etc.)",58.0,2012-01-05T00:00:00,In implementare
239,3,3,3,1.0,46542,Cresterea competitivit¿¿ii economice a SC INTERNATIONAL FBS SRL prin implementarea unei aplicatii electronice pentru afaceri de tip ERP,INVEST SERVICII COMERCIALE SRL,NORD-VEST,CLUJ,MUNICIPIUL DEJ,6943,6,12,54,1666/331,2013-12-30T00:00:00,586334.619999999995343387126922607421875,472724.5,"Servicii si aplicatii pentru IMM-uri (comert electronic, educatie si formare, networking, etc.)",1270.0,2012-01-25T00:00:00,In implementare
240,3,3,3,1.0,46374,Implementarea unui sistem CRM pentru eficientizarea activitatii,QSCERT SRL,CENTRU,BRASOV,MUNICIPIUL BRASOV,9524,7,8,28,1478/331,2013-12-23T00:00:00,1304001.36000000010244548320770263671875,1046524,"Servicii si aplicatii pentru IMM-uri (comert electronic, educatie si formare, networking, etc.)",4818.0,2012-03-30T00:00:00,In implementare
241,3,3,3,2.0,47391,CRESTEREA ACTIVITATII SC YOUNIQUE ADVISERS SRL PRIN IMPLEMENTAREA B2C SI PLATFORMA COMERT ON-LINE, YOUNIQUE ADVISERS SRL,BUCURESTI - ILFOV,BUCURESTI,MUNICIPIUL BUCURESTI,13249,8,40,1,1370/332,2013-12-18T00:00:00,258482.39999999999417923390865325927734375,206885,"Servicii si aplicatii pentru IMM-uri (comert electronic, educatie si formare, networking, etc.)",7854.0,2012-06-19T00:00:00,In implementare
242,3,3,3,1.0,46640,Modernizarea societatii NOVATEX SRL prin implementarea unui sistem informatic integrat,NOVATEX SRL,NORD-VEST,BIHOR,MUNICIPIUL ORADEA,120858,6,5,54,1259/331,2013-12-13T00:00:00,353636.23999999999068677425384521484375,284154.21999999997206032276153564453125,"Servicii si aplicatii pentru IMM-uri (comert electronic, educatie si formare, networking, etc.)",14872.0,2011-10-17T00:00:00,In implementare
243,3,3,3,1.0,46601,M.A.G.I.C.-Managementul Asistat de calculator al facilitatilor si operatiunilor Generale de administrare a Infrastructurii Cladirilor,W.F.M.C-WEST FACILITY MANAGEMENT COMPANY S.R.L.,BUCURESTI - ILFOV,BUCURESTI,MUNICIPIUL BUCURESTI,120839,8,40,1,1680/331,2013-12-30T00:00:00,2826170.799999999813735485076904296875,2242870,"Servicii si aplicatii pentru IMM-uri (comert electronic, educatie si formare, networking, etc.)",15298.0,2011-10-20T00:00:00,In implementare
244,3,3,3,1.0,46666,CRESTEREA COMPETITIVITATII S.C. DECO CENTER SRL PRIN IMPLEMENTAREA SISTEMELOR TIC INTEGRATE PENTRU MANAGEMENTUL AFACERII,Deco Center SRL,NORD-VEST,CLUJ,SAVADISLA,13047,6,12,68,1265/331,2013-12-13T00:00:00,1023000,755400,"Servicii si aplicatii pentru IMM-uri (comert electronic, educatie si formare, networking, etc.)",14264.0,2011-10-10T00:00:00,In implementare
245,3,3,3,2.0,47217,Cresterea eficientei activitatii SC FLAMM PHOENIX SRL prin implementare platforma e-commerce, FLAMM PHOENIX SRL,BUCURESTI - ILFOV,BUCURESTI,MUNICIPIUL BUCURESTI,83748,8,40,1,1792/332,2014-02-28T00:00:00,471200,379900,"Servicii si aplicatii pentru IMM-uri (comert electronic, educatie si formare, networking, etc.)",8428.0,2012-06-29T00:00:00,In implementare
246,3,3,3,1.0,46269,Cresterea competitivitatii SC Alexfrigotehnic SRL prin implementarea unui sistem informatic integrat ¿i a unei aplica¿ii software pentru, ALEXFRIGOTEHNIC S.R.L.,CENTRU,MURES,MUNICIPIUL TÂRGU MURES,120354,7,26,59,1128/331,2013-12-03T00:00:00,300582.2000000000116415321826934814453125,240365,"Servicii si aplicatii pentru IMM-uri (comert electronic, educatie si formare, networking, etc.)",4410.0,2012-03-26T00:00:00,In implementare
247,3,3,3,1.0,46278,IMPLEMENTARE SISTEM ERP LA SC EDITURA DIANA SRL PITESTI,EDITURA DIANA S.R.L.,SUD - MUNTENIA,ARGES,MUNICIPIUL PITESTI,121277,3,3,62,1117/331,2013-12-02T00:00:00,571286.599999999976716935634613037109375,453940,"Servicii si aplicatii pentru IMM-uri (comert electronic, educatie si formare, networking, etc.)",4434.0,2012-03-26T00:00:00,In implementare
248,3,3,3,1.0,46341,Implementare ERP pentru dezvoltarea SC Kynita SRL,KYNITA SRL,SUD-VEST OLTENIA,VALCEA,BERISLAVESTI,13696,4,38,4,1038/331,2013-11-05T00:00:00,345092,278300,"Servicii si aplicatii pentru IMM-uri (comert electronic, educatie si formare, networking, etc.)",4752.0,2012-03-29T00:00:00,In implementare
249,3,3,3,2.0,47248,Cresterea competitivitatii SC MEDROM CONSULTING SRL prin implementarea unui sistem informatic de comert electronic,MEDROM CONSULTING SRL ,SUD-EST,CONSTANTA,MUNICIPIUL CONSTANTA,121862,2,13,39,1461/332,2013-12-20T00:00:00,266126.3200000000069849193096160888671875,193851,"Servicii si aplicatii pentru IMM-uri (comert electronic, educatie si formare, networking, etc.)",8680.0,2012-07-04T00:00:00,In implementare
250,3,3,3,1.0,47458,CRESTEREA EFICIENTEI ECONOMICE A SC WENS TOUR SRL PRIN IMPLEMENTAREA UNEI APLICATII SOFTWARE DE MANAGEMENT AL RELATIILOR CU CLIENTII, WENS TOUR SRL,NORD-VEST,BISTRITA-NASAUD,MUNICIPIUL BISTRITA,12638,6,6,30,1528/331,2013-12-23T00:00:00,242784.9299999999930150806903839111328125,188864.2999999999883584678173065185546875,"Servicii si aplicatii pentru IMM-uri (comert electronic, educatie si formare, networking, etc.)",13926.0,2011-10-07T00:00:00,In implementare
251,3,3,3,1.0,45913,IMPLEMENTAREA SISTEMELOR INFORMATICE DE TIP ERP ¿i CRM,PROENERG S.R.L.,CENTRU,MURES,MUNICIPIUL TÂRGU MURES,9980,7,26,59,1321/331,2013-12-16T00:00:00,653984.7700000000186264514923095703125,527407.079999999958090484142303466796875,"Servicii si aplicatii pentru IMM-uri (comert electronic, educatie si formare, networking, etc.)",15038.0,2011-10-18T00:00:00,In implementare
252,3,3,3,2.0,47227,Dezvoltarea platformei de e-commerce a companiei Dacris Impex,DACRIS IMPEX SRL ,SUD-EST,CONSTANTA,MUNICIPIUL CONSTANTA,121842,2,13,39,1468/332,2013-12-20T00:00:00,496000,400000,"Servicii si aplicatii pentru IMM-uri (comert electronic, educatie si formare, networking, etc.)",8514.0,2012-07-02T00:00:00,In implementare
253,3,3,3,2.0,47238,"S¿n¿tate din prima, on-line! - Implementare Solu¿ie IT integrat¿ de comer¿ electronic ¿i managementul vânz¿rilor în farmaciile PRIMAFARM",GENERAL TRANSCOM SRL,SUD-EST,GALATI,MUNICIPIUL GALATI,121786,2,17,35,1469/332,2013-12-23T00:00:00,683670.180000000051222741603851318359375,549400.2700000000186264514923095703125,"Servicii si aplicatii pentru IMM-uri (comert electronic, educatie si formare, networking, etc.)",8528.0,2012-07-03T00:00:00,In implementare
254,3,3,3,1.0,46371,Dezvoltarea sistemelor TIC in cadrul societatii Dunarea Proiect Grup SRL,AEG TEHNOLOGY SRL ,SUD-EST,GALATI,MUNICIPIUL GALATI,121935,2,17,35,1702/331,2013-12-30T00:00:00,1681223.34000000008381903171539306640625,1352185.41999999992549419403076171875,"Servicii si aplicatii pentru IMM-uri (comert electronic, educatie si formare, networking, etc.)",4600.0,2012-04-06T00:00:00,In implementare
255,3,3,3,1.0,46576,Cresterea eficientei si randamentului activitatii in cadrul SC Pita SRL prin implementarea de solutii software performante,PITA SRL,NORD-EST,BOTOSANI,MUNICIPIUL BOTOSANI,120826,1,7,44,875/331,2013-08-30T00:00:00,284049.3300000000162981450557708740234375,229072.04000000000814907252788543701171875,"Servicii si aplicatii pentru IMM-uri (comert electronic, educatie si formare, networking, etc.)",14314.0,2011-10-11T00:00:00,In implementare
256,3,3,3,1.0,47313,TRAVEL VALUE ¿ PERFORMANTE EUROPENE INTR-UN PREZENT SI VIITOR ROMÂNESC,Milenium Pro Design SRL ,BUCURESTI - ILFOV,BUCURESTI,MUNICIPIUL BUCURESTI,6015,8,40,1,1386/331,2013-12-19T00:00:00,1071152.91999999992549419403076171875,863343,"Servicii si aplicatii pentru IMM-uri (comert electronic, educatie si formare, networking, etc.)",14624.0,2011-10-14T00:00:00,In implementare
257,3,3,3,2.0,46935,Cresterea competitivitatii firmei Ars Industrial cu ajutorul implementarii unei platforme e-learning,ARS INDUSTRIAL S.R.L. ,SUD - MUNTENIA,PRAHOVA,MUNICIPIUL PLOIESTI,121892,3,29,56,1509/332,2013-12-23T00:00:00,1388495.7299999999813735485076904296875,1066269.16999999992549419403076171875,"Servicii si aplicatii pentru IMM-uri (comert electronic, educatie si formare, networking, etc.)",758.0,2012-01-07T00:00:00,In implementare
258,3,3,3,2.0,47078,CRE¿TEREA COMPETITIVIT¿¿II ECONOMICE A BLUENOTE COMMUNICATIONS SA PRIN IMPLEMENTAREA PLATFORMEI ELECTRONICE DE VÂNZARE ¿I LIVRARE SERVICII SCADA,BLUENOTE COMMUNICATIONS SA,NORD-EST,IASI,MUNICIPIUL IASI,121918,1,22,57,1424/332,2013-12-20T00:00:00,380704.7999999999883584678173065185546875,216020,"Servicii si aplicatii pentru IMM-uri (comert electronic, educatie si formare, networking, etc.)",808.0,2012-01-10T00:00:00,In implementare
259,3,3,3,1.0,46132,IMPLEMENTAREA UNUI SISTEM INFORMATIC INTEGRAT PENTRU IMBUNATATIREA ACTIVIT¿TII FIRMEI SC PRORED SRL TIMISOARA,PRORED SRL,VEST,TIMIS,MUNICIPIUL TIMISOARA,121377,5,35,54,1455/331,2013-12-20T00:00:00,1059499.3999999999068677425384521484375,854435,"Servicii si aplicatii pentru IMM-uri (comert electronic, educatie si formare, networking, etc.)",14194.0,2011-10-10T00:00:00,In implementare
260,3,3,3,2.0,47088,CRESTEREA COMPETITIVITATII SI OPTIMIZAREA ACTIVITATII S.C. DOMO MEDIA S.R.L. PRIN IMPLEMENTAREA UNUI SISTEM INFORMATIC E-COMERT,DOMO MEDIA SRL,NORD-EST,IASI,MUNICIPIUL IASI,13175,1,22,57,1413/332,2013-12-20T00:00:00,380977.599999999976716935634613037109375,292700,"Servicii si aplicatii pentru IMM-uri (comert electronic, educatie si formare, networking, etc.)",668.0,2012-01-11T00:00:00,In implementare
261,1,1,1.100000000000000088817841970012523233890533447265625,2.0,48037,Incluziunea grupurilor defavorizate prin crearea de locuri de munca durabile in zona Pata Rat,Municipiul Cluj-Napoca,NORD-VEST,CLUJ,MUNICIPIUL CLUJ-NAPOCA,2379,6,12,52,4024.0,2014-01-24T00:00:00,1822967.80000000004656612873077392578125,1577555.08000000007450580596923828125,Alte investitii in firme,NV/1/1.1/PC/1/23,2013-04-30T00:00:00,In implementare
262,3,2,3,1.0,47385,EFICIENTIZAREA CONSUMULUI ENERGETIC PRIN UTILIZAREA ENERGIEI SOLARE,ALTERNATIVE VECTOR TRUST S.R.L.,NORD-EST,IASI,MUNICIPIUL IASI,13204,1,22,57,566.0,2013-09-09T00:00:00,1013517.0200000000186264514923095703125,828251.400000000023283064365386962890625,"Asistenta pentru C&DT, in special pentru IMM-uri (inclusiv accesul la servicii C&DT in centrele de cercetare)",1654.0,2012-12-11T00:00:00,In implementare
263,4,6,6.20000000000000017763568394002504646778106689453125,***,48068,Solutii de integrare pentru grupuri vulnerabile,DIRECTIA GENERALA DE ASISTENTA SOCIALA SI PROTECTIA COPILULUI ,SUD-EST,VRANCEA,MUNICIPIUL FOCSANI,120803,2,39,32,POSDRU/117/6.2/G/124225,2013-10-31T00:00:00,2292633.1000000000931322574615478515625,2224633.8999999999068677425384521484375,"Masuri de integrare si reintegrare pe piata muncii a persoanelor dezavantajate; combaterea discriminarii in ceea ce priveste accesul si promovarea pe piata muncii, incurajarea acceptarii diversitatii la locul de  munca",124225.0,2012-11-30T00:00:00,In implementare
264,3,2,3,1.0,47397,INFIINTAREA LABORATORULUI AUTO SI DE SIGURANTA RUTIERA EXPERT ACCIDENT,EXPERT ACCIDENT RECONSTRUCTION SRL,NORD-EST,IASI,BÂRNOVA,120414,1,22,10,567.0,2013-09-09T00:00:00,980424,831273,"Asistenta pentru C&DT, in special pentru IMM-uri (inclusiv accesul la servicii C&DT in centrele de cercetare)",1702.0,2012-12-14T00:00:00,In implementare
265,3,3,3,2.0,47136,"Optimizarea afacerii, cresterea eficientei si a productivitatii SC Pro Mixtel SRL prin utilizarea sistemelor tehnologice inovative!",PRO MIXTEL SRL,CENTRU,BRASOV,MUNICIPIUL BRASOV,121826,7,8,28,1644/332,2013-12-30T00:00:00,792362.359999999986030161380767822265625,597785.25,"Servicii si aplicatii pentru IMM-uri (comert electronic, educatie si formare, networking, etc.)",8158.0,2012-06-25T00:00:00,In implementare
266,3,3,3,2.0,46853,CRE¿TEREA COMPETITIVIT¿¿II SC MAXX COMPUTERS SRL PRIN IMPLEMENTAREA UNEI SOLU¿II INTEGRATE DE E-COMMERCE,MAXX COMPUTERS SRL,NORD-EST,NEAMT,MUNICIPIUL PIATRA-NEAMT,13023,1,27,44,1541/332,2013-12-24T00:00:00,2090305.19999999995343387126922607421875,1685730,"Servicii si aplicatii pentru IMM-uri (comert electronic, educatie si formare, networking, etc.)",662.0,2012-01-12T00:00:00,In implementare
267,3,3,3,2.0,48164,Implementarea unui sistem informatic de comert electronic la S.C.GERCOMP S.R.L,GERCOMP S.R.L.,CENTRU,COVASNA,MUNICIPIUL SFÂNTU GHEORGHE,2408,7,14,28,1550/332,2013-12-24T00:00:00,369160.400000000023283064365386962890625,294490,"Servicii si aplicatii pentru IMM-uri (comert electronic, educatie si formare, networking, etc.)",368.0,2012-01-10T00:00:00,In implementare
268,4,6,6.20000000000000017763568394002504646778106689453125,***,48070,"Evaluarea, formarea si incluziunea pe piata muncii a grupurilor vulnerabile din Judetul Braila",DIRECTIA GENERALA DE ASISTENTA SOCIALA SI PROTECTIA COPILULUI ,SUD-EST,BRAILA,MUNICIPIUL BRAILA,120805,2,9,19,POSDRU/117/6.2/G/124424,2013-10-31T00:00:00,2235734.5899999998509883880615234375,2235734.5899999998509883880615234375,"Masuri de integrare si reintegrare pe piata muncii a persoanelor dezavantajate; combaterea discriminarii in ceea ce priveste accesul si promovarea pe piata muncii, incurajarea acceptarii diversitatii la locul de  munca",124424.0,2012-11-30T00:00:00,In implementare
269,3,2,3,1.0,47937,Obtinerea uleiurilor volatile prin extractie in camp de microunde din petalele de trandafir rezultate din procesul de crestere si cultivare-,SINTCHEM TECHNOLOGIES S.R.L.,CENTRU,BRASOV,MUNICIPIUL  CODLEA,120168,7,8,27,507.0,2013-07-31T00:00:00,1044510,833250,"Investitii in firme direct legate de cercetare si inovare (tehnologii inovatoare, infiintarea de noi firme de catre universitati, centre si firme C&DT existente)",1622.0,2012-11-08T00:00:00,In implementare
270,3,3,3,1.0,46507,Dezvoltarea Sistemului Informatic PRIMER de Automatizare a Proceselor de Afaceri în cadrul S.C. Primul Meridian S.R.L.,PRIMUL MERIDIAN SRL,SUD-VEST OLTENIA,OLT,MUNICIPIUL SLATINA,120894,4,28,54,1579/331,2013-12-24T00:00:00,2755247.75999999977648258209228515625,2221974,"Servicii si aplicatii pentru IMM-uri (comert electronic, educatie si formare, networking, etc.)",15392.0,2011-10-21T00:00:00,In implementare
271,3,3,2,1.0,48355,Gestiune in sistem informatic,Consiliul Judetean Bistrita-Nasaud,NORD-VEST,BISTRITA-NASAUD,MUNICIPIUL BISTRITA,128,6,6,30,1143/321,2013-12-04T00:00:00,6734605,6734605,"Servicii si aplicatii pentru cetateni (e-sanatate, e-guvernare, e-invatare, e-incluziune)",5040.0,2013-06-05T00:00:00,In implementare
272,3,3,3,2.0,47135,"Cresterea competitivitatii S.C. TECHNOVA INVEST S.R.L. prin implementarea de sisteme informatice de comert electronic, B2C, B2B",TECHNOVA INVEST S.R.L.,NORD-VEST,BIHOR,MUNICIPIUL ORADEA,4227,6,5,54,1353/332,2013-12-17T00:00:00,820080.19999999995343387126922607421875,656515,"Servicii si aplicatii pentru IMM-uri (comert electronic, educatie si formare, networking, etc.)",6222.0,2012-05-11T00:00:00,In implementare
273,3,3,1,1.0,43255,	Investi¿ii în echipamente TIC performante la firma S.C. METALOTEHNIC S.R.L.,METALOTEHNIC S.R.L.,NORD-VEST,CLUJ,MUNICIPIUL CLUJ-NAPOCA,121145,6,12,52,847/311,2013-07-31T00:00:00,22558.70000000000072759576141834259033203125,18192.5,Alte masuri pentru imbunatatirea accesului si utilizarea eficienta a TIC de catre IMM-uri,3352.0,2011-03-07T00:00:00,In implementare
274,3,3,3,2.0,47121,Implementarea unei solutii informatice e-commerce pentru dezvoltarea afacerii in cadrul SC SANIFARM SA,SANIFARM SA,NORD-VEST,BIHOR,SANMARTIN,121368,6,5,86,1481/332,2013-12-23T00:00:00,426251.3200000000069849193096160888671875,339581.099999999976716935634613037109375,"Servicii si aplicatii pentru IMM-uri (comert electronic, educatie si formare, networking, etc.)",6255.0,2012-05-14T00:00:00,In implementare
275,3,3,3,1.0,46091,Cresterea competitivitatii si eficientei firmei S.C. LM CLIVENTINS S.R.L prin implementarea de sisteme informatice,LM CLIVENTINS S.R.L,NORD-VEST,CLUJ,MUNICIPIUL CLUJ-NAPOCA,121276,6,12,52,1341/331,2013-12-17T00:00:00,373004.5,300810.0900000000256113708019256591796875,"Servicii si aplicatii pentru IMM-uri (comert electronic, educatie si formare, networking, etc.)",4148.0,2012-03-20T00:00:00,In implementare
276,3,3,3,1.0,46095,Dezvoltarea sistemelor informatice de analiza economica si suport decizional pentru managementul forestier.,Ocolul Silvic de Regim Gheorgheni SA,CENTRU,HARGHITA,MUNICIPIUL  GHEORGHENI,11535,7,19,32,1324/331,2013-12-16T00:00:00,501406.400000000023283064365386962890625,404360,"Servicii si aplicatii pentru IMM-uri (comert electronic, educatie si formare, networking, etc.)",4146.0,2012-03-20T00:00:00,In implementare
277,3,3,3,1.0,46205,Eficienta si competitivitate prin implementarea unui sistem informatic integrat de tip ERP,TOTAL AQUA DISTRIBUTION SRL,SUD - MUNTENIA,PRAHOVA,MUNICIPIUL CÂMPINA,120974,3,29,55,1035/331,2013-11-05T00:00:00,661595.80000000004656612873077392578125,533545,"Servicii si aplicatii pentru IMM-uri (comert electronic, educatie si formare, networking, etc.)",18000.0,2011-12-16T00:00:00,In implementare
278,3,3,3,2.0,46686,Dezvoltarea unei platforme e-lerning pentru IMM-uri la nivelul SC COGNISTUDIO SRL,COGNISTUDIO S.R.L. ,BUCURESTI - ILFOV,BUCURESTI,MUNICIPIUL BUCURESTI,121914,8,40,1,1706/332,2013-12-30T00:00:00,1080517.3999999999068677425384521484375,861789,"Servicii si aplicatii pentru IMM-uri (comert electronic, educatie si formare, networking, etc.)",426.0,2012-01-11T00:00:00,In implementare
279,3,2,3,1.0,47583,MIND MAP,SMART MIND LAB SRL,BUCURESTI - ILFOV,ILFOV,ORAS VOLUNTARI,25228,8,23,34,519.0,2013-07-31T00:00:00,938031.21999999997206032276153564453125,833211.6899999999441206455230712890625,"Investitii in firme direct legate de cercetare si inovare (tehnologii inovatoare, infiintarea de noi firme de catre universitati, centre si firme C&DT existente)",1551.0,2012-08-31T00:00:00,In implementare
280,3,3,3,1.0,46001,CRESTEREA COMPETITIVITATII S.C. AGILROM SCIENTIFIC S.R.L. PRIN IMPLEMENTAREA UNUI SISTEM INFORMATIC DE TIP ERP, AGILROM SCIENTIFIC SRL,BUCURESTI - ILFOV,ILFOV,ORAS VOLUNTARI,13284,8,23,34,1053/331,2013-11-11T00:00:00,632263.599999999976716935634613037109375,505192,"Servicii si aplicatii pentru IMM-uri (comert electronic, educatie si formare, networking, etc.)",4612.0,2012-03-29T00:00:00,In implementare
281,3,3,3,1.0,46071,IMPLEMENTAREA SISTEMELOR DE PLANIFICARE A RESURSELOR SI SUPORT DECIZIONAL LA SC ORION EUROPE SRL,ORION EUROPE S.R.L. ,BUCURESTI - ILFOV,BUCURESTI,MUNICIPIUL BUCURESTI,121750,8,40,1,1401/331,2013-12-19T00:00:00,988240.319999999948777258396148681640625,774394,"Servicii si aplicatii pentru IMM-uri (comert electronic, educatie si formare, networking, etc.)",4810.0,2012-03-29T00:00:00,In implementare
282,3,3,3,1.0,46276,"CRESTEREA EFICIENTEI SI A COMPETITIVITATII DE PIATA A SC ERG TERMROM FILIALA GALATI SRL PRIN REORGANIZAREA, REPROIECTAREA SI MODERNIZAREA INFRASTRUCTURII TIC",ERG TERMROM FILIALA GALAÞI S.R.L. ,SUD-EST,GALATI,MUNICIPIUL GALATI,121098,2,17,35,1489/331,2013-12-23T00:00:00,1545688.120000000111758708953857421875,1246522.67999999993480741977691650390625,"Servicii si aplicatii pentru IMM-uri (comert electronic, educatie si formare, networking, etc.)",4720.0,2012-04-09T00:00:00,In implementare
283,3,3,3,1.0,46651,"Achizi¿ionarea ¿i implementarea unui sistem informatic integrat de management pentru cre¿terea eficien¿ei proceselor interne ¿i îmbun¿t¿¿irea deciziilor manageriale, în cadrul SC RUBIN SRL, loc. Bistri¿a, jud. Bistri¿a N¿s¿ud",Rubin SRL,NORD-VEST,BISTRITA-NASAUD,MUNICIPIUL BISTRITA,12718,6,6,30,1373/331,2013-12-18T00:00:00,593169.109999999986030161380767822265625,469900.98999999999068677425384521484375,"Servicii si aplicatii pentru IMM-uri (comert electronic, educatie si formare, networking, etc.)",14246.0,2011-10-10T00:00:00,In implementare
284,3,3,3,1.0,46625,CRESTEREA EFICIENTEI SC OTZ CENTRAL SRL PRIN INTRODUCEREA DE SISTEME TIC MODERNE,OTZ CENTRAL S.R.L.,SUD-EST,BUZAU,POSTA CÂLNAU,120916,2,10,58,1507/331,2013-12-23T00:00:00,508884.8400000000256113708019256591796875,410164,"Servicii si aplicatii pentru IMM-uri (comert electronic, educatie si formare, networking, etc.)",14494.0,2011-10-13T00:00:00,In implementare
285,3,2,3,3.0,47432,Sistem Grid purtabil pentru monitorizarea si procesarea la distanta a functiilor vitale,ELCOS PROIECT SRL,BUCURESTI - ILFOV,BUCURESTI,MUNICIPIUL BUCURESTI,11964,8,40,1,543.0,2013-08-28T00:00:00,5185109,4429379,"Alte masuri pentru stimularea cercetarii, inovarii si antreprenoriatului in IMM -uri",1727.0,2012-12-18T00:00:00,In implementare
286,3,2,3,3.0,47438,DEZVOLTAREA TEHNOLOGICA A S.C. ANASTIC CONSTRUCT S.R.L. PRIN INTRODUCEREA IN PRODUCTIE A BREVETELOR DE INVENTIE,ANASTIC CONSTRUCT S.R.L.,SUD - MUNTENIA,PRAHOVA,BLEJOI,12602,3,29,15,540.0,2013-08-28T00:00:00,6228564,5007560,"Alte masuri pentru stimularea cercetarii, inovarii si antreprenoriatului in IMM -uri",1736.0,2012-12-19T00:00:00,In implementare
287,3,3,3,1.0,46118,CRESTEREA PRODUCTIVITATII FIRMEI SI IMBUNATATIREA DECIZIILOR MANAGERIALE PRIN REORGANIZAREA PROCESELOR INTERNE PE BAZA UNUI SISTEM INFORMATIC,TURKROM SA ,SUD-EST,VRANCEA,MUNICIPIUL FOCSANI,121569,2,39,32,1094/331,2013-11-25T00:00:00,331340.7000000000116415321826934814453125,266710.2299999999813735485076904296875,"Servicii si aplicatii pentru IMM-uri (comert electronic, educatie si formare, networking, etc.)",4772.0,2012-03-30T00:00:00,In implementare
288,3,3,3,1.0,46249,Îmbun¿t¿¿irea managementului ciclului de via¿¿ al produselor firmei HECOMIN IMPEX,HECOMIN IMPEX SRL,NORD-EST,BACAU,MUNICIPIUL BACAU,614,1,4,47,1490/331,2013-12-23T00:00:00,252140.58999999999650754034519195556640625,203339.1900000000023283064365386962890625,"Servicii si aplicatii pentru IMM-uri (comert electronic, educatie si formare, networking, etc.)",4592.0,2012-04-06T00:00:00,In implementare
289,3,3,3,1.0,46020,MODERNIZAREA SC DRUMURI ¿I PODURI MURE¿ SRL PRIN INVESTI¿II ÎN DOMENIUL TEHNOLOGIEI INFORMA¿IEI ¿ ACHIZI¿IE PROGRAM DE TIP ERP,DRUMURI SI PODURI MURES SRL,CENTRU,MURES,MUNICIPIUL TÂRGU MURES,3164,7,26,59,1727/331,2013-12-30T00:00:00,2375406,1915650,"Servicii si aplicatii pentru IMM-uri (comert electronic, educatie si formare, networking, etc.)",14888.0,2011-10-17T00:00:00,In implementare
290,3,3,3,2.0,46897,Dezvoltarea unei platforme Business to Business pentru IMM-uri,STARBYTE SRL,BUCURESTI - ILFOV,BUCURESTI,MUNICIPIUL BUCURESTI,120207,8,40,1,1051/332,2013-11-11T00:00:00,769375.53000000002793967723846435546875,594362.9399999999441206455230712890625,"Servicii si aplicatii pentru IMM-uri (comert electronic, educatie si formare, networking, etc.)",4356.0,2012-03-23T00:00:00,In implementare
291,3,2,3,1.0,47815,Centru de dezvoltare a intreprinderilor pentru adaptabilitate,GNOSIS THEORY SRL,BUCURESTI - ILFOV,BUCURESTI,MUNICIPIUL BUCURESTI,25893,8,40,1,492.0,2013-07-31T00:00:00,981684,833100,"Investitii in firme direct legate de cercetare si inovare (tehnologii inovatoare, infiintarea de noi firme de catre universitati, centre si firme C&DT existente)",1664.0,2012-12-12T00:00:00,In implementare
292,4,5,5.20000000000000017763568394002504646778106689453125,***,48318,FII ANTREPRENOR INTR-UN SAT EUROPEAN!,MEMO CONSULT K.R. SRL,BUCURESTI - ILFOV,BUCURESTI,MUNICIPIUL BUCURESTI,121069,8,40,1,POSDRU/143/5.2/G/128670,2014-03-31T00:00:00,2108154,1959299.8100000000558793544769287109375,Implementarea de masuri active si preventive pe piata muncii,4345.0,2013-07-04T00:00:00,In implementare
293,3,1,1,1.0,43639,"ACHIZITIA DE UTILAJE TEHNOLOGICE PERFORMANTE PENTRU DIVERSIFICAREA PRODUCTIEI IN CADRUL S.C ROATA NOROCULUI S.R.L
",ROATA NOROCULUI S.R.L.,CENTRU,BRASOV,SINCA,11105,7,8,46,4m/400742/6,2013-11-29T00:00:00,1733702.28000000002793967723846435546875,1395647,Alte investitii in firme,1142.0,2012-06-30T00:00:00,In implementare
294,3,1,1,1.0,43685,"Dezvoltarea durabila a firmei ITALY PALLETS S.R.L. prin investitii in domeniul producerii peletilor
", ITALY PALLETS S.R.L.,SUD - MUNTENIA,ARGES,LEORDENI,14092,3,3,47,4m/400608/1,2013-11-21T00:00:00,1891560.80000000004656612873077392578125,1521420,Alte investitii in firme,1124.0,2012-06-30T00:00:00,In implementare
295,3,3,3,2.0,46672,POSEIDON-Portal de vanzare Online de SErviciI si proDuse B2B de tip Platform-as-a-Service la nivel National,RO AUDIO EXIM S.R.L.,BUCURESTI - ILFOV,BUCURESTI,MUNICIPIUL BUCURESTI,121037,8,40,1,1714/332,2013-12-30T00:00:00,1652982,1333050,"Servicii si aplicatii pentru IMM-uri (comert electronic, educatie si formare, networking, etc.)",570.0,2012-12-01T00:00:00,In implementare
296,7,1,1.100000000000000088817841970012523233890533447265625,***,48101,Strategia integrata de dezvoltare durabila a Deltei Dunarii si implementarea acesteia printr-o Investitie Teritoriala Integrata,MDRAP,BUCURESTI - ILFOV,BUCURESTI,MUNICIPIUL BUCURESTI,7235,8,40,1,CTRF 1.1.135,2013-07-19T00:00:00,13104003.2300000004470348358154296875,13104003.2300000004470348358154296875,"Pregatire, implementare, monitorizare si inspectie",CF 1.135,2013-05-22T00:00:00,In implementare
297,3,3,3,1.0,47306,CRESTEREA COMPETITIVITATII SI EFICACITATII SOCIETATII TEHNO WORLD S.R.L. PRIN ACHIZITIONAREA SI IMPLEMENTAREA DE SOLUTII SI ECHIPAMENTE TIC PERFORMANTE,TEHNO WORLD SRL,NORD-EST,SUCEAVA,BAIA,12009,1,33,3,1019/331,2013-10-30T00:00:00,752243.5200000000186264514923095703125,600688.569999999948777258396148681640625,"Servicii si aplicatii pentru IMM-uri (comert electronic, educatie si formare, networking, etc.)",15482.0,2011-10-24T00:00:00,In implementare
298,4,7,7.0999999999999996447286321199499070644378662109375,***,41398,"¿Asigurarea serviciilor de paz¿, protec¿ie ¿i supraveghere, control acces la sediul AMPOSDRU pentru perioada aprilie ¿ decembrie 2011¿.","Ministerul Muncii, Familiei si Protectiei Sociale - DG AM POSDRU",BUCURESTI - ILFOV,BUCURESTI,MUNICIPIUL BUCURESTI,29,8,40,1,POSDRU/7/7.1/17,2011-12-03T00:00:00,138600,138600,"Pregatire, implementare, monitorizare si inspectie",E3148,2011-12-03T00:00:00,In implementare
299,4,7,7.0999999999999996447286321199499070644378662109375,***,48785,Achizitionarea de mobilier birourile de management ale AMPOSDRU,"Ministerul Muncii, Familiei si Protectiei Sociale - DG AM POSDRU",BUCURESTI - ILFOV,BUCURESTI,MUNICIPIUL BUCURESTI,29,8,40,1,POSDRU/7/7.1/40,2012-12-10T00:00:00,67605,67605,"Pregatire, implementare, monitorizare si inspectie",54.0,2012-12-10T00:00:00,In implementare
300,3,3,3,2.0,46921,Cresterea competitivitatii S.C. Top Sport S.R.L. prin implementarea unui magazin online,TOP SPORT SRL,SUD-EST,BUZAU,MUNICIPIUL BUZAU,121418,2,10,44,1188/332,2013-12-06T00:00:00,558748.959999999962747097015380859375,395946,"Servicii si aplicatii pentru IMM-uri (comert electronic, educatie si formare, networking, etc.)",7184.0,2012-06-05T00:00:00,In implementare
301,3,3,3,1.0,46163,Eficientizarea managementul firmei Simacek Cleaning SRL prin implementarea unui sistem integrat de management informatic,SIMACEK CLEANING SRL,NORD-VEST,CLUJ,MUNICIPIUL CLUJ-NAPOCA,13333,6,12,52,899/331,2013-09-16T00:00:00,1735458.80000000004656612873077392578125,1386933.55000000004656612873077392578125,"Servicii si aplicatii pentru IMM-uri (comert electronic, educatie si formare, networking, etc.)",15202.0,2011-10-20T00:00:00,In implementare
302,4,7,7.0999999999999996447286321199499070644378662109375,***,48789,Asigurare servicii de cur¿¿enie ¿i igenizare pentru sediul AMPOSDRU,"Ministerul Muncii, Familiei si Protectiei Sociale - DG AM POSDRU",BUCURESTI - ILFOV,BUCURESTI,MUNICIPIUL BUCURESTI,29,8,40,1,POSDRU/7/7.1/45,2013-03-19T00:00:00,64000,64000,"Pregatire, implementare, monitorizare si inspectie",12.0,2013-03-19T00:00:00,In implementare
303,4,7,7.0999999999999996447286321199499070644378662109375,***,41401,Servicii de mentenan¿¿ pentru sediul AMPOSDRU,"Ministerul Muncii, Familiei si Protectiei Sociale - DG AM POSDRU",BUCURESTI - ILFOV,BUCURESTI,MUNICIPIUL BUCURESTI,29,8,40,1,POSDRU/7/7.1/20,2011-09-08T00:00:00,344920.3200000000069849193096160888671875,344920.3200000000069849193096160888671875,"Pregatire, implementare, monitorizare si inspectie",E1807,2010-05-11T00:00:00,In implementare
304,1,4,4.29999999999999982236431605997495353221893310546875,1.0,39309,Dezvoltarea companiei prin achizitia de echipamente performante,SUPER DENT SRL,SUD-VEST OLTENIA,DOLJ,MUNICIPIUL CRAIOVA,121345,4,16,68,3826.0,2013-09-04T00:00:00,1103000.83000000007450580596923828125,889516.80000000004656612873077392578125,Alte investitii in firme,SV/12/4/4.3/434/18.10.2010,2010-10-18T00:00:00,In implementare
305,1,5,5.20000000000000017763568394002504646778106689453125,5.0,48248,"CONSTRUIRE CENTRU DE AGREMENT ""POPASUL DOMNESC""",BUCOVINA TRAVEL & EVENTS S.R.L. ,NORD-EST,SUCEAVA,SCHEIA,121158,1,33,92,3979.0,2013-12-11T00:00:00,8781029.5199999995529651641845703125,6528774,Alte masuri de asistenta pentru imbunatatirea serviciilor turistice,NE/71/5/5.2/1122/05.07.2013,2013-07-05T00:00:00,In implementare
306,4,7,7.0999999999999996447286321199499070644378662109375,***,48782,Dezvoltarea software pentru realizarea unui modul integrat cu Actioweb pentru centralizarea activitatilor expertilor angajati in proiectele finantate prin Programul Operational pentru Dezvoltarea Resurselor Umane,"Ministerul Muncii, Familiei si Protectiei Sociale - DG AM POSDRU",BUCURESTI - ILFOV,BUCURESTI,MUNICIPIUL BUCURESTI,29,8,40,1,POSDRU 7/7.1/34,2012-07-31T00:00:00,66000,66000,"Pregatire, implementare, monitorizare si inspectie",2333.0,2012-07-31T00:00:00,In implementare
307,3,3,2,4.0,38143,Implementarea solutiilor de e-sanatate în cadrul Spitalului Judetean de Urgenta Valcea,SPITALUL JUDETEAN DE URGENTA VALCEA,SUD-VEST OLTENIA,VALCEA,MUNICIPIUL RAMNICU VALCEA,120282,4,38,44,719/324,2013-03-05T00:00:00,1677503,1352650,"Servicii si aplicatii pentru cetateni (e-sanatate, e-guvernare, e-invatare, e-incluziune)",10486.0,2011-07-14T00:00:00,In implementare
308,3,1,1,1.0,38287,Achizitie utilaje pentru dezvoltarea durabila a firmei SED IMPEX SRL,SED IMPEX SRL,SUD-VEST OLTENIA,DOLJ,GIURGITA,11083,4,16,49,433/3m,2011-12-12T00:00:00,1889760,1523000,Alte investitii in firme,358.0,2010-09-06T00:00:00,In implementare
309,3,2,1,1.0,38214,Sistem universal de realizare a brichetilor din biomasa obtinuta prin combinarea diverselor deseuri vegetale,ELECTROTECH IND SRL,NORD-EST,IASI,SIRETEL,11746,1,22,80,388.0,2012-06-29T00:00:00,1110150,832940,Activitati de C&DT in centre de cercetare,1253.0,2011-08-18T00:00:00,In implementare
310,3,4,1,2.0,37760,Retehnologizarea statiei 400/110 kV Brasov,TRANSELECTRICA S.A.,BUCURESTI - ILFOV,BUCURESTI,MUNICIPIUL BUCURESTI,5029,8,40,1,1 T,2012-05-31T00:00:00,122145173,90709574,Electricitate,630588.0,2011-07-15T00:00:00,In implementare
311,4,2,2.29999999999999982236431605997495353221893310546875,***,37765,"CALIFICAREA, SANSA VIETII TALE!",BARDROM SECURITY SRL,SUD-EST,BRAILA,MUNICIPIUL BRAILA,3701,2,9,19,POSDRU/108/ 2.3/G/80029,2011-05-09T00:00:00,2203652,2115260,"Dezvoltarea sistemelor si strategiilor de invatare pe tot parcursul vietii in cadrul firmelor, formare si servicii pentru angajati in vederea imbunatatirii capacitatii lor de adaptare la schimbare; promovarea antreprenoriatului si inovarii",5666.0,2010-09-24T00:00:00,In implementare
312,1,5,5.20000000000000017763568394002504646778106689453125,4.0,28714,"Construire piscina si amenajare bar, grupuri sanitare si dusuri",AURORA MAMAIA S.R.L.,SUD-EST,CONSTANTA,MUNICIPIUL CONSTANTA,11779,2,13,39,3110.0,2012-06-11T00:00:00,4184778.91999999992549419403076171875,2963648.799999999813735485076904296875,Alte masuri de asistenta pentru imbunatatirea serviciilor turistice,SE/2/5/5.2/744/06.10.2010,2010-10-06T00:00:00,In implementare
313,5,2,2.29999999999999982236431605997495353221893310546875,***,38218,Reabilitarea si modernizarea infrastructurii portuare in portul Oltenita,Compania Nationala Administratia Porturilor Dunarii Fluviale SA Giurgiu,SUD - MUNTENIA,GIURGIU,MUNICIPIUL GIURGIU,315,3,52,33,96.0,2012-03-28T00:00:00,24603881,17468245,Porturi,102.0,2011-08-26T00:00:00,In implementare
314,4,2,2.29999999999999982236431605997495353221893310546875,***,37799,TeMeAUTO - Calificarea resurselor umane pentru cresterea competitivitatii si productivitatii in domeniul auto,COLEGIUL UCECOM SPIRU HARET,BUCURESTI - ILFOV,BUCURESTI,MUNICIPIUL BUCURESTI,11878,8,40,1,POSDRU/108 /2.3/G/80481,2011-07-21T00:00:00,2166350,2062298,"Dezvoltarea sistemelor si strategiilor de invatare pe tot parcursul vietii in cadrul firmelor, formare si servicii pentru angajati in vederea imbunatatirii capacitatii lor de adaptare la schimbare; promovarea antreprenoriatului si inovarii",5529.0,2010-09-22T00:00:00,In implementare
315,3,1,1,1.0,38815,Dezvoltarea si cresterea competitivitatii companiei SC STELCO SRL,STELCO SRL,NORD-EST,IASI,MUNICIPIUL IASI,5045,1,22,57,3M/500070/2,2014-02-28T00:00:00,10325909,8340625.469999999739229679107666015625,Alte investitii in firme,296.0,2011-08-12T00:00:00,In implementare
316,1,1,1.100000000000000088817841970012523233890533447265625,1.0,38675,Reamenajarea integrata a zonei pietonale din centrul istoric al Municipiului Constanta,Municipiu Resedinta de Judet Constanta,SUD-EST,CONSTANTA,MUNICIPIUL CONSTANTA,135,2,13,39,3034.0,2012-05-10T00:00:00,47806832.289999999105930328369140625,38396603.570000000298023223876953125,Alte infrastructuri sociale,SE/1/1.1/PC/14/30.09.2011,2011-09-30T00:00:00,In implementare
317,6,2,2.20000000000000017763568394002504646778106689453125,***,38550,Sistem integrat de management al activitatii de investitii si control in cadrul Ministerului Dezvoltarii Regionale si Administratiei Publice,MDRAP,BUCURESTI - ILFOV,BUCURESTI,MUNICIPIUL BUCURESTI,7235,8,40,1,2362.0,2013-07-26T00:00:00,16289490.960000000894069671630859375,16289490.960000000894069671630859375,"Mecanisme de imbunatatire a elaborarii politicilor si programelor, a monitorizarii si evaluarii la nivel national, regional si local si de dezvoltare a capacitatii de a elabora politici si programe",1003270.0,2011-09-08T00:00:00,In implementare
318,3,1,1,1.0,38648,Modernizarea SC ELECTRO ALFA CM SRL in vederea cresterii competitivitatii si imbunatatirii potentialului pe piata,ELECTRO ALFA CM S.R.L.,NORD-EST,BOTOSANI,MUNICIPIUL BOTOSANI,10809,1,7,44,230431.0,2012-08-03T00:00:00,18988863.7300000004470348358154296875,14353044.1600000001490116119384765625,Alte investitii in firme,11.03.047,2011-08-16T00:00:00,In implementare
319,3,2,3,3.0,38777,Tehnologii inovative de fabricare a produselor lactate fortifiate cu concentrate proteice,ALMERA INTERNATIONAL S.R.L.,SUD-EST,GALATI,MUNICIPIUL GALATI,11850,2,17,35,402.0,2012-08-01T00:00:00,5744433,4637139,"Alte masuri pentru stimularea cercetarii, inovarii si antreprenoriatului in IMM -uri",1261.0,2011-09-08T00:00:00,In implementare
320,3,1,1,1.0,38537,MODERNIZARE SI EXTINDERE CAPACITATE DE PRODUCTIE A SC MAGLIERIE CRISTIAN IMPEX SRL,MAGLIERIE CRISTIAN IMPEX SRL,SUD-VEST OLTENIA,DOLJ,MUNICIPIUL CALAFAT,12332,4,16,67,229225.0,2012-06-14T00:00:00,34955016.070000000298023223876953125,26610214,Alte investitii in firme,11.03.129,2011-08-16T00:00:00,In implementare
321,3,1,1,1.0,38561,MODERNIZAREA SOCIETATII VIKINGPROFIL S.R.L. PRIN ACHIZITIE DE UTILAJE,VIKINGPROFIL S.R.L.,SUD - MUNTENIA,PRAHOVA,FILIPESTII DE PADURE,12278,3,29,35,229966.0,2012-07-16T00:00:00,5487018.1600000001490116119384765625,4271684.120000000111758708953857421875,Alte investitii in firme,11.03.019,2011-08-16T00:00:00,In implementare
322,1,1,1.100000000000000088817841970012523233890533447265625,3.0,38755,Centru multifunctional de servicii sociale integrate - Tara Minunilor,Municipiul Cluj-Napoca,NORD-VEST,CLUJ,MUNICIPIUL CLUJ-NAPOCA,2379,6,12,52,3041.0,2012-05-02T00:00:00,4063708.8900000001303851604461669921875,3267283.9700000002048909664154052734375,Alte infrastructuri sociale,NV/1/1.1/PC/1/14,2011-10-13T00:00:00,In implementare
323,3,1,1,1.0,38700,EXTINDEREA CAPACITATII DE PRODUCTIE LA SC PRINTCO SRL,Printco SRL,NORD-EST,IASI,MUNICIPIUL IASI,12072,1,22,57,3M/500069/2,2014-02-28T00:00:00,11957655.320000000298023223876953125,9106873.460000000894069671630859375,Alte investitii in firme,115.0,2011-06-28T00:00:00,In implementare
324,3,1,1,1.0,38621,Contributia VAE APCAROM la dezvoltarea durabila a regiunii de Sud-Est prin modernizarea sectorului productiv al fabricii din Buzau,VAE APCAROM SA,SUD-EST,BUZAU,MUNICIPIUL BUZAU,301280002,2,10,44,229965.0,2012-07-16T00:00:00,25929153,18224334,Alte investitii in firme,11.03.040,2011-08-16T00:00:00,In implementare
325,1,5,5.29999999999999982236431605997495353221893310546875,2.0,21553,Actiuni de marketing turistic pentru promovarea produselor turistice specifice zonei Iasi,Asociatia Dar din Dar,NORD-EST,IASI,MUNICIPIUL IASI,7494,1,22,57,1939.0,2011-07-22T00:00:00,909603.0200000000186264514923095703125,675531.459999999962747097015380859375,Promovarea patrimoniului natural,NE/2/5/5.3/B/241/03.06.2010,2010-06-03T00:00:00,In implementare
326,4,4,4.0999999999999996447286321199499070644378662109375,***,38396,SPO-PERFORMANTA SI CALITATE IN SERVICII,Agentia Judeteana pentru Ocuparea Fortei de Munca Salaj,NORD-VEST,SALAJ,MUNICIPIUL ZALAU,10418,6,31,38,POSDRU/111/4.1/S/102732,2012-01-27T00:00:00,9667460,9667460,Modernizarea si dezvoltarea institutiilor cu rol pe piata muncii,269.0,2012-02-22T00:00:00,In implementare
327,4,4,4.0999999999999996447286321199499070644378662109375,***,38400,"Serviciul public de ocupare- calitate,acesibilitate si promptitudine",Agentia Judeteana pentru Ocuparea Fortei de Munca Sibiu,CENTRU,SIBIU,MUNICIPIUL SIBIU,3593,7,32,33,POSDRU/111/4.1/S/91800,2012-02-22T00:00:00,6713681,6713681,Modernizarea si dezvoltarea institutiilor cu rol pe piata muncii,268.0,2012-02-27T00:00:00,In implementare
328,4,4,4.0999999999999996447286321199499070644378662109375,***,38401,"Masuri Integrate de Modernizare si Armonizare a Proceselor Serviciului Public de Ocupare,in Vederea Eficientizarii Activitatii si Reducerii Duratei de Furnizare a Serviciilor Specializate catre Cetateni",Agentia judeteana pentru ocuparea fortei de munca Ilfov,BUCURESTI - ILFOV,BUCURESTI,MUNICIPIUL BUCURESTI,12904,8,40,1,POSDRU/111/4.1/91888,2012-02-20T00:00:00,14938595,14938595,Modernizarea si dezvoltarea institutiilor cu rol pe piata muncii,CI/183,2012-02-27T00:00:00,In implementare
329,6,2,2.20000000000000017763568394002504646778106689453125,***,11201,Promptitudine si performanta in furnizarea serviciilor publice  la nivelul Institutiei Prefectului  Judetul Teleorman,Institutia Prefectului Judetul Teleorman,SUD - MUNTENIA,TELEORMAN,MUNICIPIUL ALEXANDRIA,5318,3,34,46,156.0,2010-06-30T00:00:00,322999.7899999999790452420711517333984375,271598.400000000023283064365386962890625,"Mecanisme de imbunatatire a elaborarii politicilor si programelor, a monitorizarii si evaluarii la nivel national, regional si local si de dezvoltare a capacitatii de a elabora politici si programe",385721.0,2009-07-06T00:00:00,Finalizat
330,4,4,4.0999999999999996447286321199499070644378662109375,***,8131,Serviciul public de ocupare in sprijinul dumneavoastra,Agentia Judeteana pentru Ocuparea Fortei de Munca Calarasi,SUD - MUNTENIA,CALARASI,MUNICIPIUL CALARASI,3573,3,51,30,POSDRU/42/4.1/G/41167,2009-06-25T00:00:00,669800,584800,Modernizarea si dezvoltarea institutiilor cu rol pe piata muncii,2792.0,2008-12-18T00:00:00,In implementare
331,3,3,1,1.0,36975,Optimizarea Logitrade Consulting prin upgradarea conexiunii de internet si a infrastructurii IT&C,LOGITRADE S.R.L.,VEST,TIMIS,MUNICIPIUL TIMISOARA,4100,5,35,54,444/311,2011-10-06T00:00:00,123739.60000000000582076609134674072265625,99790,Alte masuri pentru imbunatatirea accesului si utilizarea eficienta a TIC de catre IMM-uri,7492.0,2010-12-22T00:00:00,In implementare
332,3,1,3,2.0,8349,MAXIMIZAREA VALORII ADAUGATE IN ACTIVITATEA DE PRODUCTIE SI COMERCIALIZARE A CONFECTIILOR,ICE ANGEL COM S.R.L,BUCURESTI - ILFOV,BUCURESTI,MUNICIPIUL BUCURESTI,4933,8,40,1,15/C,2009-03-18T00:00:00,66640,56000,Alte investitii in firme,89 C,2008-06-22T00:00:00,In implementare
333,4,2,2.100000000000000088817841970012523233890533447265625,***,10210,Stagiile de practica-investitie pentru viitor,GRUP SCOLAR INDUSTRIAL DE MATERIALE DE CONSTRUCTII,SUD-VEST OLTENIA,GORJ,MUNICIPIUL TARGU JIU,1404,4,18,38,POSDRU/22/2.1/G/22923,2009-08-31T00:00:00,306410,306410,"Proiectarea, introd. si implem. reformelor in sist. de educatie si formare in scopul cresterii capac.de ocupare, a relevantei formarii initiale si vocationale, imbun. abilitatilor formatorilor, orientate spre inovare si spre o econ. bazata pe cunoastere",1974.0,2008-12-12T00:00:00,In implementare
334,3,1,1,1.0,18894,cresterea productivitatii sc te rox prod srl consecinta  a modernizarii capacitatii de productie prin achizitionarea de echipamente noi si instalatii inalt tehnologizate,TE-ROX PROD S.R.L,NORD-EST,IASI,MUNICIPIUL PASCANI,2502,1,22,58,2m/295,2010-09-03T00:00:00,2609546.629999999888241291046142578125,2167294.459999999962747097015380859375,Alte investitii in firme,480.0,2009-06-12T00:00:00,In implementare
335,4,2,2.29999999999999982236431605997495353221893310546875,***,10076,Calificari multiple ¿ sansa pentru sporirea calitatii vietii,COLEGIUL DE INDUSTRIE ALIMENTARA ELENA DOAMNA,SUD-EST,GALATI,MUNICIPIUL GALATI,3892,2,17,35,POSDRU/24/2.3/G/35794,2009-08-31T00:00:00,318794,297735,"Dezvoltarea sistemelor si strategiilor de invatare pe tot parcursul vietii in cadrul firmelor, formare si servicii pentru angajati in vederea imbunatatirii capacitatii lor de adaptare la schimbare; promovarea antreprenoriatului si inovarii",1914.0,2008-12-11T00:00:00,In implementare
336,1,6,6.20000000000000017763568394002504646778106689453125,2.0,37661,SPRIJIN ACORDAT ORGANISMULUI INTERMEDIAR DIN CADRUL ADR NORD-EST IN PERIOADA 2011-2012 PENTRU IMPLEMENTAREA CU SUCCES A PLANULUI DE COMUNICARE AFERENT PROGRAMUL OPERATIONAL REGIONAL 2007-2013,Agentia pentru Dezvoltare Regionala Nord-Est,NORD-EST,NEAMT,MUNICIPIUL PIATRA-NEAMT,3,1,27,44,34AT,2011-11-01T00:00:00,782317,632836,"Evaluare si studii, informare si comunicare",47702.0,2011-06-21T00:00:00,In implementare
337,4,5,5.0999999999999996447286321199499070644378662109375,***,8637,Calificarea si recalificarea-conditie a dezvoltarii resurselor umane si cresterii competitivitatii acestora pe piata muncii,DINAMIC TOUR BORCEA S.R.L.,SUD - MUNTENIA,CALARASI,MUNICIPIUL CALARASI,4731,3,51,30,POSDRU/46/5.1/G/24153,2009-06-25T00:00:00,953266,928634,Implementarea de masuri active si preventive pe piata muncii,2389.0,2008-12-17T00:00:00,In implementare
338,4,6,6.0999999999999996447286321199499070644378662109375,***,9449,Proactiv - de la marginal la incluziv,ASOCIATIA PENTRU DEZVOLTARE SI PROMOVARE SOCIO ECONOMICA ,SUD - MUNTENIA,TELEORMAN,MUNICIPIUL ALEXANDRIA,3692,3,34,46,POSDRU/69/6.1/S/41447,2009-07-14T00:00:00,16448530,16448530,"Masuri de integrare si reintegrare pe piata muncii a persoanelor dezavantajate; combaterea discriminarii in ceea ce priveste accesul si promovarea pe piata muncii, incurajarea acceptarii diversitatii la locul de  munca",3304.0,2008-12-22T00:00:00,In implementare
339,4,6,6.20000000000000017763568394002504646778106689453125,***,9873,SANSE EGALE pentru integrarea in munca a persoanelor cu dizabilitati intelectuale din Romania,Fundatia Motivation Romania,BUCURESTI - ILFOV,ILFOV,ORAS BRAGADIRU,1429,8,23,27,POSDRU/70/6.2/S/34016,2009-07-23T00:00:00,3965455,3714412,"Masuri de integrare si reintegrare pe piata muncii a persoanelor dezavantajate; combaterea discriminarii in ceea ce priveste accesul si promovarea pe piata muncii, incurajarea acceptarii diversitatii la locul de  munca",2889.0,2008-12-18T00:00:00,In implementare
340,4,2,2.100000000000000088817841970012523233890533447265625,***,10514,Elevi mai informati si mai pregatiti pentru piata muncii,COLEGIUL TEHNIC IOAN C. STEFANESCU IASI,NORD-EST,IASI,MUNICIPIUL IASI,3920,1,22,57,POSDRU/22/2.1/G/24994,2009-08-31T00:00:00,1769074,1685574,"Proiectarea, introd. si implem. reformelor in sist. de educatie si formare in scopul cresterii capac.de ocupare, a relevantei formarii initiale si vocationale, imbun. abilitatilor formatorilor, orientate spre inovare si spre o econ. bazata pe cunoastere",1718.0,2008-11-26T00:00:00,In implementare
341,3,3,3,1.0,10430,ACHIZITII DE SOFTURI LICENTIATE SI ECHIPAMENTE IT PENTRU DEZVOLTAREA INTREPRINDERII SI CRESTEREA COMPETITIVITATII,Key 13 SRL ,NORD-EST,IASI,MUNICIPIUL IASI,4233,1,22,57,275/331,2011-01-10T00:00:00,102930.419999999998253770172595977783203125,83008.39999999999417923390865325927734375,"Servicii si aplicatii pentru IMM-uri (comert electronic, educatie si formare, networking, etc.)",4008.0,2008-12-12T00:00:00,In implementare
342,3,1,1,2.0,10803,MANAGEMENT INTEGRAT PENTRU CRESTEREA CALITATII PRODUSELOR SI DEZVOLTARE DURABILA,ROMPEISAJ SRL,NORD-EST,SUCEAVA,MUNICIPIUL SUCEAVA,4151,1,33,64,82/s,2009-06-17T00:00:00,25298.84000000000014551915228366851806640625,25298.84000000000014551915228366851806640625,Alte investitii in firme,241.0,2008-12-18T00:00:00,In implementare
343,4,3,3.20000000000000017763568394002504646778106689453125,***,10464,"PLAN STRATEGIC NATIONAL IN VEDEREA UNUI DIALOG SOCIAL PERFORMANT PRIN INSTRUMENTE EUROPENE MODERNE: ""Impreuna pentru siguranta noastra""",RU EUROPE S.R.L,SUD-EST,BRAILA,MUNICIPIUL BRAILA,3644,2,9,19,POSDRU/63/3.2/S/40652,2010-01-29T00:00:00,18453648,18453648,Elaborarea si diseminarea de metode inovative si mai productive de organizare a muncii,2708.0,2008-12-18T00:00:00,In implementare
344,3,1,1,1.0,13702,cresterea competitivitatii sc sara srl buzau prin achizitia de utilaje de inalta tehnologie pentru productia de tevi curbate,SARA SRL,SUD-EST,BUZAU,MUNICIPIUL BUZAU,5275,2,10,44,23/M,2011-01-19T00:00:00,3555140.870000000111758708953857421875,2730324,Alte investitii in firme,580.0,2009-09-11T00:00:00,In implementare
345,6,2,2.20000000000000017763568394002504646778106689453125,***,10749,Calitate in administratia publica locala,Consiliul Judetean Gorj,SUD-VEST OLTENIA,GORJ,MUNICIPIUL TARGU JIU,1516,4,18,38,146.0,2010-06-16T00:00:00,500962.349999999976716935634613037109375,429000,"Mecanisme de imbunatatire a elaborarii politicilor si programelor, a monitorizarii si evaluarii la nivel national, regional si local si de dezvoltare a capacitatii de a elabora politici si programe",385250.0,2009-06-03T00:00:00,Finalizat
346,3,1,1,1.0,10741,Dezvoltarea sectorului productiv al SC AUTO ARO GROUP SRL,AUTO ARO GROUP SRL,SUD - MUNTENIA,ARGES,MUNICIPIUL CÂMPULUNG,4103,3,3,61,243/Im,2009-06-22T00:00:00,698872.140000000013969838619232177734375,587287.5200000000186264514923095703125,Alte investitii in firme,575.0,2008-07-04T00:00:00,In implementare
347,4,5,5.20000000000000017763568394002504646778106689453125,***,8047,"INVESTIM IN OM, INVESTIM IN MEDIUL RURAL",DIALFA SECURITY S.R.L.,SUD-EST,GALATI,MUNICIPIUL GALATI,1626,2,17,35,POSDRU/52/5.2/G/6947,2009-02-09T00:00:00,452746,452746,Implementarea de masuri active si preventive pe piata muncii,26.0,2008-05-05T00:00:00,In implementare
348,1,4,4.29999999999999982236431605997495353221893310546875,1.0,18419,Retehnologizarea SC TRADSYM CONSUL SRL,TRADSYM CONSUL SRL,BUCURESTI - ILFOV,BUCURESTI,MUNICIPIUL BUCURESTI,6793,8,40,1,2617.0,2011-12-07T00:00:00,614036.069999999948777258396148681640625,486790.380000000004656612873077392578125,"Tehnologia informatiei si comunicatiilor (acces, securitate, interoperabilitate, prevenirea riscurilor, cercetare, inovare, e-content etc.)",BI/4/4.3/240/23.03.2010,2010-03-23T00:00:00,In implementare
349,4,2,2.20000000000000017763568394002504646778106689453125,***,8805,Visatorii - club scolar de petrecere a timpului liber,SCOALA CU CLASELE I - VIII NR.26  ,SUD-VEST OLTENIA,DOLJ,MUNICIPIUL CRAIOVA,9964,4,16,68,POSDRU/23/2.2/G/22486,2010-03-29T00:00:00,1800400,1800400,"Masuri de crestere a participarii la educatie si formare pe tot parcursul vietii, inclusiv prin actiuni de reducere a abandonului scolar, a discriminarii precum si imb. accesului si a calit. educatiei si formarii initiale, vocationale si tertiare",1756.0,2008-11-28T00:00:00,In implementare
350,2,6,6.0999999999999996447286321199499070644378662109375,***,18241,Asistenta juridica pentru AM POS Mediu,Ministerul Mediului si Schimbarilor Climatice,BUCURESTI - ILFOV,BUCURESTI,MUNICIPIUL BUCURESTI,14,8,40,1,340.0,2010-03-11T00:00:00,1317500,1062500,"Pregatire, implementare, monitorizare si inspectie",10.0,2010-01-04T00:00:00,In implementare
351,1,4,4.29999999999999982236431605997495353221893310546875,1.0,17667,"ACHIZITIONARE DE ECHIPAMENTE TEHNOLOGICE SI MOBILIER SPECIFIC PENTRU CRESTEREA COMPETITIVITATII ""SC BUCIUM BUILDING SRL""",BUCIUM BUILDING SRL,NORD-EST,IASI,MUNICIPIUL IASI,6399,1,22,57,1474.0,2011-05-16T00:00:00,1498659.66999999992549419403076171875,1208596.51000000000931322574615478515625,Alte investitii in firme,NE/4/4/4.3/521/23.02.2010,2010-02-23T00:00:00,Finalizat
352,4,2,2.20000000000000017763568394002504646778106689453125,***,8883,IMPREUNA NE VA FI MAI USOR,Scoala Generala George Cosbuc Iasi,NORD-EST,IASI,MUNICIPIUL IASI,6582,1,22,57,POSDRU/23/2.2/G/25180,2010-03-29T00:00:00,1114300,1114300,"Masuri de crestere a participarii la educatie si formare pe tot parcursul vietii, inclusiv prin actiuni de reducere a abandonului scolar, a discriminarii precum si imb. accesului si a calit. educatiei si formarii initiale, vocationale si tertiare",1459.0,2008-10-23T00:00:00,In implementare
353,1,4,4.29999999999999982236431605997495353221893310546875,1.0,17858,CRESTEREA COMPETITIVITATII A SC VILACON ALMAR SRL PRIN DEZVOLTAREA ACTIVITATII DE CONSTRUCTII,VILACON ALMAR SRL,CENTRU,BRASOV,MUNICIPIUL BRASOV,6548,7,8,28,1882.0,2011-07-11T00:00:00,773389.23999999999068677425384521484375,620124,Alte investitii in firme,3615.0,2010-03-01T00:00:00,In implementare
354,1,4,4.29999999999999982236431605997495353221893310546875,1.0,17962,Transformare cladire existenta in pensiune turistica,MAR,SUD-VEST OLTENIA,VALCEA,MUNICIPIUL DRAGASANI,6485,4,38,43,1602.0,2011-05-23T00:00:00,1460753.4799999999813735485076904296875,1178027,Alte investitii in firme,SV/5/4/4.3/60/5.03.2010,2010-03-05T00:00:00,In implementare
355,4,3,3.29999999999999982236431605997495353221893310546875,***,9611,"CONS-TEAM ""Consolidarea mediului de afaceri din România prin întarirea capacitatii institutionale a organizatiilor patronale""",Consiliul National al Intreprinderilor Private Mici si Mijlocii din Romania,BUCURESTI - ILFOV,BUCURESTI,MUNICIPIUL BUCURESTI,1422,8,40,1,POSDRU/64/G/3.3/S/31648,2009-07-23T00:00:00,13380135,12972680,"Promovarea parteneriatelor, pactelor si initiativelor prin intermediul retelelor intre actorii relevanti",3205.0,2008-12-22T00:00:00,In implementare
356,1,4,4.29999999999999982236431605997495353221893310546875,1.0,16803,ACHIZITIA DE UTILAJE SI ECHIPAMENTE SPECIFICE ACTIVITATII DE REPARARE SI INTRETINERE AUTOVEHICULE,Auto-Livorno SRL,CENTRU,COVASNA,MUNICIPIUL SFÂNTU GHEORGHE,6133,7,14,28,1354.0,2011-03-24T00:00:00,529211.9799999999813735485076904296875,367735.9500000000116415321826934814453125,Alte investitii in firme,C/29/4/4.3/589/19.01.2010,2010-01-19T00:00:00,Finalizat
357,4,1,1.5,***,19092,Studii doctorale: portal spre o cariera de excelenta in cercetare si societatea cunoasterii,Universitatea A.I. Cuza Iasi,NORD-EST,IASI,MUNICIPIUL IASI,96,1,22,57,POSDRU/88/1.5/G/47646,2010-02-26T00:00:00,16712795,16172100,"Dezvoltarea potentialului uman in domeniul cercetarii si inovarii, in special prin studii post-universitare si instruirea cercetarilor, activitati de networking intre universitati, centre de cercetare si afaceri",1808.0,2009-08-28T00:00:00,In implementare
358,3,1,1,1.0,19143,Cresterea capacitatii de productie si diversificarea gamei de produse prin achizitia de echipamente tehnologice,FLY D.G.V. IMPEX SRL,SUD-VEST OLTENIA,DOLJ,MUNICIPIUL CRAIOVA,3049,4,16,68,230/m,2011-06-08T00:00:00,518103.51000000000931322574615478515625,435381.099999999976716935634613037109375,Alte investitii in firme,981.0,2009-10-13T00:00:00,In implementare
359,4,5,5.20000000000000017763568394002504646778106689453125,***,8318,Masuri active  integrate pentru persoanele din mediul rural in cautare de loc de munca sau ocupate in agricultura de subzistenta din Regiunea Sud Muntenia.,ASOCIATIA INAPOI LA MUNCA,SUD - MUNTENIA,DÂMBOVITA,MUNICIPIUL TÂRGOVISTE,1389,3,15,48,POSDRU/52/5.2/G/21518,2009-11-02T00:00:00,1769360,1769360,Implementarea de masuri active si preventive pe piata muncii,1145.0,2008-09-11T00:00:00,In implementare
360,4,1,1.5,***,19105,Eficientizarea activitatii studentilor din cadrul ciclului de studii doctorale,UNIVERSITATEA „DUNAREA DE JOS” DIN GALATI,SUD-EST,GALATI,MUNICIPIUL GALATI,1330,2,17,35,POSDRU/88/1.5/S/,2010-02-26T00:00:00,13825295.65000000037252902984619140625,13825295.65000000037252902984619140625,"Dezvoltarea potentialului uman in domeniul cercetarii si inovarii, in special prin studii post-universitare si instruirea cercetarilor, activitati de networking intre universitati, centre de cercetare si afaceri",2055.0,2009-09-07T00:00:00,In implementare
361,1,1,1.100000000000000088817841970012523233890533447265625,1.0,18132,Modernizare Parc Strand (Pitesti - Arges),Municipiul Pitesti,SUD - MUNTENIA,ARGES,MUNICIPIUL PITESTI,4753,3,3,62,2984.0,2012-03-13T00:00:00,6953684.08000000007450580596923828125,5413554.540000000037252902984619140625,Alte infrastructuri sociale,SM/1/1.1/PDU/1/5/,2010-03-15T00:00:00,In implementare
362,6,1,1.3000000000000000444089209850062616169452667236328125,***,16467,Instruirea- solutia pentru continuarea reformei accelerate,Ministerul Administratiei si Internelor,BUCURESTI - ILFOV,BUCURESTI,MUNICIPIUL BUCURESTI,727,8,40,1,154.0,2010-07-06T00:00:00,1342368.05000000004656612873077392578125,1194674.71999999997206032276153564453125,"Mecanisme de imbunatatire a elaborarii politicilor si programelor, a monitorizarii si evaluarii la nivel national, regional si local si de dezvoltare a capacitatii de a elabora politici si programe",4949928.0,2009-12-07T00:00:00,Finalizat
363,2,6,6.0999999999999996447286321199499070644378662109375,***,18387,"Asigurarea serviciilor de arhivare a documentelor, inclusiv inchiriere spatii aferente",Ministerul Mediului si Schimbarilor Climatice,BUCURESTI - ILFOV,BUCURESTI,MUNICIPIUL BUCURESTI,14,8,40,1,930.0,2010-06-16T00:00:00,968250.80000000004656612873077392578125,813655.80000000004656612873077392578125,"Pregatire, implementare, monitorizare si inspectie",13.0,2010-01-04T00:00:00,In implementare
364,3,2,2,1.0,13987,Dezvoltarea platformei de cercetare pentru energie eficienta si durabila,"UNIVERSITATEA TEHNICA ""GH.ASACHI""",NORD-EST,IASI,MUNICIPIUL IASI,1358,1,22,57,430.0,2012-12-21T00:00:00,51031879,41455225,"Infrastructura C&DT (inclusiv constructie, echipamente si retele computerizate de inalta viteza care conecteaza centre de cercetare) si centre de excelenta in tehnologii specifice",911.0,2009-10-22T00:00:00,In implementare
365,2,6,6.20000000000000017763568394002504646778106689453125,***,18361,"Campanie de promovare a Programului Operational Sectorial Mediu - exemple de bune practici, Lot I, ""Creatie""",Ministerul Mediului si Schimbarilor Climatice,BUCURESTI - ILFOV,BUCURESTI,MUNICIPIUL BUCURESTI,14,8,40,1,938.0,2010-06-16T00:00:00,769157,646350,"Evaluare si studii, informare si comunicare",1.0,2009-11-02T00:00:00,In implementare
366,3,1,1,2.0,5953,"MODERNIZAREA LABORATORULUI CTC, DOTAREA CU ECHIPAMENTE NOI DE  VERIFICARE SI INCERCARI A CENTURILOR - ACCESORII ALE SCAUNELOR AUTO, DESTINATE DEPLASARII IN SIGURANTA A COPIILOR; IMPLEMENTAREA SI CERTIFICAREA UNUI SISTEM DE MANAGEMENT INTEGRAT",TE-ROX PROD S.R.L,NORD-EST,IASI,MUNICIPIUL PASCANI,2502,1,22,58,38/S,2009-05-15T00:00:00,462200.23999999999068677425384521484375,345381.5700000000069849193096160888671875,Alte investitii in firme,237.0,2008-12-17T00:00:00,In implementare
367,3,1,1,2.0,5927,Implementarea si certificarea sistemului de management integrat pentru calitate si mediu,PANOCEANIC PROD SRL,NORD-EST,NEAMT,RAUCESTI,3319,1,27,60,48.0,2009-05-21T00:00:00,29188,24528,Alte investitii in firme,86.0,2008-08-26T00:00:00,In implementare
368,4,2,2.100000000000000088817841970012523233890533447265625,***,10628, Tranzitia de la scoala la viata activa prin promovarea dezvoltarii profesionale si a aptitudinilor practice la locul de munca,COLEGIUL TEHNIC IULIU MANIU,BUCURESTI - ILFOV,BUCURESTI,MUNICIPIUL BUCURESTI,3922,8,40,1,POSDRU/22/2.1/G/31320,2009-08-31T00:00:00,1411300,1411300,"Proiectarea, introd. si implem. reformelor in sist. de educatie si formare in scopul cresterii capac.de ocupare, a relevantei formarii initiale si vocationale, imbun. abilitatilor formatorilor, orientate spre inovare si spre o econ. bazata pe cunoastere",1897.0,2008-12-10T00:00:00,In implementare
369,4,2,2.100000000000000088817841970012523233890533447265625,***,10381,Fii pregatit pentru cariera ta!,Universitatea din Bucuresti,BUCURESTI - ILFOV,BUCURESTI,MUNICIPIUL BUCURESTI,97,8,40,1,POSDRU/22/2.1/G/40844,2010-09-14T00:00:00,1587517,1587517,"Proiectarea, introd. si implem. reformelor in sist. de educatie si formare in scopul cresterii capac.de ocupare, a relevantei formarii initiale si vocationale, imbun. abilitatilor formatorilor, orientate spre inovare si spre o econ. bazata pe cunoastere",2920.0,2008-12-18T00:00:00,In implementare
370,4,3,3.20000000000000017763568394002504646778106689453125,***,9744,SIGURANTA in CONSTRUCTII,Asociatia Constructorilor si Promotorilor din Romania,SUD - MUNTENIA,DÂMBOVITA,MUNICIPIUL TÂRGOVISTE,6614,3,15,48,POSDRU/63/3.2/S/35058,2009-11-30T00:00:00,18399385.2699999995529651641845703125,18399385.2699999995529651641845703125,Elaborarea si diseminarea de metode inovative si mai productive de organizare a muncii,3378.0,2008-12-29T00:00:00,In implementare
371,4,6,6.29999999999999982236431605997495353221893310546875,***,8052,Pachet complex de formare antreprenoriala pentru incluziunea sociala a femeilor in conditii de egalitate de sanse pe piata muncii - PROWOB,Institutul National pentru Intreprinderi Mici si Mijlocii,BUCURESTI - ILFOV,BUCURESTI,MUNICIPIUL BUCURESTI,1616,8,40,1,POSDRU/71/6.3/S/24567,2009-06-01T00:00:00,1860992,1860992,"Masuri pentru facilitarea accesului si cresterea sustenabilitatii participarii femeilor pe piata muncii, in vederea reducerii discriminarii, precum si masuri pentru reconcilierea intre viata profesionala si cea privata, cum ar fi facilitarea...",1554.0,2008-11-10T00:00:00,In implementare
372,3,1,1,1.0,10804,"LINIE TEHNOLOGICA POLIVALENTA DE RECICLARE A DESEURILOR DE POLIURETANI, ELASTROMERI, TEXTILE SI FOLII DE PLASTICE REZULTATE DIN DEZMEMBRAREA AUTOVEHICULELOR UZATE SI DIN ALTE SURSE INDISTRIALE",MOBERFLEX  IMPEX SRL,SUD - MUNTENIA,ARGES,ALBOTA,4148,3,3,3,214.0,2009-06-12T00:00:00,1050745,880038,"Asist pt IMM-uri pentru promovarea produselor si proceselor de prod fara impact negativ asupra mediului (introducerea unui sistem eficient de mgt de mediu, adoptarea si folosirea tehnologiilor de prevenire a poluarii, integrarea tehn. curate in prod)",924.0,2008-02-12T00:00:00,In implementare
373,3,1,1,1.0,10813,Achizitie utilaje pentru cresterea productivitatii si competitivitatii SC Apel Construct SRL,APEL CONSTRUCT,BUCURESTI - ILFOV,BUCURESTI,MUNICIPIUL BUCURESTI,4200,8,40,1,209.0,2009-06-11T00:00:00,84834.539999999993597157299518585205078125,70869.539999999993597157299518585205078125,Alte investitii in firme,818.0,2008-01-08T00:00:00,In implementare
374,4,6,6.29999999999999982236431605997495353221893310546875,***,8058,Sanse egale si respect pentru femeia din societatea romaneasca,FEDERATIA SANITAS DIN ROMANIA,BUCURESTI - ILFOV,BUCURESTI,MUNICIPIUL BUCURESTI,3726,8,40,1,POSDRU/71/6.3/S/25195,2009-06-01T00:00:00,9264250,9264250,"Masuri pentru facilitarea accesului si cresterea sustenabilitatii participarii femeilor pe piata muncii, in vederea reducerii discriminarii, precum si masuri pentru reconcilierea intre viata profesionala si cea privata, cum ar fi facilitarea...",1369.0,2008-10-09T00:00:00,In implementare
375,3,1,1,3.0,11059,Cresterea competitivitatii prin accesul pe noi piete si internationalizare la SC Contico Technologies SRL,CONTICO TEHNOLOGIES SRL,NORD-VEST,MARAMURES,MUNICIPIUL BAIA MARE,4344,6,24,36,3/I,2009-04-22T00:00:00,174347,146010,"Asist pt IMM-uri pentru promovarea produselor si proceselor de prod fara impact negativ asupra mediului (introducerea unui sistem eficient de mgt de mediu, adoptarea si folosirea tehnologiilor de prevenire a poluarii, integrarea tehn. curate in prod)",92.0,2009-02-12T00:00:00,In implementare
376,3,1,1,1.0,11125,"Achizitia de utilaje si echipamente pentru fabricarea de profile din aluminiu la SC RICO SRL , loc. Constanta, jud. Constanta",RICO SRL,SUD-EST,CONSTANTA,MUNICIPIUL CONSTANTA,2932,2,13,39,2m/55,2009-10-08T00:00:00,1854926,1509457,Alte investitii in firme,100.0,2009-06-09T00:00:00,In implementare
377,1,1,1.100000000000000088817841970012523233890533447265625,1.0,7025,REABILITARE SI SCHIMBARE DESTINATIE INFRASTRUCTURA PENTRU SERVICII SOCIALE IN MUNICIPIUL VASLUI,Consiliul Local Vaslui,NORD-EST,VASLUI,MUNICIPIUL VASLUI,76,1,37,50,965.0,2010-10-07T00:00:00,2391152.8500000000931322574615478515625,1457969.6000000000931322574615478515625,Alte infrastructuri sociale,NE/1/1.1/CU/1/8/4,2009-05-15T00:00:00,Finalizat
378,3,1,1,1.0,10822,INTRODUCEREA DE NOI PRODUSE IN PLANUL DE PRODUCTIE AL  SC  MICROROM  SRL  ORADEA,MICROROM SRL,NORD-VEST,BIHOR,MUNICIPIUL ORADEA,6827,6,5,54,195.0,2009-06-09T00:00:00,1356816.71999999997206032276153564453125,1142351.71999999997206032276153564453125,"Asist pt IMM-uri pentru promovarea produselor si proceselor de prod fara impact negativ asupra mediului (introducerea unui sistem eficient de mgt de mediu, adoptarea si folosirea tehnologiilor de prevenire a poluarii, integrarea tehn. curate in prod)",545.0,2008-06-30T00:00:00,In implementare
379,4,5,5.0999999999999996447286321199499070644378662109375,***,6376,INITIERE IN MESERIA DE ELECTRICIAN-ELECTRONIST AUTO,AUTOSERVICE MARINI SRL,NORD-EST,BACAU,MUNICIPIUL BACAU,2850,1,4,47,POSDRU/ 44/5.1/G/39712,2009-06-25T00:00:00,800800,800800,Implementarea de masuri active si preventive pe piata muncii,2874.0,2008-12-19T00:00:00,In implementare
380,1,1,1.100000000000000088817841970012523233890533447265625,3.0,10697,Cresterea sigurantei si securitatii cetatenilor din municipiul Curtea de Arges prin implementarea unui sistem de supraveghere video,Consiliu local al municipiului Curtea de Arges,SUD - MUNTENIA,ARGES,MUNICIPIUL CURTEA DE ARGES,1179,3,3,60,844.0,2010-09-01T00:00:00,2159042.379999999888241291046142578125,1597547.959999999962747097015380859375,Infrastructuri de telefonie (inclusiv retele broadband),SM/1/1.1/CU/1/11/3,2009-03-31T00:00:00,In implementare
381,3,1,1,1.0,10800,Cresterea competitivitatii si performantei economice a SC IMparat SRL prin investitii care vizeaza retehnologizarea si crsterea capacitatii de productie,IMPARAT SRL,NORD-EST,IASI,LETCANI,720,1,22,45,225.0,2009-06-15T00:00:00,1560600,1311429,Alte investitii in firme,836.0,2008-09-24T00:00:00,In implementare
382,4,3,3.20000000000000017763568394002504646778106689453125,***,10483,Sprijin pentru intreprinderi si angajati in vederea imbunatatirii competentelor in perspectiva dezvoltarii durabile,Institutul National de Cercetare-Dezvoltare pentru Protectia Mediului – ICIM Bucuresti,BUCURESTI - ILFOV,BUCURESTI,MUNICIPIUL BUCURESTI,4512,8,40,1,POSDRU/63/3.2/S/41910,2009-10-02T00:00:00,5945700,5945700,Elaborarea si diseminarea de metode inovative si mai productive de organizare a muncii,3209.0,2008-12-22T00:00:00,In implementare
383,3,1,1,3.0,11015,"Participarea la Targul International BIFE TIMB 2009, Bucuresti, Romania, pentru intrarea pe noi piete internationale in domeniul productiei de canapele si fotolii a SC Mobiladalin SRL",MOBILADALIN SRL,CENTRU,MURES,MUNICIPIUL REGHIN,6382,7,26,57,11/I,2009-04-24T00:00:00,44945.199999999997089616954326629638671875,33536.9000000000014551915228366851806640625,"Asist pt IMM-uri pentru promovarea produselor si proceselor de prod fara impact negativ asupra mediului (introducerea unui sistem eficient de mgt de mediu, adoptarea si folosirea tehnologiilor de prevenire a poluarii, integrarea tehn. curate in prod)",19.0,2008-08-20T00:00:00,In implementare
384,1,4,4.29999999999999982236431605997495353221893310546875,1.0,4029,Dezvoltarea capacitatii tehnice a firmei SC Toposurvey prin achizitionarea de echipamente moderne,TOPOSURVEY SRL,SUD-VEST OLTENIA,DOLJ,MUNICIPIUL CRAIOVA,1668,4,16,68,230.0,2009-05-06T00:00:00,401533,337347,Alte investitii in firme,Sv/10/4/4.3/8/16.06.08,2008-06-16T00:00:00,Finalizat
385,1,3,3.20000000000000017763568394002504646778106689453125,2.0,7514,Modernizare si extindere Centru de recuperare si reabilitare a persoanelor cu handicap adulte nr.1 (fost centru de plasament nr.1),Consiliul Judetului Galati,SUD-EST,GALATI,MUNICIPIUL GALATI,302030005,2,17,35,621.0,2010-01-21T00:00:00,2968246.120000000111758708953857421875,1716661.5,Alte infrastructuri sociale,SE/21/3/3.2/185/07.05.2009,2009-05-07T00:00:00,Finalizat
386,3,1,1,2.0,10890,Alinierea ADERA PROMOTION la standardele europene,ADERA PROMOTION SRL,SUD-EST,CONSTANTA,MUNICIPIUL CONSTANTA,4313,2,13,39,54/S,2009-05-27T00:00:00,50612,41821,Alte investitii in firme,179.0,2008-10-31T00:00:00,In implementare
387,4,3,3.20000000000000017763568394002504646778106689453125,***,9426,Transfer de bune practici in sectorul de distributie si depozitare la temperatura controlata,ASOCIATIA OPERATORILOR LOGISTICI SI A DEPOZITARILOR DE PRODUSE CONGELATE SI REFRIGERATE DIN ROMANIA,BUCURESTI - ILFOV,BUCURESTI,MUNICIPIUL BUCURESTI,3770,8,40,1,POSDRU/63/3.2/S/26324,2010-11-18T00:00:00,6891320,5851810,Elaborarea si diseminarea de metode inovative si mai productive de organizare a muncii,1722.0,2008-11-26T00:00:00,In implementare
388,3,1,1,1.0,10828,"ACHIZITIE STATIE DE SORTARE COMUNA  SCHELA, JUDETUL GORJ",BOLIADI  SRL,SUD-VEST OLTENIA,GORJ,SCHELA,4314,4,18,58,173.0,2009-06-03T00:00:00,1396804,1173785,"Asist pt IMM-uri pentru promovarea produselor si proceselor de prod fara impact negativ asupra mediului (introducerea unui sistem eficient de mgt de mediu, adoptarea si folosirea tehnologiilor de prevenire a poluarii, integrarea tehn. curate in prod)",457.0,2008-06-09T00:00:00,In implementare
389,1,1,1.100000000000000088817841970012523233890533447265625,1.0,6956,MODERNIZAREA SI AMENAJAREA PARCULUI BAI IN MUNICIPIUL MOINESTI,Consiliul Local Moinesti,NORD-EST,BACAU,MUNICIPIUL MOINESTI,75,1,4,48,1972.0,2011-07-22T00:00:00,3940003.2700000000186264514923095703125,3102541,Alte infrastructuri sociale,NE/1/1.1/CU/1/7/2,2009-05-14T00:00:00,Finalizat
390,6,2,2.20000000000000017763568394002504646778106689453125,***,11042,Imbunatatirea calitatii si a timpului de furnizare a serviciilor  de catre  Primaria orasului Ludus prin implementarea informatica a ghiseului unic cu registratura electronica si gestiune documente,Orasul Ludus,CENTRU,MURES,ORAS LUDUS,3471,7,26,66,120.0,2010-05-12T00:00:00,282642,240000,"Mecanisme de imbunatatire a elaborarii politicilor si programelor, a monitorizarii si evaluarii la nivel national, regional si local si de dezvoltare a capacitatii de a elabora politici si programe",385546.0,2009-06-25T00:00:00,Finalizat
391,3,1,3,2.0,10942,Studiu de fezabilitate pentru construirea unei fabrici de macinare calcar la capacitatea 20t/h,AMCO GRINDING SRL,NORD-VEST,BIHOR,SAMBATA,5327,6,5,85,101/C,2009-06-15T00:00:00,81122,60548,Alte investitii in firme,239 C,2009-02-26T00:00:00,In implementare
392,3,3,3,1.0,10853,"iMPLEMENTAREA SISTEM INFORMATIC IN VEDEREA ASISTARII ACTIVITATILOR OPERATIVE DE EXPEDITIE,LOGISTICA, DISTRIBUTIESI SERVICII CONEXE",SORCETI EXPEDITII SI TRANSPORTURI S.R.L.,BUCURESTI - ILFOV,BUCURESTI,MUNICIPIUL BUCURESTI,4187,8,40,1,254/331,2010-11-25T00:00:00,258124.48000000001047737896442413330078125,203264.89999999999417923390865325927734375,"Servicii si aplicatii pentru IMM-uri (comert electronic, educatie si formare, networking, etc.)",1804.0,2008-09-04T00:00:00,In implementare
393,4,6,6.0999999999999996447286321199499070644378662109375,***,8584,Facilitarea ocuparii in munca a membrilor comunitatii de romi prin infiintarea unei intreprinderi sociale,Comuna Voicesti,SUD-VEST OLTENIA,VALCEA,VOICESTI,6889,4,38,87,POSDRU/53/6.1/G/18075,2009-04-29T00:00:00,1152629,1077520,"Masuri de integrare si reintegrare pe piata muncii a persoanelor dezavantajate; combaterea discriminarii in ceea ce priveste accesul si promovarea pe piata muncii, incurajarea acceptarii diversitatii la locul de  munca",853.0,2008-08-13T00:00:00,In implementare
394,4,3,3.20000000000000017763568394002504646778106689453125,***,9356,Formare profesionala specifica in cadrul Studioului Experimental de Opera si Balet pentru meserii de scena si abilitati de management cultural in domeniul artelor spectacolului.,Opera Nationala Bucuresti,BUCURESTI - ILFOV,BUCURESTI,MUNICIPIUL BUCURESTI,3724,8,40,1,POSDRU/63.3.2/S/24456,2009-10-30T00:00:00,18329621,18329621,Elaborarea si diseminarea de metode inovative si mai productive de organizare a muncii,1690.0,2008-11-25T00:00:00,In implementare
395,3,1,1,1.0,11226,Cresterea competitivitatatii si calitatii serviciilor oferite de SC DUMITRANA PROD S.R.L. prin achizitia de utilaje performante pentru domeniul constructiilor,DUMITRANA PROD SRL,NORD-VEST,SALAJ,ORAS CEHU SILVANIEI,4496,6,31,41,2m/146,2009-12-16T00:00:00,664713.680000000051222741603851318359375,550502.75,"Asist pt IMM-uri pentru promovarea produselor si proceselor de prod fara impact negativ asupra mediului (introducerea unui sistem eficient de mgt de mediu, adoptarea si folosirea tehnologiilor de prevenire a poluarii, integrarea tehn. curate in prod)",37.0,2009-06-08T00:00:00,In implementare
396,3,1,1,1.0,11443,Achizitie de utilaje la SC DEEP PREST 2002 SRL in vederea cresterii productivitati,DEEP PREST 2002 SRL,SUD-EST,VRANCEA,MUNICIPIUL FOCSANI,4620,2,39,32,2m/50,2009-10-07T00:00:00,2260179,1896300,Alte investitii in firme,174.0,2009-06-09T00:00:00,In implementare
397,1,3,3.20000000000000017763568394002504646778106689453125,1.0,11426,"MODERNIZAREA, EXTINDEREA SI DOTAREA CENTRULUI SOCIAL ""IMPREUNA""",Municipiul Piatra Neamt,NORD-EST,NEAMT,MUNICIPIUL PIATRA-NEAMT,81,1,27,44,1251.0,2011-03-17T00:00:00,3752274.25999999977648258209228515625,3002973.5200000000186264514923095703125,Alte infrastructuri sociale,NE/23/3/3.2/394/16.07.2009,2009-07-16T00:00:00,Finalizat
398,1,1,1.100000000000000088817841970012523233890533447265625,1.0,7644,"Reabilitarea/modernizarea si extinderea spatiilor publice urbane, strazi si spatii verzi in municipiul Moreni",Primaria Municipiului Moreni,SUD - MUNTENIA,DÂMBOVITA,MUNICIPIUL  MORENI,136,3,15,47,2396.0,2011-11-11T00:00:00,12624399.929999999701976776123046875,10093058.31000000052154064178466796875,Drumuri locale/regionale,SM/1/1.1/CU/1/5/1,2009-03-31T00:00:00,In implementare
399,1,3,3.100000000000000088817841970012523233890533447265625,1.0,11216,"Reabilitare spital judetean de urgenta Alexandria, judetul Teleorman",Consiliul Judetean Teleorman,SUD - MUNTENIA,TELEORMAN,MUNICIPIUL ALEXANDRIA,67,3,34,46,794.0,2010-08-17T00:00:00,88361771.89000000059604644775390625,67926908.3400000035762786865234375,Infrastructura serviciilor de sanatate,SM/23/3/3.1/158,2009-07-09T00:00:00,In implementare
400,3,1,1,1.0,11482,"Cresterea competitivitatii economice la SC Gewalt Promotion SRL, prin modernizarea, eficientizarea si dezvoltarea capacitatii de productie",GEWALT PROMOTION SRL,NORD-VEST,CLUJ,MUNICIPIUL CLUJ-NAPOCA,4625,6,12,52,2m/160,2009-12-16T00:00:00,1830972,1534762,"Asist pt IMM-uri pentru promovarea produselor si proceselor de prod fara impact negativ asupra mediului (introducerea unui sistem eficient de mgt de mediu, adoptarea si folosirea tehnologiilor de prevenire a poluarii, integrarea tehn. curate in prod)",19.0,2009-06-09T00:00:00,In implementare
401,1,2,2.100000000000000088817841970012523233890533447265625,1.0,7061,Modernizare sistem rutier DJ401D Darasti-1 Decembrie Km0+000-Km5+500,Consiliul Judetean Ilfov,BUCURESTI - ILFOV,BUCURESTI,MUNICIPIUL BUCURESTI,1207,8,40,1,758.0,2010-06-08T00:00:00,9733727.72000000067055225372314453125,9521502.72000000067055225372314453125,Drumuri locale/regionale,BI/12/2/2.1/80/15.05.2009,2009-05-15T00:00:00,In implementare
402,1,3,3.399999999999999911182158029987476766109466552734375,1.0,11198,"Reabilitare si modernizare scoala cu clasele I -VIII Bratesti, comuna Albestii de Arges, judetul Arges",CONSILIUL LOCAL ALBESTI,NORD-EST,BOTOSANI,ALBESTI,1766,1,7,2,729.0,2010-05-13T00:00:00,2195907.120000000111758708953857421875,1679224,Infrastructura educationala,SM/23/3/3.4/153,2009-07-08T00:00:00,Finalizat
403,1,3,3.399999999999999911182158029987476766109466552734375,1.0,11000,"Reabilitare, modernizare, extindere si echipare infrastructura educationala Scoala GHERGANI, oras Racari, judetul Dambovita",Orasul Racari,SUD - MUNTENIA,DÂMBOVITA,ORAS RACARI,4630,3,15,56,982.0,2010-10-25T00:00:00,9177112.320000000298023223876953125,6486988,Infrastructura educationala,SM/22/3/3.4/144,2009-06-22T00:00:00,In implementare
404,1,3,3.399999999999999911182158029987476766109466552734375,1.0,7515,Reparatii capitale la Liceul cu program sportiv Braila,Consiliul Local Municipal Braila,SUD-EST,BRAILA,MUNICIPIUL BRAILA,302030031,2,9,19,589.0,2009-11-05T00:00:00,2954030.25,2302665,Infrastructura educationala,SE/21/3/3.4/186/07.05.2009,2009-05-07T00:00:00,Finalizat
405,3,1,1,1.0,11466,CRESTEREA COMPETITIVITATII ECONOMICE PRIN DEZVOLTAREA CAPACITATII DE PRODUCTIE LA S.C. BALNIS BRADESTI S.R.L.,BALNIS BRADESTI S.R.L.,CENTRU,HARGHITA,BRADESTI,4614,7,19,4,2m/351,2010-09-03T00:00:00,1571263.5600000000558793544769287109375,1121233.33000000007450580596923828125,"Asist pt IMM-uri pentru promovarea produselor si proceselor de prod fara impact negativ asupra mediului (introducerea unui sistem eficient de mgt de mediu, adoptarea si folosirea tehnologiilor de prevenire a poluarii, integrarea tehn. curate in prod)",61.0,2009-06-09T00:00:00,In implementare
406,1,3,3.399999999999999911182158029987476766109466552734375,1.0,11755,"REABILITAREA STRUCTURALA SI REPARATII CAPITALE LA COLEGIUL NATIONAL ""BETHLEN GABOR"" - AB-m-A-000171 - DIN AIUD, JUD. ALBA",Consiliul Local Aiud,CENTRU,ALBA,MUNICIPIUL AIUD,2266,7,1,38,1086.0,2010-11-16T00:00:00,29656224.7699999995529651641845703125,23957629,Infrastructura educationala,C/23/3/3.4/334/30.07.2009,2009-07-30T00:00:00,In implementare
407,1,1,1.100000000000000088817841970012523233890533447265625,1.0,11176,"CREAREA DE SPATII PUBLICE URBANE IN MUNICIPIUL PIATRA NEAMT, PRIN CONSTRUIREA UNUI POD SI A UNEI ARII DE PARCARI IN ZONA INTERSECTIEI PIATA STEFAN CEL MARE, STR. ORHEI, BDUL DACIA SI AMENAJAREA COMPLEXA A PARAULUI CUEJDIU",Municipiul Piatra Neamt,NORD-EST,NEAMT,MUNICIPIUL PIATRA-NEAMT,81,1,27,44,774.0,2010-06-16T00:00:00,43772160.8400000035762786865234375,35442338.399999998509883880615234375,Drumuri locale/regionale,NE/1/1.1/CU/1/1/1,2009-05-26T00:00:00,In implementare
408,1,3,3.399999999999999911182158029987476766109466552734375,1.0,11244,"Extinderea scolii cu clasele I-VIII, Borod",COMUNA BOROD,NORD-VEST,BIHOR,BOROD,5483,6,5,10,1145.0,2010-12-17T00:00:00,3244579.91999999992549419403076171875,2528301,Infrastructura educationala,NV/18/3/3.4/256,2009-07-09T00:00:00,In implementare
409,1,2,2.100000000000000088817841970012523233890533447265625,1.0,956,"Modernizare sistem rutier pe DJ 301B, DN3 - Manastirea Pasarea - Cozieni, km 0+000 - km 4+ 500",Consiliul Judetean Ilfov,BUCURESTI - ILFOV,BUCURESTI,MUNICIPIUL BUCURESTI,1207,8,40,1,409.0,2009-06-15T00:00:00,3913482.049999999813735485076904296875,3271035.379999999888241291046142578125,Drumuri locale/regionale,BI1/2/2.1/5/19.02.2008,2008-02-19T00:00:00,Finalizat
410,3,1,1,1.0,11424,dezvoltarea sc trazmar srl in scopul diversificarii activitatii de productie,TRAZMAR SRL,CENTRU,HARGHITA,MUNICIPIUL MIERCUREA CIUC,4598,7,19,34,2m/169,2009-12-16T00:00:00,2154816,1790020,Alte investitii in firme,123.0,2009-06-09T00:00:00,In implementare
411,3,1,1,1.0,11319,Modernizarea si cresterea capacitatii de productie a firmei SC Consensus Impex SRL,CONSENSUS IMPEX SRL,CENTRU,HARGHITA,MUNICIPIUL ODORHEIU SECUIESC,3260,7,19,35,2m/144,2009-12-16T00:00:00,1756334.09000000008381903171539306640625,1463761,"Asist pt IMM-uri pentru promovarea produselor si proceselor de prod fara impact negativ asupra mediului (introducerea unui sistem eficient de mgt de mediu, adoptarea si folosirea tehnologiilor de prevenire a poluarii, integrarea tehn. curate in prod)",153.0,2009-06-09T00:00:00,In implementare
412,1,3,3.399999999999999911182158029987476766109466552734375,1.0,9984,"Consolidare, reabilitare, extindere si modernizare Scoala Coresi Municipiul Targoviste",Primaria Municipiului Targoviste,SUD - MUNTENIA,DÂMBOVITA,MUNICIPIUL TÂRGOVISTE,68,3,15,48,1073.0,2010-11-23T00:00:00,11790225.15000000037252902984619140625,9311016.66999999992549419403076171875,Infrastructura educationala,SM/22/3/3.4/137,2009-06-04T00:00:00,In implementare
413,3,1,1,1.0,11471,"Achizitie de echipamente si utilaje la S.C. CRISANA PRO CONSTRUCT S.A. din Municipiul Salonta, Judetul Bihor",S.C. CRISANA PRO CONSTRUCT S.A.,NORD-VEST,BIHOR,MUNICIPIUL SALONTA,4613,6,5,55,2m/111,2009-11-03T00:00:00,1827489,1535705,Alte investitii in firme,50.0,2009-06-09T00:00:00,In implementare
414,3,1,1,1.0,11499,MODERNIZARE LA S.C. BALCANIC PROD S.R.L.,BALCANIC PROD S.R.L.,SUD-EST,VRANCEA,MUNICIPIUL FOCSANI,671,2,39,32,2/2m,2009-10-05T00:00:00,2013816,1689272,Alte investitii in firme,152.0,2009-06-09T00:00:00,In implementare
415,3,1,1,1.0,11541,CRESTEREA PRODUCTIEI LA SC UTILCONS SRL PRIN ACHIZTIONAREA DE UTILAJE NOI,UTIL CONS S.R.L.,VEST,HUNEDOARA,MUNICIPIUL DEVA,4656,5,20,37,2m/9,2009-10-05T00:00:00,2135324,1791380,Alte investitii in firme,281.0,2009-06-09T00:00:00,In implementare
416,6,2,2.20000000000000017763568394002504646778106689453125,***,11219,Transparenta si Eficacitate - Imbunatatirea si modernizarea relatiei cu locuitorii comunei Cumpana prin introducerea unui program informatic pentru buna gestionare a documentelor in cadrul primariei,Comuna Cumpana,SUD-EST,CONSTANTA,CUMPANA,1079,2,13,19,158.0,2010-06-30T00:00:00,1229050.3500000000931322574615478515625,1000000,"Mecanisme de imbunatatire a elaborarii politicilor si programelor, a monitorizarii si evaluarii la nivel national, regional si local si de dezvoltare a capacitatii de a elabora politici si programe",385718.0,2009-07-06T00:00:00,Finalizat
417,3,1,1,1.0,11469,dezvoltarea sc metan grup srl prin cresterea capacitatii de a realiza lucrari de instalatii pentru alimentarea cu gaz metan si apa,METAN GRUP S.R.L.,CENTRU,BRASOV,MUNICIPIUL BRASOV,591,7,8,28,2m/152,2009-12-16T00:00:00,1094144,915949,"Asist pt IMM-uri pentru promovarea produselor si proceselor de prod fara impact negativ asupra mediului (introducerea unui sistem eficient de mgt de mediu, adoptarea si folosirea tehnologiilor de prevenire a poluarii, integrarea tehn. curate in prod)",115.0,2009-06-09T00:00:00,In implementare
418,3,1,1,1.0,11252,Marirea productivitatii si capacitatii de productie a sc alex & co sa,ALEX&CO SA,CENTRU,COVASNA,CHICHIS,277,7,14,14,2m/159,2009-12-16T00:00:00,1778227,1431347,Alte investitii in firme,81.0,2009-06-09T00:00:00,In implementare
419,3,1,1,1.0,11314,MODERNIZARE PRIN RETEHNOLOGIZARE LA SC DRUM INVEST CONSTRUCT SRL,DRUM INVEST CONSTRUCT SRL,VEST,HUNEDOARA,LUNCOIU DE JOS,4432,5,20,32,2m/10,2009-10-05T00:00:00,2135324,1791380,Alte investitii in firme,25  m,2009-06-09T00:00:00,In implementare
420,3,1,1,1.0,11448,Dezvoltarea sectorului productiv al companiei prin realizarea de investitii,Primaserv SRL,SUD-VEST OLTENIA,DOLJ,MUNICIPIUL CRAIOVA,652,4,16,68,2m/27,2009-10-05T00:00:00,2087759,1754420,Alte investitii in firme,53  m,2009-06-09T00:00:00,In implementare
421,3,1,1,1.0,11305,ACHIZITIONARE UTILAJE PENTRU MODERNIZARE EXPLOATARE CARIERA PIATRA,AUTOSENNA SRL,VEST,HUNEDOARA,SOIMUS,4414,5,20,58,2m/191,2010-01-18T00:00:00,1736005.94999999995343387126922607421875,1458828.53000000002793967723846435546875,Alte investitii in firme,11  m,2009-06-09T00:00:00,In implementare
422,2,6,6.0999999999999996447286321199499070644378662109375,***,11384,DMI1 - AT 2009 Asistenta tehnica pentru AM si OI POS Mediu,Ministerul Mediului si Schimbarilor Climatice,BUCURESTI - ILFOV,BUCURESTI,MUNICIPIUL BUCURESTI,14,8,40,1,218.0,2009-03-12T00:00:00,16469053,13839540,"Pregatire, implementare, monitorizare si inspectie",218.0,2009-03-12T00:00:00,Finalizat
423,1,1,1.100000000000000088817841970012523233890533447265625,1.0,7416,"REABILITAREA INFRASTRUCTURII PUBLICE URBANE A MUNICIPIULUI ROMAN - ZONELE SCUAR HOTEL, PIETONAL STEFAN CEL MARE, CENTRU ISTORIC  URBAN STEFAN CEL MARE, CARTIERELE FAVORIT SI CUZA VODA",Primaria Municipiului Roman,NORD-EST,NEAMT,MUNICIPIUL ROMAN,2419,1,27,45,1146.0,2010-12-13T00:00:00,27731901.960000000894069671630859375,21880427,Drumuri locale/regionale,NE/1/1.1/CU/1/12/1,2009-05-22T00:00:00,Finalizat
424,4,1,1.5,***,8185,Programe pentru cercetare doctorala de excelenta in economie prin parteneriate active,Universitatea A.I. Cuza Iasi,NORD-EST,IASI,MUNICIPIUL IASI,96,1,22,57,POSDRU/21/4.5/G/22682,2009-09-28T00:00:00,750000,750000,"Dezvoltarea potentialului uman in domeniul cercetarii si inovarii, in special prin studii post-universitare si instruirea cercetarilor, activitati de networking intre universitati, centre de cercetare si afaceri",1431.0,2008-10-17T00:00:00,In implementare
425,1,3,3.20000000000000017763568394002504646778106689453125,2.0,11096,Extindere sediu unitate de asistenta medico-sociala Saliste - Jud. Sibiu,Consiliul Judetean Sibiu,CENTRU,SIBIU,MUNICIPIUL SIBIU,141,7,32,33,841.0,2010-09-10T00:00:00,3401540.00999999977648258209228515625,2666997.9300000001676380634307861328125,Alte infrastructuri sociale,C/22/3/3.2/311,2009-06-30T00:00:00,Finalizat
426,4,1,1.5,***,8159,Scoala doctorala în sprijinul cercetarii in context european,UNIVERSITATEA POLITEHNICA DIN TIMSOARA,VEST,TIMIS,MUNICIPIUL TIMISOARA,1302,5,35,54,POSDRU/21/1.5/G/13798,2010-05-31T00:00:00,1849900,1810000,"Dezvoltarea potentialului uman in domeniul cercetarii si inovarii, in special prin studii post-universitare si instruirea cercetarilor, activitati de networking intre universitati, centre de cercetare si afaceri",2601.0,2008-12-18T00:00:00,In implementare
427,1,1,1.100000000000000088817841970012523233890533447265625,1.0,7548,Accesul cetatenilor  la informatii de interes public,Consiliul Local al Sectorului 3 ,BUCURESTI - ILFOV,BUCURESTI,MUNICIPIUL BUCURESTI,3551,8,40,1,2510.0,2011-11-10T00:00:00,3512125.08000000007450580596923828125,2936710.08000000007450580596923828125,Alte infrastructuri sociale,BI/1/1.1/CU/1/4/2,2009-03-31T00:00:00,In implementare
428,3,1,1,1.0,11332,INTARIREA CAPACITATII DE PRODUCTIE PRIN ACHIZITIONAREA UNUI UTILAJ MODERN PENTRU EXPLOATARE CARIERA PIATRA,EURO PETROL SRL,SUD - MUNTENIA,ARGES,MUNICIPIUL PITESTI,3192,3,3,62,2m/59,2009-10-08T00:00:00,1828180,1536285,Alte investitii in firme,35  m,2009-06-09T00:00:00,In implementare
429,1,3,3.399999999999999911182158029987476766109466552734375,1.0,11345,Extinderea cladirilor in vederea modernizarii atelierelor scolare si a laboratoarelor la Grupul Scolar Puskas Tivadar din Municipiul Sfantu Gheorghe,MUNICIPIUL SFANTU GHEORGHE,CENTRU,COVASNA,MUNICIPIUL SFÂNTU GHEORGHE,414,7,14,28,1184.0,2010-12-18T00:00:00,4748872.08000000007450580596923828125,3706124.7700000000186264514923095703125,Infrastructura educationala,C/23/3/3.4/320,2009-07-13T00:00:00,In implementare
430,4,3,3.100000000000000088817841970012523233890533447265625,***,9147,TOP CLASS - INSTRUIRE SI MENTORAT PENTRU INTREPRINZATORII DIN REGIUNEA BUCURESTI-ILFOV,FUNDATIA CENTRUL PENTRU EDUCATIE ECONOMICA SI DEZVOLTARE IN ROMANIA- CEED ROMANIA,BUCURESTI - ILFOV,BUCURESTI,MUNICIPIUL BUCURESTI,4482,8,40,1,POSDRU/32/3.1/G/27703,2009-07-14T00:00:00,443429,407321,"Dezvoltarea sistemelor si strategiilor de invatare pe tot parcursul vietii in cadrul firmelor, formare si servicii pentru angajati in vederea imbunatatirii capacitatii lor de adaptare la schimbare; promovarea antreprenoriatului si inovarii",1526.0,2008-11-05T00:00:00,In implementare
431,3,1,1,1.0,11315,Construire si dotare unitate de productie lenjerie de corp,Granit - Impex SRL,CENTRU,HARGHITA,BRADESTI,4528,7,19,4,2m/194,2010-01-20T00:00:00,1823996.67999999993480741977691650390625,1532770.32000000006519258022308349609375,Alte investitii in firme,184.0,2009-06-09T00:00:00,In implementare
432,3,1,1,1.0,11568,Dezvoltarea SC VEGADOM HOUSE SRL prin cearea unei unitati de productie,VEGADOM HOUSE SRL,CENTRU,HARGHITA,MUNICIPIUL MIERCUREA CIUC,5384,7,19,34,2m/114,2009-11-04T00:00:00,1851444,1535085,Alte investitii in firme,167.0,2009-06-09T00:00:00,In implementare
433,1,3,3.399999999999999911182158029987476766109466552734375,1.0,12053,"Extindere si dotare scoala cu clasele I-VIII Purcareni, sat Purcareni, comuna Micesti, judetul Arges",Comuna Micesti,SUD - MUNTENIA,ARGES,MICESTI,4838,3,3,53,4075.0,2014-03-19T00:00:00,1509498.71999999997206032276153564453125,1105395,Infrastructura educationala,SM/24/3/3.4/178,2009-08-10T00:00:00,In implementare
434,3,1,1,1.0,12476,CRESTEREA COMPETITIVITATII ECONOMICE A SC CRIOMEC SA PRIN DEZVOLTAREA SI MODERNIZAREA CAPACITATII DE PRODUCTIE, CRIOMEC S.A. ,SUD-EST,GALATI,MUNICIPIUL GALATI,4944,2,17,35,2m/292,2010-09-03T00:00:00,2135324,1791380,Alte investitii in firme,421.0,2009-06-10T00:00:00,In implementare
435,6,1,1.100000000000000088817841970012523233890533447265625,***,12172,Dezvoltarea comunei Jitia in perioada 2010-2015 prin planificare strategica,comuna Jitia,SUD-EST,VRANCEA,JITIA,4800,2,39,26,192.0,2010-09-30T00:00:00,311198.400000000023283064365386962890625,250160,"Mecanisme de imbunatatire a elaborarii politicilor si programelor, a monitorizarii si evaluarii la nivel national, regional si local si de dezvoltare a capacitatii de a elabora politici si programe",386396.0,2009-08-13T00:00:00,Finalizat
436,3,2,3,3.0,6015,Modernizarea locomotivelor electrice de fabricatie romaneasca tip LE 5100Kw,SOFTRONIC SRL,SUD-VEST OLTENIA,DOLJ,MUNICIPIUL CRAIOVA,1651,4,16,68,98.0,2010-02-08T00:00:00,4868277,3957960,"Alte masuri pentru stimularea cercetarii, inovarii si antreprenoriatului in IMM -uri",316.0,2009-03-02T00:00:00,In implementare
437,3,1,1,1.0,12269,"Investitii in sistemul de productie al SC Xilopal SRL din comuna Ghimes-Faget, judetul Bacau",XILOPAL SRL,NORD-EST,BACAU,GHIMES-FAGET,3437,1,4,27,2m/340,2010-09-13T00:00:00,1631022.15999999991618096828460693359375,1307959,Alte investitii in firme,348.0,2009-06-09T00:00:00,In implementare
438,1,3,3.100000000000000088817841970012523233890533447265625,2.0,12112,"Reabilitarea, modernizarea, dezvoltarea si echiparea ambulatoriului Clinicii de Chirurgie Cranio-Maxilo-Faciala din cadrul Spitalului Clinic Municipal de Urgenta Timisoara",Municipiul Timisoara,VEST,TIMIS,MUNICIPIUL TIMISOARA,2512,5,35,54,940.0,2010-10-18T00:00:00,3320131.8100000000558793544769287109375,2661861.120000000111758708953857421875,Infrastructura serviciilor de sanatate,V/24/3/3.1/162/11.08.2009,2009-08-11T00:00:00,Finalizat
439,1,1,1.100000000000000088817841970012523233890533447265625,3.0,7604,"Realizare sistem de supraveghere video pentru cresterea sigurantei cetatenilor si prevenirea criminalitatii in orasul Costesti, judetul Arges",Orasul Costesti,SUD - MUNTENIA,ARGES,ORAS COSTESTI,4819,3,3,67,1127.0,2010-12-02T00:00:00,1238205.71999999997206032276153564453125,960003,Alte infrastructuri sociale,SM/1/1.1/CU/1/2/3,2009-03-31T00:00:00,Finalizat
440,3,1,1,1.0,11709,ACHIZITIONARE UTILAJE TEHNOLOGICE,EUROPEXPRES SRL,CENTRU,ALBA,MUNICIPIUL ALBA IULIA,584,7,1,39,2m/22,2009-10-05T00:00:00,2075377.9399999999441206455230712890625,1535714.290000000037252902984619140625,Alte investitii in firme,251.0,2009-06-09T00:00:00,In implementare
441,1,3,3.20000000000000017763568394002504646778106689453125,1.0,12155,"CENTRU DE ZI PENTRU COPII DIN FAMILII IN DIFICULTATE ""EPISCOP MELCHISEDEC"" - ROMAN",FUNDATIA EPISCOP MELCHISEDEC,NORD-EST,NEAMT,MUNICIPIUL ROMAN,4840,1,27,45,834.0,2010-09-10T00:00:00,3670123.7799999997951090335845947265625,2855021.5299999997951090335845947265625,Alte infrastructuri sociale,NE/24/3/3.2/406/13.08.2009,2009-08-13T00:00:00,Finalizat
442,1,3,3.399999999999999911182158029987476766109466552734375,1.0,12316,"Extindere cu patru sali de clasa  - sat Ruganesti, Comuna Simonesti si spatiu multifunctional prin mansardare la Scoala generala Marosi Gergely sat Simonesti, comuna Simonesti, judetul Harghita",Consiliul Local Simonesti,CENTRU,HARGHITA,SIMONESTI,4889,7,19,53,933.0,2010-10-18T00:00:00,4394151.9800000004470348358154296875,3120238.1000000000931322574615478515625,Infrastructura educationala,C/24/3/3.4/348,2009-08-25T00:00:00,Finalizat
443,3,2,1,2.0,12516,"Un Cadru de Lucru bazat pe Semantica Executabila pentru Proiectarea Riguroasa, Analiza si Testarea Sistemelor",Universitatea A.I. Cuza Iasi,NORD-EST,IASI,MUNICIPIUL IASI,96,1,22,57,161.0,2010-06-15T00:00:00,4744973,4713612,Activitati de C&DT in centre de cercetare,602.0,2009-06-11T00:00:00,In implementare
444,1,3,3.399999999999999911182158029987476766109466552734375,1.0,11664,"Modernizare si extindere Scoala nr.4 ELENA DONICI CANTACUZINO din orasul Pucioasa, judetul Dambovita",Orasul Pucioasa,SUD - MUNTENIA,DÂMBOVITA,ORAS PUCIOASA,4817,3,15,55,3799.0,2013-08-14T00:00:00,2479057.870000000111758708953857421875,1806835.5,Infrastructura educationala,SM 23/3/3.4/165,2009-07-28T00:00:00,In implementare
445,1,3,3.20000000000000017763568394002504646778106689453125,1.0,12122,"CENTRU SOCIAL MULTIFUNCTIONAL ""EPISCOP MELCHISEDEC"" ROMAN",FUNDATIA EPISCOP MELCHISEDEC,NORD-EST,NEAMT,MUNICIPIUL ROMAN,4840,1,27,45,832.0,2010-09-06T00:00:00,3471053.58000000007450580596923828125,2771032.2200000002048909664154052734375,Alte infrastructuri sociale,NE/24/3/3.2/403/11.08.2009,2009-08-11T00:00:00,Finalizat
446,3,1,1,1.0,11565,ACHIZITIONAREA DE UTILAJE PENTRU PRODUCTIA DE MEDICAMENTE,VIM SPECTRUM SRL,CENTRU,MURES,CORUNCA,1678,7,26,24,2m/103,2009-10-26T00:00:00,1907859.790000000037252902984619140625,1603243.5200000000186264514923095703125,Alte investitii in firme,105.0,2009-06-09T00:00:00,In implementare
447,3,1,1,1.0,11979,"Dotarea cu utilaje performante si mijloace de transport tehnologice
",Versys SV SRL,NORD-VEST,CLUJ,MOLDOVENESTI,4812,6,12,51,2m/236,2010-08-12T00:00:00,1754152,1387710,Alte investitii in firme,316.0,2009-06-09T00:00:00,In implementare
448,3,1,1,1.0,11622,modernizare prin achizitionarea de utilaje la SC TERMOLUX SRL,TERMOLUX SRL,NORD-EST,VASLUI,MUNICIPIUL VASLUI,217,1,37,50,2m/177,2009-12-17T00:00:00,227798.83999999999650754034519195556640625,191428.2000000000116415321826934814453125,"Asist pt IMM-uri pentru promovarea produselor si proceselor de prod fara impact negativ asupra mediului (introducerea unui sistem eficient de mgt de mediu, adoptarea si folosirea tehnologiilor de prevenire a poluarii, integrarea tehn. curate in prod)",243.0,2009-06-09T00:00:00,In implementare
449,3,1,1,1.0,11567,Mijloace fixe in constructii de drumuri,MARSILVA COM SRL,SUD-VEST OLTENIA,OLT,MUNICIPIUL SLATINA,3276,4,28,54,2m/78,2009-10-16T00:00:00,3445276,2895190,"Asist pt IMM-uri pentru promovarea produselor si proceselor de prod fara impact negativ asupra mediului (introducerea unui sistem eficient de mgt de mediu, adoptarea si folosirea tehnologiilor de prevenire a poluarii, integrarea tehn. curate in prod)",112.0,2009-06-09T00:00:00,In implementare
450,1,3,3.100000000000000088817841970012523233890533447265625,2.0,11520,"MODERNIZARE, DEZVOLTARE SI ECHIPAE A AMBULATORIULUI DE SPECIALITATE LA SPITALUL JUDETEAN DE URGENTA SF. IOAN CEL NOU SUCEAVA",Consiliul Judetean Suceava,NORD-EST,SUCEAVA,MUNICIPIUL SUCEAVA,60,1,33,64,641.0,2010-02-06T00:00:00,3596223.08000000007450580596923828125,2902969.709999999962747097015380859375,Infrastructura serviciilor de sanatate,NE/23/3/3.1/397/22.07.2009,2009-07-22T00:00:00,In implementare
451,1,3,3.20000000000000017763568394002504646778106689453125,2.0,11364,Extindere centru de asistenta medico-sociala Cujmir - pavilion central,Centrul de Asistenta Medico - Sociala Cujmir,SUD-VEST OLTENIA,MEHEDINTI,CUJMIR,4839,4,25,16,753.0,2010-06-21T00:00:00,2668595.5299999997951090335845947265625,2246312.9399999999441206455230712890625,Alte infrastructuri sociale,SV/23/3/3.2/13/14.07.2009,2009-07-14T00:00:00,In implementare
452,3,1,1,1.0,12196,Achizitie de utilaje in vederea modernizarii firmei SC. REZISTENS STRUCT SRL,REZISTENS STRUCT SRL ,SUD-EST,GALATI,MUNICIPIUL TECUCI,4848,2,17,36,2m/281,2010-08-20T00:00:00,639866.920000000041909515857696533203125,513133,"Asist pt IMM-uri pentru promovarea produselor si proceselor de prod fara impact negativ asupra mediului (introducerea unui sistem eficient de mgt de mediu, adoptarea si folosirea tehnologiilor de prevenire a poluarii, integrarea tehn. curate in prod)",313.0,2009-06-09T00:00:00,In implementare
453,1,3,3.20000000000000017763568394002504646778106689453125,2.0,12116,"REABILITAREA SI  AMENAJAREA CENTRULUI DE INGRIJIRE SI ASISTENTA DIN LOCALITATEA ADASENI, JUDETUL BOTOSANI",DIRECTIA GENERALA DE ASISTENTA SOCIALA SI PROTECTIA COPILULUI,NORD-EST,BOTOSANI,MUNICIPIUL BOTOSANI,4845,1,7,44,987.0,2010-10-26T00:00:00,3548234.2200000002048909664154052734375,2864448,Alte infrastructuri sociale,NE/24/3/3.2/404/12.08.2009,2009-08-12T00:00:00,Finalizat
454,3,1,1,1.0,12085,ACHIZITIONAREA UNUI NOU UTILAJ PERFORMANT IN VEDEREA DEZVOLTARII FIRMEI,NEO PAL GRUP SRL ,SUD-EST,BUZAU,MUNICIPIUL BUZAU,4837,2,10,44,2m/225,2010-08-11T00:00:00,1282832,1075000,Alte investitii in firme,308  m,2009-06-09T00:00:00,In implementare
455,1,3,3.399999999999999911182158029987476766109466552734375,1.0,12442,Extindere Scoala Generala nr. 2 Rasnov,Consiliul Local Rasnov,CENTRU,BRASOV,ORAS RÂSNOV,148,7,8,35,1301.0,2011-03-18T00:00:00,8939344.40000000037252902984619140625,6947660,Infrastructura educationala,13860.0,2009-08-31T00:00:00,Finalizat
456,3,2,1,1.0,11769,"DEZVOLTAREA DE PRODUS A UNEI CENTRALE, AUTOMATIZATA, ECOLOGICA, PENTRU PREPARAT ASFALT, DE 120 T/ORA",TAR SRL,NORD-EST,IASI,MUNICIPIUL IASI,4358,1,22,57,143.0,2010-06-11T00:00:00,3860500,3611598,Activitati de C&DT in centre de cercetare,423.0,2009-06-02T00:00:00,In implementare
457,3,1,1,1.0,13173,CRESTEREA COMPETITIVITATII ECONOMICE A SC CONIZ ROMARG SRL PRIN RETEHNOLOGIZARE SI ACHIZITIA DE UTILAJE DE TRANSPORT TEHNOLOGIC SPECIALIZAT,CONIZ ROMARG SRL,SUD - MUNTENIA,ARGES,MUNICIPIUL PITESTI,5065,3,3,62,2m/362,2010-09-03T00:00:00,2105802.6400000001303851604461669921875,1769582.05000000004656612873077392578125,Alte investitii in firme,457.0,2009-06-11T00:00:00,In implementare
458,1,6,6.0999999999999996447286321199499070644378662109375,1.0,12612,"Sprijin pentru ADR Nord-Vest, in calitate de Organism Intermediar, in perioada 2009 - 2010 in vederea implementarii Programului Operatioanal in perioada 2009 - 2013 la nivelul Regiunii Nord - Vest",Agentia pentru Dezvoltare Regionala Nord-Vest,NORD-VEST,CLUJ,MUNICIPIUL CLUJ-NAPOCA,8,6,12,52,8AT,2009-12-21T00:00:00,11096843,10236981,"Pregatire, implementare, monitorizare si inspectie",57517.0,2009-09-04T00:00:00,Finalizat
459,3,1,1,1.0,13303,Modernizare fabrica de prelucrari mecanice de precizie pentru industria aeronautica la SC Gevalco Industrial SRL,GEVALCO INDUSTRIAL SRL,BUCURESTI - ILFOV,BUCURESTI,MUNICIPIUL BUCURESTI,5120,8,40,1,119/M,2011-03-15T00:00:00,15508122,12506550,Alte investitii in firme,312.0,2009-09-04T00:00:00,In implementare
460,3,1,1,1.0,13137,Crearea unei statii de betoane performante in regiunea Sud Vest Oltenia,ANTREPRIZA DE CONSTRUCTII MONTAJ ALPHA GRUP S.R.L,SUD-VEST OLTENIA,OLT,MUNICIPIUL CARACAL,5062,4,28,53,2m/335,2010-09-03T00:00:00,1318187.6000000000931322574615478515625,1105240,Alte investitii in firme,446.0,2009-07-22T00:00:00,In implementare
461,1,3,3.399999999999999911182158029987476766109466552734375,1.0,11569,REABILITARE COLEGIUL TEHNIC LORIN SALAGEAN,Municipiul Drobeta Turnu Severin,SUD-VEST OLTENIA,MEHEDINTI,MUNICIPIUL DROBETA-TURNU SEVERIN,1729,4,25,38,1465.0,2011-04-28T00:00:00,4768040.620000000111758708953857421875,3765536,Infrastructura educationala,SV/23/3/3.4/31/23.07.2009,2009-07-23T00:00:00,In implementare
462,3,2,3,1.0,12749,"Spin-off inovativ pentru abordarea complexa serologica, celulara si moleculara a unor maladii neoplazice ¿i virale",PERSONAL GENETICS RESEARCH AND DEVELOPMENT  SRL,BUCURESTI - ILFOV,BUCURESTI,MUNICIPIUL BUCURESTI,6739,8,40,1,357.0,2011-12-06T00:00:00,1089463,914334,"Investitii in firme direct legate de cercetare si inovare (tehnologii inovatoare, infiintarea de noi firme de catre universitati, centre si firme C&DT existente)",735.0,2009-08-18T00:00:00,In implementare
463,1,3,3.399999999999999911182158029987476766109466552734375,1.0,12673,Reabilitare cladire Colegiul National Moise Nicoara,CONSILIUL LOCAL AL MUNICIPIULUI ARAD,VEST,ARAD,MUNICIPIUL ARAD,301220001,5,2,36,875.0,2010-09-29T00:00:00,51123307.9099999964237213134765625,40429878,Infrastructura educationala,V/25/3/3.4/181/04.09.2009,2009-04-01T00:00:00,In implementare
464,3,1,1,1.0,13193,"Constructia si dotarea cu echipamente moderne a unei noi fabrici de productie a structurilor metalice
",All Electrics 95 SRL,SUD - MUNTENIA,CALARASI,BELCIUGATELE,5082,3,51,2,41/M,2011-01-28T00:00:00,16910086.1600000001490116119384765625,10700822.66999999992549419403076171875,Alte investitii in firme,306.0,2009-09-04T00:00:00,In implementare
465,3,2,3,3.0,5712,ECHIPAMENT ELECTRONIC COMPLEX PENTRU CRESTEREA EFICIENTEI ENERGETICE A LOCOMOTIVELOR DIESEL-ELECTRICE,ELIND S.R.L.,SUD-VEST OLTENIA,DOLJ,MUNICIPIUL CRAIOVA,2595,4,16,68,101.0,2010-02-08T00:00:00,768745,687100,"Alte masuri pentru stimularea cercetarii, inovarii si antreprenoriatului in IMM -uri",367.0,2009-03-04T00:00:00,In implementare
466,3,4,2,1.0,2605,Reabilitare si modernizare microhidrocentrala Ilies 1,HIDROCONSTRUCTIA SA,BUCURESTI - ILFOV,BUCURESTI,MUNICIPIUL BUCURESTI,301280008,8,40,1,41.0,2009-11-19T00:00:00,2287479.6000000000931322574615478515625,1596678.6000000000931322574615478515625,"Energie regenerabila: hidroelectrica, geotermala si altele",630039.0,2008-09-30T00:00:00,In implementare
467,1,1,1.100000000000000088817841970012523233890533447265625,3.0,12495,REABILITAREA SI MODERNIZAREA CLADIRII DESTINATE FURNIZARII SERVICIILOR SOCIALE,MUNICIPIUL DOROHOI,NORD-EST,BOTOSANI,MUNICIPIUL DOROHOI,4229,1,7,45,2173.0,2011-09-27T00:00:00,1460766.30000000004656612873077392578125,1022591.2299999999813735485076904296875,Alte infrastructuri sociale,NE/1/1.1/CU/1/15/2,2009-05-26T00:00:00,Finalizat
468,1,4,4.29999999999999982236431605997495353221893310546875,1.0,3677,"Achizitia de echipamente si programe informatice specifice activitatii de topometrie si cadastru, mun.Buzau, jud.Buzau",Teta Cons  S.R.L.,SUD-EST,BUZAU,MUNICIPIUL BUZAU,1291,2,10,44,514.0,2009-08-24T00:00:00,335680.3200000000069849193096160888671875,282084.2999999999883584678173065185546875,Alte investitii in firme,SE/10/4/4.3/87/16.06.2008,2008-06-16T00:00:00,Finalizat
469,1,1,1.100000000000000088817841970012523233890533447265625,1.0,6768,"Reabilitare ansamblu strazi str. Basaribilor, Banului, Manastirii, Milcovului, Poenii, Cuza Voda (Reabilitare inel secundar str. Basarabilor- str.Banului - str.Cuza Voda - str. Poenii)",Consiliul Local Slatina,SUD-VEST OLTENIA,OLT,MUNICIPIUL SLATINA,1514,4,28,54,2760.0,2011-12-30T00:00:00,18473251.4499999992549419403076171875,14642520.89000000059604644775390625,Drumuri locale/regionale,SV/1/1.1/CU/1/2/11,2009-05-11T00:00:00,In implementare
470,3,2,1,1.0,11839,SOLUTII TERMOTEHNICE INTEGRATE PE BAZA DE ENERGIE VERDE v2,STICO INSTAL SRL,SUD - MUNTENIA,PRAHOVA,BLEJOI,4460,3,29,15,148.0,2010-06-11T00:00:00,4212124,3572632,Activitati de C&DT in centre de cercetare,494.0,2009-06-04T00:00:00,In implementare
471,3,2,3,3.0,5497,"INSTALATIE PROTOTIP PENTRU NITRURARE ACCELERATA A PIESELOR AGABARITICE DIN INDUSTRIA NAVALA, EOLIANA SI AUTO",UTTIS INDUSTRIES SRL,BUCURESTI - ILFOV,ILFOV,VIDRA,1721,8,23,40,203.0,2010-07-15T00:00:00,1407000,1256857,"Alte masuri pentru stimularea cercetarii, inovarii si antreprenoriatului in IMM -uri",302.0,2009-02-25T00:00:00,In implementare
472,1,6,6.0999999999999996447286321199499070644378662109375,1.0,12556,Sprijin acordat in perioada 2009 - 2010 pentru OI din cadrul ADR Centru in implementarea si monitorizarea la nivel regional a POR 2007 - 2013,Agentia pentru Dezvoltare Regionala Centru,CENTRU,ALBA,MUNICIPIUL ALBA IULIA,9,7,1,39,6AT,2009-11-27T00:00:00,11337290.3000000007450580596923828125,9713110,"Pregatire, implementare, monitorizare si inspectie",57576.0,2009-09-04T00:00:00,Finalizat
473,3,2,3,3.0,5751,GIS - Geam izolant de siguranta,MOLDOGLASS S.R.L.,NORD-EST,BACAU,LETEA VECHE,2434,1,4,38,103.0,2010-02-01T00:00:00,5397199,5177520,"Alte masuri pentru stimularea cercetarii, inovarii si antreprenoriatului in IMM -uri",325.0,2009-03-03T00:00:00,In implementare
474,1,3,3.20000000000000017763568394002504646778106689453125,1.0,12363,"Rivulus Pueris-Reabilitarea, modernizarea, dezvoltarea si echiparea infrastructurii serviciilor sociale din Baia Mare",Serviciul Public Asistenta Sociala Baia Mare,NORD-VEST,MARAMURES,MUNICIPIUL BAIA MARE,2786,6,24,36,1178.0,2010-12-29T00:00:00,2859140.33000000007450580596923828125,2072807.6899999999441206455230712890625,Alte infrastructuri sociale,NV/20/3/3.2/321,2009-08-28T00:00:00,In implementare
475,4,3,3.100000000000000088817841970012523233890533447265625,***,12391,Antreprenoriat si Supply chain management,UNIVERSITATEA TRANSILVANIA DIN BRASOV,CENTRU,BRASOV,MUNICIPIUL BRASOV,1452,7,8,28,POSDRU/31/3.1/G/35390,2009-07-10T00:00:00,1845764,1808964,"Dezvoltarea sistemelor si strategiilor de invatare pe tot parcursul vietii in cadrul firmelor, formare si servicii pentru angajati in vederea imbunatatirii capacitatii lor de adaptare la schimbare; promovarea antreprenoriatului si inovarii",1762.0,2008-12-02T00:00:00,In implementare
476,1,3,3.399999999999999911182158029987476766109466552734375,1.0,11225,"Consolidare, modernizare, extindere si dotarea centrului scolar pentru educatie incluziva Babeni - judetul Valcea",Consiliul Judetean Valcea,SUD-VEST OLTENIA,VALCEA,MUNICIPIUL RAMNICU VALCEA,1170,4,38,44,961.0,2010-10-25T00:00:00,6402770.530000000260770320892333984375,4734876.00999999977648258209228515625,Infrastructura educationala,SV/23/3/3.4/27/09.07.2009,2009-07-10T00:00:00,In implementare
477,1,3,3.399999999999999911182158029987476766109466552734375,1.0,13287,"Reabilitarea ansamblului de cladiri si echiparea infrastructurii educationale a Colegiului Tehnic Energetic ""Dragomir Hurmuzescu""",MUNICIPIUL DEVA,VEST,HUNEDOARA,MUNICIPIUL DEVA,301220004,5,20,37,3609.0,2013-01-29T00:00:00,15539215.81000000052154064178466796875,12571195.0199999995529651641845703125,Infrastructura educationala,V/26/3/3.4/198/07.10.2009,2009-10-07T00:00:00,In implementare
478,1,3,3.20000000000000017763568394002504646778106689453125,1.0,13204,"REABILITAREA, MODERNIZAREA SI ECHIPAREA CLADIRII DESTINATE SERVICIILOR SOCIALE IN MUNICIPIUL ROMAN",Primaria Municipiului Roman,NORD-EST,NEAMT,MUNICIPIUL ROMAN,2419,1,27,45,918.0,2010-10-07T00:00:00,3631021.3500000000931322574615478515625,2741057,Alte infrastructuri sociale,NE/26/3/3.2/425/02.10.2009,2009-10-02T00:00:00,In implementare
479,3,2,1,2.0,12575,Crearea Centrului de Competenta pentru Fotonica Avansata si Biotronica,UNIVERSITATEA POLITEHNICA din BUCURESTI,BUCURESTI - ILFOV,BUCURESTI,MUNICIPIUL BUCURESTI,1326,8,40,1,240.0,2010-08-31T00:00:00,4873825,4754125,Activitati de C&DT in centre de cercetare,634.0,2009-06-11T00:00:00,In implementare
480,6,2,2.20000000000000017763568394002504646778106689453125,***,6783,ÎMBUNATATIREA FURNIZARII SERVICIILOR PUBLICE ÎN CADRUL PRIMARIEI TECHIRGHIOL,Primaria orasului Techirghiol,SUD-EST,CONSTANTA,ORAS TECHIRGHIOL,1168,2,13,52,108.0,2010-05-05T00:00:00,1423702.90999999991618096828460693359375,1196389,"Mecanisme de imbunatatire a elaborarii politicilor si programelor, a monitorizarii si evaluarii la nivel national, regional si local si de dezvoltare a capacitatii de a elabora politici si programe",385051.0,2009-05-11T00:00:00,Finalizat
481,3,1,1,1.0,13223,Cresterea competitivitatii societatii WILLEX SRL prin achizitionarea masinii de imbinat complet automatizate,WILLEX SRL,CENTRU,HARGHITA,SUSENI,5088,7,19,55,2m/313,2010-09-03T00:00:00,1524390,1281000,Alte investitii in firme,470.0,2009-06-11T00:00:00,In implementare
482,3,1,1,1.0,13061,"MODERNIZAREA SI EXTINDEREA CAPACITATII DE PRODUCTIE A BETOANELOR LA S.C. CONSIG S.A. GIURGIU, PRIN ACHIZITIA UNEI STATII DE BETOANE MOBILA, DE ULTIMA GENERATIE
",CONSIG SA,SUD - MUNTENIA,GIURGIU,MUNICIPIUL GIURGIU,3287,3,52,33,2m/231,2010-08-11T00:00:00,1706320,1449000,Alte investitii in firme,381.0,2009-06-09T00:00:00,In implementare
483,3,2,2,4.0,13034,Dezvoltarea capacitatii administrative in cercetarea medicala si corelarea rezultatelor cercetarii cu mediul economic,INSTITUTUL DE URGENTA PENTRU BOLI CARDIOVASCULARE SI TRANSPLANT TARGU MURES,CENTRU,MURES,MUNICIPIUL TÂRGU MURES,5269,7,26,59,225.0,2010-07-28T00:00:00,468400,400000,"Infrastructura C&DT (inclusiv constructie, echipamente si retele computerizate de inalta viteza care conecteaza centre de cercetare) si centre de excelenta in tehnologii specifice",767.0,2009-09-16T00:00:00,In implementare
484,3,1,1,1.0,13342,achizitie utilaj prelucrare mase plastice,RV LINE SRL,VEST,ARAD,MUNICIPIUL ARAD,5124,5,2,36,171/M,2011-04-11T00:00:00,3921767.7200000002048909664154052734375,3036240,Alte investitii in firme,391.0,2009-09-09T00:00:00,In implementare
485,3,1,1,1.0,13784,ACHIZITII MIJLOACE FIXE PENTRU CRESTEREA COMPETITIVITATII LA SC UNIVEGA CONSTRUCT SRL,UNIVEGA CONSTRUCT SRL,NORD-EST,SUCEAVA,MUNICIPIUL RADAUTI,5310,1,33,63,97/M,2011-02-23T00:00:00,8202536.889999999664723873138427734375,6572699.5899999998509883880615234375,Alte investitii in firme,579.0,2009-09-11T00:00:00,In implementare
486,3,1,1,1.0,13382,"ACHIZITIE DE UTILAJE PERFORMANTE, SPECIFICE PENTRU FABRICAREA DE STRUCTURI METALICE SI PARTI COMPONENTE ALE ACESTORA",ARHINSTAL SRL,NORD-VEST,CLUJ,MUNICIPIUL CLUJ-NAPOCA,1000,6,12,52,2m/240,2010-08-12T00:00:00,2120818,1780200,Alte investitii in firme,432.0,2009-06-10T00:00:00,In implementare
487,1,1,1.100000000000000088817841970012523233890533447265625,1.0,13217,"REABILITAREA ZONEI CENTRALE A MUNICIPIULUI SUCEAVA, PRIN CREARE PARCAJE SUBTERANE, REABILITARE PIETONAL SI STRAZI",MUNICIPIUL SUCEAVA,NORD-EST,SUCEAVA,MUNICIPIUL SUCEAVA,5017,1,33,64,777.0,2010-06-17T00:00:00,35149103.119999997317790985107421875,27534906.210000000894069671630859375,Drumuri locale/regionale,NE/1/1.1/PDU/1/2,2009-09-11T00:00:00,Finalizat
488,3,1,1,1.0,2536,Modernizare tehnologica sc uzuc sa,UZUC SA,SUD - MUNTENIA,PRAHOVA,MUNICIPIUL PLOIESTI,302040018,3,29,56,XXV/370481,2010-03-11T00:00:00,4870880,3967200,Alte investitii in firme,08.01.007,2008-10-10T00:00:00,In implementare
